Workbook

Sheet iniTurma
B1: Ano: | C1: 2 | E1: Média: | F1: =IF(COUNTA(F4:F53)>0,AVERAGE(F4:F53),"") -> 12.3575 | G1: =IF(COUNTA(G4:G53)>0,AVERAGE(G4:G53),"") -> 13.33333333 | H1: 9.033333333 | I1: 29.86666667 | J1: 12.36363636 | K1: 10.95166667
A2: =COUNTIF(B4:B53,"x") -> 1 | B2: Turma: | C2: A | E2: Desvio-padrão: | F2: =IF(COUNTA(F4:F53)>0,_xlfn.STDEV.P(F4:F53),"") -> 1.157771746 | G2: =IF(COUNTA(G4:G53)>0,_xlfn.STDEV.P(G4:G53),"") -> 1.598610508 | H2: 2.339634349 | I2: 4.077853466 | J2: 4.333227377 | K2: 1.371628189
A3: ID Aluno | B3: =_xlfn.CONCAT("Ver: ",COUNTIF(B4:B53,"x")) -> Ver: 1 | C3: Nome | D3: Idade | E3: Data | F3: Corrida vaivém | G3: Corrida velocidade | H3: Salto horizontal | I3: Receber | J3: Lançar | K3: Equilíbrio
A4: 1 | C4: Micas | D4: 13 | E4: 2024-12-12 | F4: 13.12 | G4: 13 | H4: 6 | I4: 32 | J4: 8 | K4: 11.2
A5: =A4+1 -> 2 | C5: Tecas | D5: 12 | E5: 2024-12-12 | F5: 12.43 | G5: 14 | H5: 7 | I5: 38 | J5: 9 | K5: 10.2
A6: =A5+1 -> 3 | C6: Lecas | D6: 15 | E6: 2024-12-12 | F6: 10 | G6: 14 | H6: 8.3 | I6: 25 | J6: 12 | K6: 9.9
A7: 4 | B7: x | C7: Becas | D7: 8 | E7: 2024-12-13 | F7: 11.64 | G7: 15 | H7: 10 | I7: 31 | K7: 10.12
A8: 5 | C8: Nocas | D8: 11 | E8: 2024-12-13 | F8: 12.2 | G8: 12 | H8: 7 | I8: 24 | J8: 6 | K8: 10
A9: 6 | C9: Françoise Hardy | D9: 12 | E9: 2024-12-14 | F9: 13.1 | G9: 16 | H9: 8 | I9: 27 | J9: 17 | K9: 9.5
A10: 7 | C10: Asterix | D10: 16 | E10: 2024-12-14 | F10: 10.5 | G10: 13 | H10: 11.5 | I10: 36 | J10: 8 | K10: 10.1
A11: 8 | C11: Obelix | D11: 14 | E11: 2024-12-14 | F11: 14.2 | G11: 12 | H11: 14.7 | I11: 27 | J11: 12 | K11: 13.2
A12: 9 | C12: Ideiafix | D12: 13 | E12: 2024-12-14 | F12: 13.5 | G12: 14 | H12: 11 | I12: 28 | J12: 11 | K12: 11.2
A13: 10 | C13: Sylvie Vartan | D13: 13 | E13: 2024-12-15 | F13: 12 | G13: 15 | H13: 7.3 | I13: 31 | J13: 20 | K13: 14
A14: 11 | C14: Carlos Lopes | D14: 14 | E14: 2024-12-15 | F14: 12.5 | G14: 10 | H14: 8.3 | I14: 32 | J14: 16 | K14: 12
A15: 12 | C15: Rosa Mota | D15: 14 | E15: 2024-12-15 | F15: 13.1 | G15: 12 | H15: 9.3 | I15: 27.4 | J15: 17 | K15: 10
A16: 13
A17: 14
A18: 15
A19: 16
A20: 17
A21: 18
A22: 19
A23: 20
A24: 21
A25: 22
A26: 23
A27: 24
A28: 25
A29: 26
A30: 27
A31: 28
A32: 29
A33: 30
A34: 31
A35: 32
A36: 33
A37: 34
A38: 35
A39: 36
A40: 37
A41: 38
A42: 39
A43: 40
A44: 41
A45: 42
A46: 43
A47: 44
A48: 45
A49: 46
A50: 47
A51: 48
A52: 49
A53: 50

Sheet iniRelatório
A1: RELATÓRIO INDIVIDUAL PRESCHOOL TEST BATTERY
A2: =IF(iniTurma!A2=1,VLOOKUP("x",iniTurma!B$4:M$53,2,0),"") -> Becas
A3: =IF(iniTurma!A2=1,_xlfn.CONCAT(TEXT(VLOOKUP("x",iniTurma!B$4:M$53,4,0),"dd-mm-aaaa")," | ",iniTurma!C1,"º ano"," | ",iniTurma!C2),"") -> 13-12-2024 | 2º ano | A
B5: Resultado | D5: Média | F5: Mínimo | H5: Máximo
B6: da criança | D6: da turma | F6: da turma | H6: da turma
A7: HABILIDADES DE LOCOMOÇÃO
A8: =IF(iniTurma!A2=1,IFERROR(VLOOKUP(1,iniAuxiliar!L3:Q5,2,0),""),"") -> Corrida vaivém | B8: =IF(iniTurma!A2=1,IFERROR(VLOOKUP(1,iniAuxiliar!L3:Q5,3,0),0),"") -> 11.64 | D8: =IF(iniTurma!A2=1,IFERROR(VLOOKUP(1,iniAuxiliar!L3:Q5,4,0),0),"") -> 12.3575 | F8: =IF(iniTurma!A2=1,IFERROR(VLOOKUP(1,iniAuxiliar!L3:Q5,5,0),0),"") -> 10 | H8: =IF(iniTurma!A2=1,IFERROR(VLOOKUP(1,iniAuxiliar!L3:Q5,6,0),0),"") -> 14.2
A10: =IF(iniTurma!A2=1,IFERROR(VLOOKUP(2,iniAuxiliar!L3:Q5,2,0),""),"") -> Corrida velocidade | B10: =IF(iniTurma!A2=1,IFERROR(VLOOKUP(2,iniAuxiliar!L3:Q5,3,0),0),"") -> 15 | D10: =IF(iniTurma!A2=1,IFERROR(VLOOKUP(2,iniAuxiliar!L3:Q5,4,0),0),"") -> 13.33333333 | F10: =IF(iniTurma!A2=1,IFERROR(VLOOKUP(2,iniAuxiliar!L3:Q5,5,0),0),"") -> 10 | H10: =IF(iniTurma!A2=1,IFERROR(VLOOKUP(2,iniAuxiliar!L3:Q5,6,0),0),"") -> 16
A12: =IF(iniTurma!A2=1,IFERROR(VLOOKUP(3,iniAuxiliar!L3:Q5,2,0),""),"") -> Salto horizontal | B12: =IF(iniTurma!A2=1,IFERROR(VLOOKUP(3,iniAuxiliar!L3:Q5,3,0),0),"") -> 10 | D12: =IF(iniTurma!A2=1,IFERROR(VLOOKUP(3,iniAuxiliar!L3:Q5,4,0),0),"") -> 9.033333333 | F12: =IF(iniTurma!A2=1,IFERROR(VLOOKUP(3,iniAuxiliar!L3:Q5,5,0),0),"") -> 6 | H12: =IF(iniTurma!A2=1,IFERROR(VLOOKUP(3,iniAuxiliar!L3:Q5,6,0),0),"") -> 14.7
A14: HABILIDADES DE CONTROLO DE OBJETOS
A15: =IF(iniTurma!A2=1,IFERROR(VLOOKUP(1,iniAuxiliar!L6:Q7,2,0),""),"") -> Receber | B15: =IF(iniTurma!A2=1,IFERROR(VLOOKUP(1,iniAuxiliar!L6:Q7,3,0),0),"") -> 31 | D15: =IF(iniTurma!A2=1,IFERROR(VLOOKUP(1,iniAuxiliar!L6:Q7,4,0),0),"") -> 29.86666667 | F15: =IF(iniTurma!A2=1,IFERROR(VLOOKUP(1,iniAuxiliar!L6:Q7,5,0),0),"") -> 24 | H15: =IF(iniTurma!A2=1,IFERROR(VLOOKUP(1,iniAuxiliar!L6:Q7,6,0),0),"") -> 38
A17: =IF(iniTurma!A2=1,IFERROR(VLOOKUP(2,iniAuxiliar!L6:Q7,2,0),""),"") -> Lançar | B17: =IF(iniTurma!A2=1,IFERROR(VLOOKUP(2,iniAuxiliar!L6:Q7,3,0),0),"") -> 0 | D17: =IF(iniTurma!A2=1,IFERROR(VLOOKUP(2,iniAuxiliar!L6:Q7,4,0),0),"") -> 12.36363636 | F17: =IF(iniTurma!A2=1,IFERROR(VLOOKUP(2,iniAuxiliar!L6:Q7,5,0),0),"") -> 6 | H17: =IF(iniTurma!A2=1,IFERROR(VLOOKUP(2,iniAuxiliar!L6:Q7,6,0),0),"") -> 20
A19: HABILIDADE DE ESTABILIZAÇÃO
A20: =IF(iniTurma!A2=1,IFERROR(VLOOKUP(1,iniAuxiliar!L8:Q8,2,0),""),"") -> Equilíbrio | B20: =IF(iniTurma!A2=1,IFERROR(VLOOKUP(1,iniAuxiliar!L8:Q8,3,0),0),"") -> 10.12 | D20: =IF(iniTurma!A2=1,IFERROR(VLOOKUP(1,iniAuxiliar!L8:Q8,4,0),0),"") -> 10.95166667 | F20: =IF(iniTurma!A2=1,IFERROR(VLOOKUP(1,iniAuxiliar!L8:Q8,5,0),0),"") -> 9.5 | H20: =IF(iniTurma!A2=1,IFERROR(VLOOKUP(1,iniAuxiliar!L8:Q8,6,0),0),"") -> 14
A23: Perfil multivariado

Sheet iniScore Z
A3: =iniTurma!B3 -> Ver: 1 | B3: =iniTurma!A3 -> ID Aluno | C3: =iniTurma!C3 -> Nome | D3: =iniTurma!D3 -> Idade | E3: =iniTurma!F3 -> Corrida vaivém | F3: =iniTurma!G3 -> Corrida velocidade | G3: =iniTurma!H3 -> Salto horizontal | H3: =iniTurma!I3 -> Receber | I3: =iniTurma!J3 -> Lançar | J3: =iniTurma!K3 -> Equilíbrio
A4: =IF(iniTurma!B4<>"",iniTurma!B4,"") ->  | B4: =iniTurma!A4 -> 1 | C4: =IF(iniTurma!C4<>"",iniTurma!C4,"") -> Micas | D4: =IF(iniTurma!D4<>"",iniTurma!D4,"") -> 13 | E4: =IF(AND(iniTurma!F$2<>"",iniTurma!F4<>""),(iniTurma!F4-iniTurma!F$1)/iniTurma!F$2,"") -> 0.6585926824 | F4: =IF(AND(iniTurma!G$2<>"",iniTurma!G4<>""),(iniTurma!G4-iniTurma!G$1)/iniTurma!G$2,"") -> -0.2085144141 | G4: =IF(AND(iniTurma!H$2<>"",iniTurma!H4<>""),(iniTurma!H4-iniTurma!H$1)/iniTurma!H$2,"") -> -1.296498888 | H4: =IF(AND(iniTurma!I$2<>"",iniTurma!I4<>""),(iniTurma!I4-iniTurma!I$1)/iniTurma!I$2,"") -> 0.5231510527 | I4: =IF(AND(iniTurma!J$2<>"",iniTurma!J4<>""),(iniTurma!J4-iniTurma!J$1)/iniTurma!J$2,"") -> -1.00701763 | J4: =IF(AND(iniTurma!K$2<>"",iniTurma!K4<>""),(iniTurma!K4-iniTurma!K$1)/iniTurma!K$2,"") -> 0.1810500362 | K4: =IF(AND(iniTurma!L$2<>"",iniTurma!L4<>""),(iniTurma!L4-iniTurma!L$1)/iniTurma!L$2,"") ->  | L4: =IF(AND(iniTurma!M$2<>"",iniTurma!M4<>""),(iniTurma!M4-iniTurma!M$1)/iniTurma!M$2,"") -> 
A5: =IF(iniTurma!B5<>"",iniTurma!B5,"") ->  | B5: =iniTurma!A5 -> 2 | C5: =IF(iniTurma!C5<>"",iniTurma!C5,"") -> Tecas | D5: =IF(iniTurma!D5<>"",iniTurma!D5,"") -> 12 | E5: =IF(AND(iniTurma!F$2<>"",iniTurma!F5<>""),(iniTurma!F5-iniTurma!F$1)/iniTurma!F$2,"") -> 0.06262028783 | F5: =IF(AND(iniTurma!G$2<>"",iniTurma!G5<>""),(iniTurma!G5-iniTurma!G$1)/iniTurma!G$2,"") -> 0.4170288281 | G5: =IF(AND(iniTurma!H$2<>"",iniTurma!H5<>""),(iniTurma!H5-iniTurma!H$1)/iniTurma!H$2,"") -> -0.8690816725 | H5: =IF(AND(iniTurma!I$2<>"",iniTurma!I5<>""),(iniTurma!I5-iniTurma!I$1)/iniTurma!I$2,"") -> 1.994513388 | I5: =IF(AND(iniTurma!J$2<>"",iniTurma!J5<>""),(iniTurma!J5-iniTurma!J$1)/iniTurma!J$2,"") -> -0.7762427564 | J5: =IF(AND(iniTurma!K$2<>"",iniTurma!K5<>""),(iniTurma!K5-iniTurma!K$1)/iniTurma!K$2,"") -> -0.5480105124 | K5: =IF(AND(iniTurma!L$2<>"",iniTurma!L5<>""),(iniTurma!L5-iniTurma!L$1)/iniTurma!L$2,"") ->  | L5: =IF(AND(iniTurma!M$2<>"",iniTurma!M5<>""),(iniTurma!M5-iniTurma!M$1)/iniTurma!M$2,"") -> 
A6: =IF(iniTurma!B6<>"",iniTurma!B6,"") ->  | B6: =iniTurma!A6 -> 3 | C6: =IF(iniTurma!C6<>"",iniTurma!C6,"") -> Lecas | D6: =IF(iniTurma!D6<>"",iniTurma!D6,"") -> 15 | E6: =IF(AND(iniTurma!F$2<>"",iniTurma!F6<>""),(iniTurma!F6-iniTurma!F$1)/iniTurma!F$2,"") -> -2.036239015 | F6: =IF(AND(iniTurma!G$2<>"",iniTurma!G6<>""),(iniTurma!G6-iniTurma!G$1)/iniTurma!G$2,"") -> 0.4170288281 | G6: =IF(AND(iniTurma!H$2<>"",iniTurma!H6<>""),(iniTurma!H6-iniTurma!H$1)/iniTurma!H$2,"") -> -0.3134392917 | H6: =IF(AND(iniTurma!I$2<>"",iniTurma!I6<>""),(iniTurma!I6-iniTurma!I$1)/iniTurma!I$2,"") -> -1.193438339 | I6: =IF(AND(iniTurma!J$2<>"",iniTurma!J6<>""),(iniTurma!J6-iniTurma!J$1)/iniTurma!J$2,"") -> -0.08391813583 | J6: =IF(AND(iniTurma!K$2<>"",iniTurma!K6<>""),(iniTurma!K6-iniTurma!K$1)/iniTurma!K$2,"") -> -0.766728677 | K6: =IF(AND(iniTurma!L$2<>"",iniTurma!L6<>""),(iniTurma!L6-iniTurma!L$1)/iniTurma!L$2,"") ->  | L6: =IF(AND(iniTurma!M$2<>"",iniTurma!M6<>""),(iniTurma!M6-iniTurma!M$1)/iniTurma!M$2,"") -> 
A7: =IF(iniTurma!B7<>"",iniTurma!B7,"") -> x | B7: =iniTurma!A7 -> 4 | C7: =IF(iniTurma!C7<>"",iniTurma!C7,"") -> Becas | D7: =IF(iniTurma!D7<>"",iniTurma!D7,"") -> 8 | E7: =IF(AND(iniTurma!F$2<>"",iniTurma!F7<>""),(iniTurma!F7-iniTurma!F$1)/iniTurma!F$2,"") -> -0.6197249175 | F7: =IF(AND(iniTurma!G$2<>"",iniTurma!G7<>""),(iniTurma!G7-iniTurma!G$1)/iniTurma!G$2,"") -> 1.04257207 | G7: =IF(AND(iniTurma!H$2<>"",iniTurma!H7<>""),(iniTurma!H7-iniTurma!H$1)/iniTurma!H$2,"") -> 0.4131699754 | H7: =IF(AND(iniTurma!I$2<>"",iniTurma!I7<>""),(iniTurma!I7-iniTurma!I$1)/iniTurma!I$2,"") -> 0.2779239967 | I7: =IF(AND(iniTurma!J$2<>"",iniTurma!J7<>""),(iniTurma!J7-iniTurma!J$1)/iniTurma!J$2,"") ->  | J7: =IF(AND(iniTurma!K$2<>"",iniTurma!K7<>""),(iniTurma!K7-iniTurma!K$1)/iniTurma!K$2,"") -> -0.6063353563 | K7: =IF(AND(iniTurma!L$2<>"",iniTurma!L7<>""),(iniTurma!L7-iniTurma!L$1)/iniTurma!L$2,"") ->  | L7: =IF(AND(iniTurma!M$2<>"",iniTurma!M7<>""),(iniTurma!M7-iniTurma!M$1)/iniTurma!M$2,"") -> 
A8: =IF(iniTurma!B8<>"",iniTurma!B8,"") ->  | B8: =iniTurma!A8 -> 5 | C8: =IF(iniTurma!C8<>"",iniTurma!C8,"") -> Nocas | D8: =IF(iniTurma!D8<>"",iniTurma!D8,"") -> 11 | E8: =IF(AND(iniTurma!F$2<>"",iniTurma!F8<>""),(iniTurma!F8-iniTurma!F$1)/iniTurma!F$2,"") -> -0.136037177 | F8: =IF(AND(iniTurma!G$2<>"",iniTurma!G8<>""),(iniTurma!G8-iniTurma!G$1)/iniTurma!G$2,"") -> -0.8340576562 | G8: =IF(AND(iniTurma!H$2<>"",iniTurma!H8<>""),(iniTurma!H8-iniTurma!H$1)/iniTurma!H$2,"") -> -0.8690816725 | H8: =IF(AND(iniTurma!I$2<>"",iniTurma!I8<>""),(iniTurma!I8-iniTurma!I$1)/iniTurma!I$2,"") -> -1.438665395 | I8: =IF(AND(iniTurma!J$2<>"",iniTurma!J8<>""),(iniTurma!J8-iniTurma!J$1)/iniTurma!J$2,"") -> -1.468567377 | J8: =IF(AND(iniTurma!K$2<>"",iniTurma!K8<>""),(iniTurma!K8-iniTurma!K$1)/iniTurma!K$2,"") -> -0.6938226221 | K8: =IF(AND(iniTurma!L$2<>"",iniTurma!L8<>""),(iniTurma!L8-iniTurma!L$1)/iniTurma!L$2,"") ->  | L8: =IF(AND(iniTurma!M$2<>"",iniTurma!M8<>""),(iniTurma!M8-iniTurma!M$1)/iniTurma!M$2,"") -> 
A9: =IF(iniTurma!B9<>"",iniTurma!B9,"") ->  | B9: =iniTurma!A9 -> 6 | C9: =IF(iniTurma!C9<>"",iniTurma!C9,"") -> Françoise Hardy | D9: =IF(iniTurma!D9<>"",iniTurma!D9,"") -> 12 | E9: =IF(AND(iniTurma!F$2<>"",iniTurma!F9<>""),(iniTurma!F9-iniTurma!F$1)/iniTurma!F$2,"") -> 0.6413181202 | F9: =IF(AND(iniTurma!G$2<>"",iniTurma!G9<>""),(iniTurma!G9-iniTurma!G$1)/iniTurma!G$2,"") -> 1.668115312 | G9: =IF(AND(iniTurma!H$2<>"",iniTurma!H9<>""),(iniTurma!H9-iniTurma!H$1)/iniTurma!H$2,"") -> -0.4416644565 | H9: =IF(AND(iniTurma!I$2<>"",iniTurma!I9<>""),(iniTurma!I9-iniTurma!I$1)/iniTurma!I$2,"") -> -0.702984227 | I9: =IF(AND(iniTurma!J$2<>"",iniTurma!J9<>""),(iniTurma!J9-iniTurma!J$1)/iniTurma!J$2,"") -> 1.069956232 | J9: =IF(AND(iniTurma!K$2<>"",iniTurma!K9<>""),(iniTurma!K9-iniTurma!K$1)/iniTurma!K$2,"") -> -1.058352896 | K9: =IF(AND(iniTurma!L$2<>"",iniTurma!L9<>""),(iniTurma!L9-iniTurma!L$1)/iniTurma!L$2,"") ->  | L9: =IF(AND(iniTurma!M$2<>"",iniTurma!M9<>""),(iniTurma!M9-iniTurma!M$1)/iniTurma!M$2,"") -> 
A10: =IF(iniTurma!B10<>"",iniTurma!B10,"") ->  | B10: =iniTurma!A10 -> 7 | C10: =IF(iniTurma!C10<>"",iniTurma!C10,"") -> Asterix | D10: =IF(iniTurma!D10<>"",iniTurma!D10,"") -> 16 | E10: =IF(AND(iniTurma!F$2<>"",iniTurma!F10<>""),(iniTurma!F10-iniTurma!F$1)/iniTurma!F$2,"") -> -1.604374961 | F10: =IF(AND(iniTurma!G$2<>"",iniTurma!G10<>""),(iniTurma!G10-iniTurma!G$1)/iniTurma!G$2,"") -> -0.2085144141 | G10: =IF(AND(iniTurma!H$2<>"",iniTurma!H10<>""),(iniTurma!H10-iniTurma!H$1)/iniTurma!H$2,"") -> 1.054295799 | H10: =IF(AND(iniTurma!I$2<>"",iniTurma!I10<>""),(iniTurma!I10-iniTurma!I$1)/iniTurma!I$2,"") -> 1.504059276 | I10: =IF(AND(iniTurma!J$2<>"",iniTurma!J10<>""),(iniTurma!J10-iniTurma!J$1)/iniTurma!J$2,"") -> -1.00701763 | J10: =IF(AND(iniTurma!K$2<>"",iniTurma!K10<>""),(iniTurma!K10-iniTurma!K$1)/iniTurma!K$2,"") -> -0.6209165673 | K10: =IF(AND(iniTurma!L$2<>"",iniTurma!L10<>""),(iniTurma!L10-iniTurma!L$1)/iniTurma!L$2,"") ->  | L10: =IF(AND(iniTurma!M$2<>"",iniTurma!M10<>""),(iniTurma!M10-iniTurma!M$1)/iniTurma!M$2,"") -> 
A11: =IF(iniTurma!B11<>"",iniTurma!B11,"") ->  | B11: =iniTurma!A11 -> 8 | C11: =IF(iniTurma!C11<>"",iniTurma!C11,"") -> Obelix | D11: =IF(iniTurma!D11<>"",iniTurma!D11,"") -> 14 | E11: =IF(AND(iniTurma!F$2<>"",iniTurma!F11<>""),(iniTurma!F11-iniTurma!F$1)/iniTurma!F$2,"") -> 1.591419039 | F11: =IF(AND(iniTurma!G$2<>"",iniTurma!G11<>""),(iniTurma!G11-iniTurma!G$1)/iniTurma!G$2,"") -> -0.8340576562 | G11: =IF(AND(iniTurma!H$2<>"",iniTurma!H11<>""),(iniTurma!H11-iniTurma!H$1)/iniTurma!H$2,"") -> 2.42203089 | H11: =IF(AND(iniTurma!I$2<>"",iniTurma!I11<>""),(iniTurma!I11-iniTurma!I$1)/iniTurma!I$2,"") -> -0.702984227 | I11: =IF(AND(iniTurma!J$2<>"",iniTurma!J11<>""),(iniTurma!J11-iniTurma!J$1)/iniTurma!J$2,"") -> -0.08391813583 | J11: =IF(AND(iniTurma!K$2<>"",iniTurma!K11<>""),(iniTurma!K11-iniTurma!K$1)/iniTurma!K$2,"") -> 1.639171134 | K11: =IF(AND(iniTurma!L$2<>"",iniTurma!L11<>""),(iniTurma!L11-iniTurma!L$1)/iniTurma!L$2,"") ->  | L11: =IF(AND(iniTurma!M$2<>"",iniTurma!M11<>""),(iniTurma!M11-iniTurma!M$1)/iniTurma!M$2,"") -> 
A12: =IF(iniTurma!B12<>"",iniTurma!B12,"") ->  | B12: =iniTurma!A12 -> 9 | C12: =IF(iniTurma!C12<>"",iniTurma!C12,"") -> Ideiafix | D12: =IF(iniTurma!D12<>"",iniTurma!D12,"") -> 13 | E12: =IF(AND(iniTurma!F$2<>"",iniTurma!F12<>""),(iniTurma!F12-iniTurma!F$1)/iniTurma!F$2,"") -> 0.9868093634 | F12: =IF(AND(iniTurma!G$2<>"",iniTurma!G12<>""),(iniTurma!G12-iniTurma!G$1)/iniTurma!G$2,"") -> 0.4170288281 | G12: =IF(AND(iniTurma!H$2<>"",iniTurma!H12<>""),(iniTurma!H12-iniTurma!H$1)/iniTurma!H$2,"") -> 0.8405871914 | H12: =IF(AND(iniTurma!I$2<>"",iniTurma!I12<>""),(iniTurma!I12-iniTurma!I$1)/iniTurma!I$2,"") -> -0.4577571711 | I12: =IF(AND(iniTurma!J$2<>"",iniTurma!J12<>""),(iniTurma!J12-iniTurma!J$1)/iniTurma!J$2,"") -> -0.3146930094 | J12: =IF(AND(iniTurma!K$2<>"",iniTurma!K12<>""),(iniTurma!K12-iniTurma!K$1)/iniTurma!K$2,"") -> 0.1810500362 | K12: =IF(AND(iniTurma!L$2<>"",iniTurma!L12<>""),(iniTurma!L12-iniTurma!L$1)/iniTurma!L$2,"") ->  | L12: =IF(AND(iniTurma!M$2<>"",iniTurma!M12<>""),(iniTurma!M12-iniTurma!M$1)/iniTurma!M$2,"") -> 
A13: =IF(iniTurma!B13<>"",iniTurma!B13,"") ->  | B13: =iniTurma!A13 -> 10 | C13: =IF(iniTurma!C13<>"",iniTurma!C13,"") -> Sylvie Vartan | D13: =IF(iniTurma!D13<>"",iniTurma!D13,"") -> 13 | E13: =IF(AND(iniTurma!F$2<>"",iniTurma!F13<>""),(iniTurma!F13-iniTurma!F$1)/iniTurma!F$2,"") -> -0.3087827986 | F13: =IF(AND(iniTurma!G$2<>"",iniTurma!G13<>""),(iniTurma!G13-iniTurma!G$1)/iniTurma!G$2,"") -> 1.04257207 | G13: =IF(AND(iniTurma!H$2<>"",iniTurma!H13<>""),(iniTurma!H13-iniTurma!H$1)/iniTurma!H$2,"") -> -0.7408565077 | H13: =IF(AND(iniTurma!I$2<>"",iniTurma!I13<>""),(iniTurma!I13-iniTurma!I$1)/iniTurma!I$2,"") -> 0.2779239967 | I13: =IF(AND(iniTurma!J$2<>"",iniTurma!J13<>""),(iniTurma!J13-iniTurma!J$1)/iniTurma!J$2,"") -> 1.762280852 | J13: =IF(AND(iniTurma!K$2<>"",iniTurma!K13<>""),(iniTurma!K13-iniTurma!K$1)/iniTurma!K$2,"") -> 2.222419572 | K13: =IF(AND(iniTurma!L$2<>"",iniTurma!L13<>""),(iniTurma!L13-iniTurma!L$1)/iniTurma!L$2,"") ->  | L13: =IF(AND(iniTurma!M$2<>"",iniTurma!M13<>""),(iniTurma!M13-iniTurma!M$1)/iniTurma!M$2,"") -> 
A14: =IF(iniTurma!B14<>"",iniTurma!B14,"") ->  | B14: =iniTurma!A14 -> 11 | C14: =IF(iniTurma!C14<>"",iniTurma!C14,"") -> Carlos Lopes | D14: =IF(iniTurma!D14<>"",iniTurma!D14,"") -> 14 | E14: =IF(AND(iniTurma!F$2<>"",iniTurma!F14<>""),(iniTurma!F14-iniTurma!F$1)/iniTurma!F$2,"") -> 0.1230812554 | F14: =IF(AND(iniTurma!G$2<>"",iniTurma!G14<>""),(iniTurma!G14-iniTurma!G$1)/iniTurma!G$2,"") -> -2.085144141 | G14: =IF(AND(iniTurma!H$2<>"",iniTurma!H14<>""),(iniTurma!H14-iniTurma!H$1)/iniTurma!H$2,"") -> -0.3134392917 | H14: =IF(AND(iniTurma!I$2<>"",iniTurma!I14<>""),(iniTurma!I14-iniTurma!I$1)/iniTurma!I$2,"") -> 0.5231510527 | I14: =IF(AND(iniTurma!J$2<>"",iniTurma!J14<>""),(iniTurma!J14-iniTurma!J$1)/iniTurma!J$2,"") -> 0.8391813583 | J14: =IF(AND(iniTurma!K$2<>"",iniTurma!K14<>""),(iniTurma!K14-iniTurma!K$1)/iniTurma!K$2,"") -> 0.7642984751 | K14: =IF(AND(iniTurma!L$2<>"",iniTurma!L14<>""),(iniTurma!L14-iniTurma!L$1)/iniTurma!L$2,"") ->  | L14: =IF(AND(iniTurma!M$2<>"",iniTurma!M14<>""),(iniTurma!M14-iniTurma!M$1)/iniTurma!M$2,"") -> 
A15: =IF(iniTurma!B15<>"",iniTurma!B15,"") ->  | B15: =iniTurma!A15 -> 12 | C15: =IF(iniTurma!C15<>"",iniTurma!C15,"") -> Rosa Mota | D15: =IF(iniTurma!D15<>"",iniTurma!D15,"") -> 14 | E15: =IF(AND(iniTurma!F$2<>"",iniTurma!F15<>""),(iniTurma!F15-iniTurma!F$1)/iniTurma!F$2,"") -> 0.6413181202 | F15: =IF(AND(iniTurma!G$2<>"",iniTurma!G15<>""),(iniTurma!G15-iniTurma!G$1)/iniTurma!G$2,"") -> -0.8340576562 | G15: =IF(AND(iniTurma!H$2<>"",iniTurma!H15<>""),(iniTurma!H15-iniTurma!H$1)/iniTurma!H$2,"") -> 0.1139779243 | H15: =IF(AND(iniTurma!I$2<>"",iniTurma!I15<>""),(iniTurma!I15-iniTurma!I$1)/iniTurma!I$2,"") -> -0.6048934047 | I15: =IF(AND(iniTurma!J$2<>"",iniTurma!J15<>""),(iniTurma!J15-iniTurma!J$1)/iniTurma!J$2,"") -> 1.069956232 | J15: =IF(AND(iniTurma!K$2<>"",iniTurma!K15<>""),(iniTurma!K15-iniTurma!K$1)/iniTurma!K$2,"") -> -0.6938226221 | K15: =IF(AND(iniTurma!L$2<>"",iniTurma!L15<>""),(iniTurma!L15-iniTurma!L$1)/iniTurma!L$2,"") ->  | L15: =IF(AND(iniTurma!M$2<>"",iniTurma!M15<>""),(iniTurma!M15-iniTurma!M$1)/iniTurma!M$2,"") -> 
A16: =IF(iniTurma!B16<>"",iniTurma!B16,"") ->  | B16: =iniTurma!A16 -> 13 | C16: =IF(iniTurma!C16<>"",iniTurma!C16,"") ->  | D16: =IF(iniTurma!D16<>"",iniTurma!D16,"") ->  | E16: =IF(AND(iniTurma!F$2<>"",iniTurma!F16<>""),(iniTurma!F16-iniTurma!F$1)/iniTurma!F$2,"") ->  | F16: =IF(AND(iniTurma!G$2<>"",iniTurma!G16<>""),(iniTurma!G16-iniTurma!G$1)/iniTurma!G$2,"") ->  | G16: =IF(AND(iniTurma!H$2<>"",iniTurma!H16<>""),(iniTurma!H16-iniTurma!H$1)/iniTurma!H$2,"") ->  | H16: =IF(AND(iniTurma!I$2<>"",iniTurma!I16<>""),(iniTurma!I16-iniTurma!I$1)/iniTurma!I$2,"") ->  | I16: =IF(AND(iniTurma!J$2<>"",iniTurma!J16<>""),(iniTurma!J16-iniTurma!J$1)/iniTurma!J$2,"") ->  | J16: =IF(AND(iniTurma!K$2<>"",iniTurma!K16<>""),(iniTurma!K16-iniTurma!K$1)/iniTurma!K$2,"") ->  | K16: =IF(AND(iniTurma!L$2<>"",iniTurma!L16<>""),(iniTurma!L16-iniTurma!L$1)/iniTurma!L$2,"") ->  | L16: =IF(AND(iniTurma!M$2<>"",iniTurma!M16<>""),(iniTurma!M16-iniTurma!M$1)/iniTurma!M$2,"") -> 
A17: =IF(iniTurma!B17<>"",iniTurma!B17,"") ->  | B17: =iniTurma!A17 -> 14 | C17: =IF(iniTurma!C17<>"",iniTurma!C17,"") ->  | D17: =IF(iniTurma!D17<>"",iniTurma!D17,"") ->  | E17: =IF(AND(iniTurma!F$2<>"",iniTurma!F17<>""),(iniTurma!F17-iniTurma!F$1)/iniTurma!F$2,"") ->  | F17: =IF(AND(iniTurma!G$2<>"",iniTurma!G17<>""),(iniTurma!G17-iniTurma!G$1)/iniTurma!G$2,"") ->  | G17: =IF(AND(iniTurma!H$2<>"",iniTurma!H17<>""),(iniTurma!H17-iniTurma!H$1)/iniTurma!H$2,"") ->  | H17: =IF(AND(iniTurma!I$2<>"",iniTurma!I17<>""),(iniTurma!I17-iniTurma!I$1)/iniTurma!I$2,"") ->  | I17: =IF(AND(iniTurma!J$2<>"",iniTurma!J17<>""),(iniTurma!J17-iniTurma!J$1)/iniTurma!J$2,"") ->  | J17: =IF(AND(iniTurma!K$2<>"",iniTurma!K17<>""),(iniTurma!K17-iniTurma!K$1)/iniTurma!K$2,"") ->  | K17: =IF(AND(iniTurma!L$2<>"",iniTurma!L17<>""),(iniTurma!L17-iniTurma!L$1)/iniTurma!L$2,"") ->  | L17: =IF(AND(iniTurma!M$2<>"",iniTurma!M17<>""),(iniTurma!M17-iniTurma!M$1)/iniTurma!M$2,"") -> 
A18: =IF(iniTurma!B18<>"",iniTurma!B18,"") ->  | B18: =iniTurma!A18 -> 15 | C18: =IF(iniTurma!C18<>"",iniTurma!C18,"") ->  | D18: =IF(iniTurma!D18<>"",iniTurma!D18,"") ->  | E18: =IF(AND(iniTurma!F$2<>"",iniTurma!F18<>""),(iniTurma!F18-iniTurma!F$1)/iniTurma!F$2,"") ->  | F18: =IF(AND(iniTurma!G$2<>"",iniTurma!G18<>""),(iniTurma!G18-iniTurma!G$1)/iniTurma!G$2,"") ->  | G18: =IF(AND(iniTurma!H$2<>"",iniTurma!H18<>""),(iniTurma!H18-iniTurma!H$1)/iniTurma!H$2,"") ->  | H18: =IF(AND(iniTurma!I$2<>"",iniTurma!I18<>""),(iniTurma!I18-iniTurma!I$1)/iniTurma!I$2,"") ->  | I18: =IF(AND(iniTurma!J$2<>"",iniTurma!J18<>""),(iniTurma!J18-iniTurma!J$1)/iniTurma!J$2,"") ->  | J18: =IF(AND(iniTurma!K$2<>"",iniTurma!K18<>""),(iniTurma!K18-iniTurma!K$1)/iniTurma!K$2,"") ->  | K18: =IF(AND(iniTurma!L$2<>"",iniTurma!L18<>""),(iniTurma!L18-iniTurma!L$1)/iniTurma!L$2,"") ->  | L18: =IF(AND(iniTurma!M$2<>"",iniTurma!M18<>""),(iniTurma!M18-iniTurma!M$1)/iniTurma!M$2,"") -> 
A19: =IF(iniTurma!B19<>"",iniTurma!B19,"") ->  | B19: =iniTurma!A19 -> 16 | C19: =IF(iniTurma!C19<>"",iniTurma!C19,"") ->  | D19: =IF(iniTurma!D19<>"",iniTurma!D19,"") ->  | E19: =IF(AND(iniTurma!F$2<>"",iniTurma!F19<>""),(iniTurma!F19-iniTurma!F$1)/iniTurma!F$2,"") ->  | F19: =IF(AND(iniTurma!G$2<>"",iniTurma!G19<>""),(iniTurma!G19-iniTurma!G$1)/iniTurma!G$2,"") ->  | G19: =IF(AND(iniTurma!H$2<>"",iniTurma!H19<>""),(iniTurma!H19-iniTurma!H$1)/iniTurma!H$2,"") ->  | H19: =IF(AND(iniTurma!I$2<>"",iniTurma!I19<>""),(iniTurma!I19-iniTurma!I$1)/iniTurma!I$2,"") ->  | I19: =IF(AND(iniTurma!J$2<>"",iniTurma!J19<>""),(iniTurma!J19-iniTurma!J$1)/iniTurma!J$2,"") ->  | J19: =IF(AND(iniTurma!K$2<>"",iniTurma!K19<>""),(iniTurma!K19-iniTurma!K$1)/iniTurma!K$2,"") ->  | K19: =IF(AND(iniTurma!L$2<>"",iniTurma!L19<>""),(iniTurma!L19-iniTurma!L$1)/iniTurma!L$2,"") ->  | L19: =IF(AND(iniTurma!M$2<>"",iniTurma!M19<>""),(iniTurma!M19-iniTurma!M$1)/iniTurma!M$2,"") -> 
A20: =IF(iniTurma!B20<>"",iniTurma!B20,"") ->  | B20: =iniTurma!A20 -> 17 | C20: =IF(iniTurma!C20<>"",iniTurma!C20,"") ->  | D20: =IF(iniTurma!D20<>"",iniTurma!D20,"") ->  | E20: =IF(AND(iniTurma!F$2<>"",iniTurma!F20<>""),(iniTurma!F20-iniTurma!F$1)/iniTurma!F$2,"") ->  | F20: =IF(AND(iniTurma!G$2<>"",iniTurma!G20<>""),(iniTurma!G20-iniTurma!G$1)/iniTurma!G$2,"") ->  | G20: =IF(AND(iniTurma!H$2<>"",iniTurma!H20<>""),(iniTurma!H20-iniTurma!H$1)/iniTurma!H$2,"") ->  | H20: =IF(AND(iniTurma!I$2<>"",iniTurma!I20<>""),(iniTurma!I20-iniTurma!I$1)/iniTurma!I$2,"") ->  | I20: =IF(AND(iniTurma!J$2<>"",iniTurma!J20<>""),(iniTurma!J20-iniTurma!J$1)/iniTurma!J$2,"") ->  | J20: =IF(AND(iniTurma!K$2<>"",iniTurma!K20<>""),(iniTurma!K20-iniTurma!K$1)/iniTurma!K$2,"") ->  | K20: =IF(AND(iniTurma!L$2<>"",iniTurma!L20<>""),(iniTurma!L20-iniTurma!L$1)/iniTurma!L$2,"") ->  | L20: =IF(AND(iniTurma!M$2<>"",iniTurma!M20<>""),(iniTurma!M20-iniTurma!M$1)/iniTurma!M$2,"") -> 
A21: =IF(iniTurma!B21<>"",iniTurma!B21,"") ->  | B21: =iniTurma!A21 -> 18 | C21: =IF(iniTurma!C21<>"",iniTurma!C21,"") ->  | D21: =IF(iniTurma!D21<>"",iniTurma!D21,"") ->  | E21: =IF(AND(iniTurma!F$2<>"",iniTurma!F21<>""),(iniTurma!F21-iniTurma!F$1)/iniTurma!F$2,"") ->  | F21: =IF(AND(iniTurma!G$2<>"",iniTurma!G21<>""),(iniTurma!G21-iniTurma!G$1)/iniTurma!G$2,"") ->  | G21: =IF(AND(iniTurma!H$2<>"",iniTurma!H21<>""),(iniTurma!H21-iniTurma!H$1)/iniTurma!H$2,"") ->  | H21: =IF(AND(iniTurma!I$2<>"",iniTurma!I21<>""),(iniTurma!I21-iniTurma!I$1)/iniTurma!I$2,"") ->  | I21: =IF(AND(iniTurma!J$2<>"",iniTurma!J21<>""),(iniTurma!J21-iniTurma!J$1)/iniTurma!J$2,"") ->  | J21: =IF(AND(iniTurma!K$2<>"",iniTurma!K21<>""),(iniTurma!K21-iniTurma!K$1)/iniTurma!K$2,"") ->  | K21: =IF(AND(iniTurma!L$2<>"",iniTurma!L21<>""),(iniTurma!L21-iniTurma!L$1)/iniTurma!L$2,"") ->  | L21: =IF(AND(iniTurma!M$2<>"",iniTurma!M21<>""),(iniTurma!M21-iniTurma!M$1)/iniTurma!M$2,"") -> 
A22: =IF(iniTurma!B22<>"",iniTurma!B22,"") ->  | B22: =iniTurma!A22 -> 19 | C22: =IF(iniTurma!C22<>"",iniTurma!C22,"") ->  | D22: =IF(iniTurma!D22<>"",iniTurma!D22,"") ->  | E22: =IF(AND(iniTurma!F$2<>"",iniTurma!F22<>""),(iniTurma!F22-iniTurma!F$1)/iniTurma!F$2,"") ->  | F22: =IF(AND(iniTurma!G$2<>"",iniTurma!G22<>""),(iniTurma!G22-iniTurma!G$1)/iniTurma!G$2,"") ->  | G22: =IF(AND(iniTurma!H$2<>"",iniTurma!H22<>""),(iniTurma!H22-iniTurma!H$1)/iniTurma!H$2,"") ->  | H22: =IF(AND(iniTurma!I$2<>"",iniTurma!I22<>""),(iniTurma!I22-iniTurma!I$1)/iniTurma!I$2,"") ->  | I22: =IF(AND(iniTurma!J$2<>"",iniTurma!J22<>""),(iniTurma!J22-iniTurma!J$1)/iniTurma!J$2,"") ->  | J22: =IF(AND(iniTurma!K$2<>"",iniTurma!K22<>""),(iniTurma!K22-iniTurma!K$1)/iniTurma!K$2,"") ->  | K22: =IF(AND(iniTurma!L$2<>"",iniTurma!L22<>""),(iniTurma!L22-iniTurma!L$1)/iniTurma!L$2,"") ->  | L22: =IF(AND(iniTurma!M$2<>"",iniTurma!M22<>""),(iniTurma!M22-iniTurma!M$1)/iniTurma!M$2,"") -> 
A23: =IF(iniTurma!B23<>"",iniTurma!B23,"") ->  | B23: =iniTurma!A23 -> 20 | C23: =IF(iniTurma!C23<>"",iniTurma!C23,"") ->  | D23: =IF(iniTurma!D23<>"",iniTurma!D23,"") ->  | E23: =IF(AND(iniTurma!F$2<>"",iniTurma!F23<>""),(iniTurma!F23-iniTurma!F$1)/iniTurma!F$2,"") ->  | F23: =IF(AND(iniTurma!G$2<>"",iniTurma!G23<>""),(iniTurma!G23-iniTurma!G$1)/iniTurma!G$2,"") ->  | G23: =IF(AND(iniTurma!H$2<>"",iniTurma!H23<>""),(iniTurma!H23-iniTurma!H$1)/iniTurma!H$2,"") ->  | H23: =IF(AND(iniTurma!I$2<>"",iniTurma!I23<>""),(iniTurma!I23-iniTurma!I$1)/iniTurma!I$2,"") ->  | I23: =IF(AND(iniTurma!J$2<>"",iniTurma!J23<>""),(iniTurma!J23-iniTurma!J$1)/iniTurma!J$2,"") ->  | J23: =IF(AND(iniTurma!K$2<>"",iniTurma!K23<>""),(iniTurma!K23-iniTurma!K$1)/iniTurma!K$2,"") ->  | K23: =IF(AND(iniTurma!L$2<>"",iniTurma!L23<>""),(iniTurma!L23-iniTurma!L$1)/iniTurma!L$2,"") ->  | L23: =IF(AND(iniTurma!M$2<>"",iniTurma!M23<>""),(iniTurma!M23-iniTurma!M$1)/iniTurma!M$2,"") -> 
A24: =IF(iniTurma!B24<>"",iniTurma!B24,"") ->  | B24: =iniTurma!A24 -> 21 | C24: =IF(iniTurma!C24<>"",iniTurma!C24,"") ->  | D24: =IF(iniTurma!D24<>"",iniTurma!D24,"") ->  | E24: =IF(AND(iniTurma!F$2<>"",iniTurma!F24<>""),(iniTurma!F24-iniTurma!F$1)/iniTurma!F$2,"") ->  | F24: =IF(AND(iniTurma!G$2<>"",iniTurma!G24<>""),(iniTurma!G24-iniTurma!G$1)/iniTurma!G$2,"") ->  | G24: =IF(AND(iniTurma!H$2<>"",iniTurma!H24<>""),(iniTurma!H24-iniTurma!H$1)/iniTurma!H$2,"") ->  | H24: =IF(AND(iniTurma!I$2<>"",iniTurma!I24<>""),(iniTurma!I24-iniTurma!I$1)/iniTurma!I$2,"") ->  | I24: =IF(AND(iniTurma!J$2<>"",iniTurma!J24<>""),(iniTurma!J24-iniTurma!J$1)/iniTurma!J$2,"") ->  | J24: =IF(AND(iniTurma!K$2<>"",iniTurma!K24<>""),(iniTurma!K24-iniTurma!K$1)/iniTurma!K$2,"") ->  | K24: =IF(AND(iniTurma!L$2<>"",iniTurma!L24<>""),(iniTurma!L24-iniTurma!L$1)/iniTurma!L$2,"") ->  | L24: =IF(AND(iniTurma!M$2<>"",iniTurma!M24<>""),(iniTurma!M24-iniTurma!M$1)/iniTurma!M$2,"") -> 
A25: =IF(iniTurma!B25<>"",iniTurma!B25,"") ->  | B25: =iniTurma!A25 -> 22 | C25: =IF(iniTurma!C25<>"",iniTurma!C25,"") ->  | D25: =IF(iniTurma!D25<>"",iniTurma!D25,"") ->  | E25: =IF(AND(iniTurma!F$2<>"",iniTurma!F25<>""),(iniTurma!F25-iniTurma!F$1)/iniTurma!F$2,"") ->  | F25: =IF(AND(iniTurma!G$2<>"",iniTurma!G25<>""),(iniTurma!G25-iniTurma!G$1)/iniTurma!G$2,"") ->  | G25: =IF(AND(iniTurma!H$2<>"",iniTurma!H25<>""),(iniTurma!H25-iniTurma!H$1)/iniTurma!H$2,"") ->  | H25: =IF(AND(iniTurma!I$2<>"",iniTurma!I25<>""),(iniTurma!I25-iniTurma!I$1)/iniTurma!I$2,"") ->  | I25: =IF(AND(iniTurma!J$2<>"",iniTurma!J25<>""),(iniTurma!J25-iniTurma!J$1)/iniTurma!J$2,"") ->  | J25: =IF(AND(iniTurma!K$2<>"",iniTurma!K25<>""),(iniTurma!K25-iniTurma!K$1)/iniTurma!K$2,"") ->  | K25: =IF(AND(iniTurma!L$2<>"",iniTurma!L25<>""),(iniTurma!L25-iniTurma!L$1)/iniTurma!L$2,"") ->  | L25: =IF(AND(iniTurma!M$2<>"",iniTurma!M25<>""),(iniTurma!M25-iniTurma!M$1)/iniTurma!M$2,"") -> 
A26: =IF(iniTurma!B26<>"",iniTurma!B26,"") ->  | B26: =iniTurma!A26 -> 23 | C26: =IF(iniTurma!C26<>"",iniTurma!C26,"") ->  | D26: =IF(iniTurma!D26<>"",iniTurma!D26,"") ->  | E26: =IF(AND(iniTurma!F$2<>"",iniTurma!F26<>""),(iniTurma!F26-iniTurma!F$1)/iniTurma!F$2,"") ->  | F26: =IF(AND(iniTurma!G$2<>"",iniTurma!G26<>""),(iniTurma!G26-iniTurma!G$1)/iniTurma!G$2,"") ->  | G26: =IF(AND(iniTurma!H$2<>"",iniTurma!H26<>""),(iniTurma!H26-iniTurma!H$1)/iniTurma!H$2,"") ->  | H26: =IF(AND(iniTurma!I$2<>"",iniTurma!I26<>""),(iniTurma!I26-iniTurma!I$1)/iniTurma!I$2,"") ->  | I26: =IF(AND(iniTurma!J$2<>"",iniTurma!J26<>""),(iniTurma!J26-iniTurma!J$1)/iniTurma!J$2,"") ->  | J26: =IF(AND(iniTurma!K$2<>"",iniTurma!K26<>""),(iniTurma!K26-iniTurma!K$1)/iniTurma!K$2,"") ->  | K26: =IF(AND(iniTurma!L$2<>"",iniTurma!L26<>""),(iniTurma!L26-iniTurma!L$1)/iniTurma!L$2,"") ->  | L26: =IF(AND(iniTurma!M$2<>"",iniTurma!M26<>""),(iniTurma!M26-iniTurma!M$1)/iniTurma!M$2,"") -> 
A27: =IF(iniTurma!B27<>"",iniTurma!B27,"") ->  | B27: =iniTurma!A27 -> 24 | C27: =IF(iniTurma!C27<>"",iniTurma!C27,"") ->  | D27: =IF(iniTurma!D27<>"",iniTurma!D27,"") ->  | E27: =IF(AND(iniTurma!F$2<>"",iniTurma!F27<>""),(iniTurma!F27-iniTurma!F$1)/iniTurma!F$2,"") ->  | F27: =IF(AND(iniTurma!G$2<>"",iniTurma!G27<>""),(iniTurma!G27-iniTurma!G$1)/iniTurma!G$2,"") ->  | G27: =IF(AND(iniTurma!H$2<>"",iniTurma!H27<>""),(iniTurma!H27-iniTurma!H$1)/iniTurma!H$2,"") ->  | H27: =IF(AND(iniTurma!I$2<>"",iniTurma!I27<>""),(iniTurma!I27-iniTurma!I$1)/iniTurma!I$2,"") ->  | I27: =IF(AND(iniTurma!J$2<>"",iniTurma!J27<>""),(iniTurma!J27-iniTurma!J$1)/iniTurma!J$2,"") ->  | J27: =IF(AND(iniTurma!K$2<>"",iniTurma!K27<>""),(iniTurma!K27-iniTurma!K$1)/iniTurma!K$2,"") ->  | K27: =IF(AND(iniTurma!L$2<>"",iniTurma!L27<>""),(iniTurma!L27-iniTurma!L$1)/iniTurma!L$2,"") ->  | L27: =IF(AND(iniTurma!M$2<>"",iniTurma!M27<>""),(iniTurma!M27-iniTurma!M$1)/iniTurma!M$2,"") -> 
A28: =IF(iniTurma!B28<>"",iniTurma!B28,"") ->  | B28: =iniTurma!A28 -> 25 | C28: =IF(iniTurma!C28<>"",iniTurma!C28,"") ->  | D28: =IF(iniTurma!D28<>"",iniTurma!D28,"") ->  | E28: =IF(AND(iniTurma!F$2<>"",iniTurma!F28<>""),(iniTurma!F28-iniTurma!F$1)/iniTurma!F$2,"") ->  | F28: =IF(AND(iniTurma!G$2<>"",iniTurma!G28<>""),(iniTurma!G28-iniTurma!G$1)/iniTurma!G$2,"") ->  | G28: =IF(AND(iniTurma!H$2<>"",iniTurma!H28<>""),(iniTurma!H28-iniTurma!H$1)/iniTurma!H$2,"") ->  | H28: =IF(AND(iniTurma!I$2<>"",iniTurma!I28<>""),(iniTurma!I28-iniTurma!I$1)/iniTurma!I$2,"") ->  | I28: =IF(AND(iniTurma!J$2<>"",iniTurma!J28<>""),(iniTurma!J28-iniTurma!J$1)/iniTurma!J$2,"") ->  | J28: =IF(AND(iniTurma!K$2<>"",iniTurma!K28<>""),(iniTurma!K28-iniTurma!K$1)/iniTurma!K$2,"") ->  | K28: =IF(AND(iniTurma!L$2<>"",iniTurma!L28<>""),(iniTurma!L28-iniTurma!L$1)/iniTurma!L$2,"") ->  | L28: =IF(AND(iniTurma!M$2<>"",iniTurma!M28<>""),(iniTurma!M28-iniTurma!M$1)/iniTurma!M$2,"") -> 
A29: =IF(iniTurma!B29<>"",iniTurma!B29,"") ->  | B29: =iniTurma!A29 -> 26 | C29: =IF(iniTurma!C29<>"",iniTurma!C29,"") ->  | D29: =IF(iniTurma!D29<>"",iniTurma!D29,"") ->  | E29: =IF(AND(iniTurma!F$2<>"",iniTurma!F29<>""),(iniTurma!F29-iniTurma!F$1)/iniTurma!F$2,"") ->  | F29: =IF(AND(iniTurma!G$2<>"",iniTurma!G29<>""),(iniTurma!G29-iniTurma!G$1)/iniTurma!G$2,"") ->  | G29: =IF(AND(iniTurma!H$2<>"",iniTurma!H29<>""),(iniTurma!H29-iniTurma!H$1)/iniTurma!H$2,"") ->  | H29: =IF(AND(iniTurma!I$2<>"",iniTurma!I29<>""),(iniTurma!I29-iniTurma!I$1)/iniTurma!I$2,"") ->  | I29: =IF(AND(iniTurma!J$2<>"",iniTurma!J29<>""),(iniTurma!J29-iniTurma!J$1)/iniTurma!J$2,"") ->  | J29: =IF(AND(iniTurma!K$2<>"",iniTurma!K29<>""),(iniTurma!K29-iniTurma!K$1)/iniTurma!K$2,"") ->  | K29: =IF(AND(iniTurma!L$2<>"",iniTurma!L29<>""),(iniTurma!L29-iniTurma!L$1)/iniTurma!L$2,"") ->  | L29: =IF(AND(iniTurma!M$2<>"",iniTurma!M29<>""),(iniTurma!M29-iniTurma!M$1)/iniTurma!M$2,"") -> 
A30: =IF(iniTurma!B30<>"",iniTurma!B30,"") ->  | B30: =iniTurma!A30 -> 27 | C30: =IF(iniTurma!C30<>"",iniTurma!C30,"") ->  | D30: =IF(iniTurma!D30<>"",iniTurma!D30,"") ->  | E30: =IF(AND(iniTurma!F$2<>"",iniTurma!F30<>""),(iniTurma!F30-iniTurma!F$1)/iniTurma!F$2,"") ->  | F30: =IF(AND(iniTurma!G$2<>"",iniTurma!G30<>""),(iniTurma!G30-iniTurma!G$1)/iniTurma!G$2,"") ->  | G30: =IF(AND(iniTurma!H$2<>"",iniTurma!H30<>""),(iniTurma!H30-iniTurma!H$1)/iniTurma!H$2,"") ->  | H30: =IF(AND(iniTurma!I$2<>"",iniTurma!I30<>""),(iniTurma!I30-iniTurma!I$1)/iniTurma!I$2,"") ->  | I30: =IF(AND(iniTurma!J$2<>"",iniTurma!J30<>""),(iniTurma!J30-iniTurma!J$1)/iniTurma!J$2,"") ->  | J30: =IF(AND(iniTurma!K$2<>"",iniTurma!K30<>""),(iniTurma!K30-iniTurma!K$1)/iniTurma!K$2,"") ->  | K30: =IF(AND(iniTurma!L$2<>"",iniTurma!L30<>""),(iniTurma!L30-iniTurma!L$1)/iniTurma!L$2,"") ->  | L30: =IF(AND(iniTurma!M$2<>"",iniTurma!M30<>""),(iniTurma!M30-iniTurma!M$1)/iniTurma!M$2,"") -> 
A31: =IF(iniTurma!B31<>"",iniTurma!B31,"") ->  | B31: =iniTurma!A31 -> 28 | C31: =IF(iniTurma!C31<>"",iniTurma!C31,"") ->  | D31: =IF(iniTurma!D31<>"",iniTurma!D31,"") ->  | E31: =IF(AND(iniTurma!F$2<>"",iniTurma!F31<>""),(iniTurma!F31-iniTurma!F$1)/iniTurma!F$2,"") ->  | F31: =IF(AND(iniTurma!G$2<>"",iniTurma!G31<>""),(iniTurma!G31-iniTurma!G$1)/iniTurma!G$2,"") ->  | G31: =IF(AND(iniTurma!H$2<>"",iniTurma!H31<>""),(iniTurma!H31-iniTurma!H$1)/iniTurma!H$2,"") ->  | H31: =IF(AND(iniTurma!I$2<>"",iniTurma!I31<>""),(iniTurma!I31-iniTurma!I$1)/iniTurma!I$2,"") ->  | I31: =IF(AND(iniTurma!J$2<>"",iniTurma!J31<>""),(iniTurma!J31-iniTurma!J$1)/iniTurma!J$2,"") ->  | J31: =IF(AND(iniTurma!K$2<>"",iniTurma!K31<>""),(iniTurma!K31-iniTurma!K$1)/iniTurma!K$2,"") ->  | K31: =IF(AND(iniTurma!L$2<>"",iniTurma!L31<>""),(iniTurma!L31-iniTurma!L$1)/iniTurma!L$2,"") ->  | L31: =IF(AND(iniTurma!M$2<>"",iniTurma!M31<>""),(iniTurma!M31-iniTurma!M$1)/iniTurma!M$2,"") -> 
A32: =IF(iniTurma!B32<>"",iniTurma!B32,"") ->  | B32: =iniTurma!A32 -> 29 | C32: =IF(iniTurma!C32<>"",iniTurma!C32,"") ->  | D32: =IF(iniTurma!D32<>"",iniTurma!D32,"") ->  | E32: =IF(AND(iniTurma!F$2<>"",iniTurma!F32<>""),(iniTurma!F32-iniTurma!F$1)/iniTurma!F$2,"") ->  | F32: =IF(AND(iniTurma!G$2<>"",iniTurma!G32<>""),(iniTurma!G32-iniTurma!G$1)/iniTurma!G$2,"") ->  | G32: =IF(AND(iniTurma!H$2<>"",iniTurma!H32<>""),(iniTurma!H32-iniTurma!H$1)/iniTurma!H$2,"") ->  | H32: =IF(AND(iniTurma!I$2<>"",iniTurma!I32<>""),(iniTurma!I32-iniTurma!I$1)/iniTurma!I$2,"") ->  | I32: =IF(AND(iniTurma!J$2<>"",iniTurma!J32<>""),(iniTurma!J32-iniTurma!J$1)/iniTurma!J$2,"") ->  | J32: =IF(AND(iniTurma!K$2<>"",iniTurma!K32<>""),(iniTurma!K32-iniTurma!K$1)/iniTurma!K$2,"") ->  | K32: =IF(AND(iniTurma!L$2<>"",iniTurma!L32<>""),(iniTurma!L32-iniTurma!L$1)/iniTurma!L$2,"") ->  | L32: =IF(AND(iniTurma!M$2<>"",iniTurma!M32<>""),(iniTurma!M32-iniTurma!M$1)/iniTurma!M$2,"") -> 
A33: =IF(iniTurma!B33<>"",iniTurma!B33,"") ->  | B33: =iniTurma!A33 -> 30 | C33: =IF(iniTurma!C33<>"",iniTurma!C33,"") ->  | D33: =IF(iniTurma!D33<>"",iniTurma!D33,"") ->  | E33: =IF(AND(iniTurma!F$2<>"",iniTurma!F33<>""),(iniTurma!F33-iniTurma!F$1)/iniTurma!F$2,"") ->  | F33: =IF(AND(iniTurma!G$2<>"",iniTurma!G33<>""),(iniTurma!G33-iniTurma!G$1)/iniTurma!G$2,"") ->  | G33: =IF(AND(iniTurma!H$2<>"",iniTurma!H33<>""),(iniTurma!H33-iniTurma!H$1)/iniTurma!H$2,"") ->  | H33: =IF(AND(iniTurma!I$2<>"",iniTurma!I33<>""),(iniTurma!I33-iniTurma!I$1)/iniTurma!I$2,"") ->  | I33: =IF(AND(iniTurma!J$2<>"",iniTurma!J33<>""),(iniTurma!J33-iniTurma!J$1)/iniTurma!J$2,"") ->  | J33: =IF(AND(iniTurma!K$2<>"",iniTurma!K33<>""),(iniTurma!K33-iniTurma!K$1)/iniTurma!K$2,"") ->  | K33: =IF(AND(iniTurma!L$2<>"",iniTurma!L33<>""),(iniTurma!L33-iniTurma!L$1)/iniTurma!L$2,"") ->  | L33: =IF(AND(iniTurma!M$2<>"",iniTurma!M33<>""),(iniTurma!M33-iniTurma!M$1)/iniTurma!M$2,"") -> 
A34: =IF(iniTurma!B34<>"",iniTurma!B34,"") ->  | B34: =iniTurma!A34 -> 31 | C34: =IF(iniTurma!C34<>"",iniTurma!C34,"") ->  | D34: =IF(iniTurma!D34<>"",iniTurma!D34,"") ->  | E34: =IF(AND(iniTurma!F$2<>"",iniTurma!F34<>""),(iniTurma!F34-iniTurma!F$1)/iniTurma!F$2,"") ->  | F34: =IF(AND(iniTurma!G$2<>"",iniTurma!G34<>""),(iniTurma!G34-iniTurma!G$1)/iniTurma!G$2,"") ->  | G34: =IF(AND(iniTurma!H$2<>"",iniTurma!H34<>""),(iniTurma!H34-iniTurma!H$1)/iniTurma!H$2,"") ->  | H34: =IF(AND(iniTurma!I$2<>"",iniTurma!I34<>""),(iniTurma!I34-iniTurma!I$1)/iniTurma!I$2,"") ->  | I34: =IF(AND(iniTurma!J$2<>"",iniTurma!J34<>""),(iniTurma!J34-iniTurma!J$1)/iniTurma!J$2,"") ->  | J34: =IF(AND(iniTurma!K$2<>"",iniTurma!K34<>""),(iniTurma!K34-iniTurma!K$1)/iniTurma!K$2,"") ->  | K34: =IF(AND(iniTurma!L$2<>"",iniTurma!L34<>""),(iniTurma!L34-iniTurma!L$1)/iniTurma!L$2,"") ->  | L34: =IF(AND(iniTurma!M$2<>"",iniTurma!M34<>""),(iniTurma!M34-iniTurma!M$1)/iniTurma!M$2,"") -> 
A35: =IF(iniTurma!B35<>"",iniTurma!B35,"") ->  | B35: =iniTurma!A35 -> 32 | C35: =IF(iniTurma!C35<>"",iniTurma!C35,"") ->  | D35: =IF(iniTurma!D35<>"",iniTurma!D35,"") ->  | E35: =IF(AND(iniTurma!F$2<>"",iniTurma!F35<>""),(iniTurma!F35-iniTurma!F$1)/iniTurma!F$2,"") ->  | F35: =IF(AND(iniTurma!G$2<>"",iniTurma!G35<>""),(iniTurma!G35-iniTurma!G$1)/iniTurma!G$2,"") ->  | G35: =IF(AND(iniTurma!H$2<>"",iniTurma!H35<>""),(iniTurma!H35-iniTurma!H$1)/iniTurma!H$2,"") ->  | H35: =IF(AND(iniTurma!I$2<>"",iniTurma!I35<>""),(iniTurma!I35-iniTurma!I$1)/iniTurma!I$2,"") ->  | I35: =IF(AND(iniTurma!J$2<>"",iniTurma!J35<>""),(iniTurma!J35-iniTurma!J$1)/iniTurma!J$2,"") ->  | J35: =IF(AND(iniTurma!K$2<>"",iniTurma!K35<>""),(iniTurma!K35-iniTurma!K$1)/iniTurma!K$2,"") ->  | K35: =IF(AND(iniTurma!L$2<>"",iniTurma!L35<>""),(iniTurma!L35-iniTurma!L$1)/iniTurma!L$2,"") ->  | L35: =IF(AND(iniTurma!M$2<>"",iniTurma!M35<>""),(iniTurma!M35-iniTurma!M$1)/iniTurma!M$2,"") -> 
A36: =IF(iniTurma!B36<>"",iniTurma!B36,"") ->  | B36: =iniTurma!A36 -> 33 | C36: =IF(iniTurma!C36<>"",iniTurma!C36,"") ->  | D36: =IF(iniTurma!D36<>"",iniTurma!D36,"") ->  | E36: =IF(AND(iniTurma!F$2<>"",iniTurma!F36<>""),(iniTurma!F36-iniTurma!F$1)/iniTurma!F$2,"") ->  | F36: =IF(AND(iniTurma!G$2<>"",iniTurma!G36<>""),(iniTurma!G36-iniTurma!G$1)/iniTurma!G$2,"") ->  | G36: =IF(AND(iniTurma!H$2<>"",iniTurma!H36<>""),(iniTurma!H36-iniTurma!H$1)/iniTurma!H$2,"") ->  | H36: =IF(AND(iniTurma!I$2<>"",iniTurma!I36<>""),(iniTurma!I36-iniTurma!I$1)/iniTurma!I$2,"") ->  | I36: =IF(AND(iniTurma!J$2<>"",iniTurma!J36<>""),(iniTurma!J36-iniTurma!J$1)/iniTurma!J$2,"") ->  | J36: =IF(AND(iniTurma!K$2<>"",iniTurma!K36<>""),(iniTurma!K36-iniTurma!K$1)/iniTurma!K$2,"") ->  | K36: =IF(AND(iniTurma!L$2<>"",iniTurma!L36<>""),(iniTurma!L36-iniTurma!L$1)/iniTurma!L$2,"") ->  | L36: =IF(AND(iniTurma!M$2<>"",iniTurma!M36<>""),(iniTurma!M36-iniTurma!M$1)/iniTurma!M$2,"") -> 
A37: =IF(iniTurma!B37<>"",iniTurma!B37,"") ->  | B37: =iniTurma!A37 -> 34 | C37: =IF(iniTurma!C37<>"",iniTurma!C37,"") ->  | D37: =IF(iniTurma!D37<>"",iniTurma!D37,"") ->  | E37: =IF(AND(iniTurma!F$2<>"",iniTurma!F37<>""),(iniTurma!F37-iniTurma!F$1)/iniTurma!F$2,"") ->  | F37: =IF(AND(iniTurma!G$2<>"",iniTurma!G37<>""),(iniTurma!G37-iniTurma!G$1)/iniTurma!G$2,"") ->  | G37: =IF(AND(iniTurma!H$2<>"",iniTurma!H37<>""),(iniTurma!H37-iniTurma!H$1)/iniTurma!H$2,"") ->  | H37: =IF(AND(iniTurma!I$2<>"",iniTurma!I37<>""),(iniTurma!I37-iniTurma!I$1)/iniTurma!I$2,"") ->  | I37: =IF(AND(iniTurma!J$2<>"",iniTurma!J37<>""),(iniTurma!J37-iniTurma!J$1)/iniTurma!J$2,"") ->  | J37: =IF(AND(iniTurma!K$2<>"",iniTurma!K37<>""),(iniTurma!K37-iniTurma!K$1)/iniTurma!K$2,"") ->  | K37: =IF(AND(iniTurma!L$2<>"",iniTurma!L37<>""),(iniTurma!L37-iniTurma!L$1)/iniTurma!L$2,"") ->  | L37: =IF(AND(iniTurma!M$2<>"",iniTurma!M37<>""),(iniTurma!M37-iniTurma!M$1)/iniTurma!M$2,"") -> 
A38: =IF(iniTurma!B38<>"",iniTurma!B38,"") ->  | B38: =iniTurma!A38 -> 35 | C38: =IF(iniTurma!C38<>"",iniTurma!C38,"") ->  | D38: =IF(iniTurma!D38<>"",iniTurma!D38,"") ->  | E38: =IF(AND(iniTurma!F$2<>"",iniTurma!F38<>""),(iniTurma!F38-iniTurma!F$1)/iniTurma!F$2,"") ->  | F38: =IF(AND(iniTurma!G$2<>"",iniTurma!G38<>""),(iniTurma!G38-iniTurma!G$1)/iniTurma!G$2,"") ->  | G38: =IF(AND(iniTurma!H$2<>"",iniTurma!H38<>""),(iniTurma!H38-iniTurma!H$1)/iniTurma!H$2,"") ->  | H38: =IF(AND(iniTurma!I$2<>"",iniTurma!I38<>""),(iniTurma!I38-iniTurma!I$1)/iniTurma!I$2,"") ->  | I38: =IF(AND(iniTurma!J$2<>"",iniTurma!J38<>""),(iniTurma!J38-iniTurma!J$1)/iniTurma!J$2,"") ->  | J38: =IF(AND(iniTurma!K$2<>"",iniTurma!K38<>""),(iniTurma!K38-iniTurma!K$1)/iniTurma!K$2,"") ->  | K38: =IF(AND(iniTurma!L$2<>"",iniTurma!L38<>""),(iniTurma!L38-iniTurma!L$1)/iniTurma!L$2,"") ->  | L38: =IF(AND(iniTurma!M$2<>"",iniTurma!M38<>""),(iniTurma!M38-iniTurma!M$1)/iniTurma!M$2,"") -> 
A39: =IF(iniTurma!B39<>"",iniTurma!B39,"") ->  | B39: =iniTurma!A39 -> 36 | C39: =IF(iniTurma!C39<>"",iniTurma!C39,"") ->  | D39: =IF(iniTurma!D39<>"",iniTurma!D39,"") ->  | E39: =IF(AND(iniTurma!F$2<>"",iniTurma!F39<>""),(iniTurma!F39-iniTurma!F$1)/iniTurma!F$2,"") ->  | F39: =IF(AND(iniTurma!G$2<>"",iniTurma!G39<>""),(iniTurma!G39-iniTurma!G$1)/iniTurma!G$2,"") ->  | G39: =IF(AND(iniTurma!H$2<>"",iniTurma!H39<>""),(iniTurma!H39-iniTurma!H$1)/iniTurma!H$2,"") ->  | H39: =IF(AND(iniTurma!I$2<>"",iniTurma!I39<>""),(iniTurma!I39-iniTurma!I$1)/iniTurma!I$2,"") ->  | I39: =IF(AND(iniTurma!J$2<>"",iniTurma!J39<>""),(iniTurma!J39-iniTurma!J$1)/iniTurma!J$2,"") ->  | J39: =IF(AND(iniTurma!K$2<>"",iniTurma!K39<>""),(iniTurma!K39-iniTurma!K$1)/iniTurma!K$2,"") ->  | K39: =IF(AND(iniTurma!L$2<>"",iniTurma!L39<>""),(iniTurma!L39-iniTurma!L$1)/iniTurma!L$2,"") ->  | L39: =IF(AND(iniTurma!M$2<>"",iniTurma!M39<>""),(iniTurma!M39-iniTurma!M$1)/iniTurma!M$2,"") -> 
A40: =IF(iniTurma!B40<>"",iniTurma!B40,"") ->  | B40: =iniTurma!A40 -> 37 | C40: =IF(iniTurma!C40<>"",iniTurma!C40,"") ->  | D40: =IF(iniTurma!D40<>"",iniTurma!D40,"") ->  | E40: =IF(AND(iniTurma!F$2<>"",iniTurma!F40<>""),(iniTurma!F40-iniTurma!F$1)/iniTurma!F$2,"") ->  | F40: =IF(AND(iniTurma!G$2<>"",iniTurma!G40<>""),(iniTurma!G40-iniTurma!G$1)/iniTurma!G$2,"") ->  | G40: =IF(AND(iniTurma!H$2<>"",iniTurma!H40<>""),(iniTurma!H40-iniTurma!H$1)/iniTurma!H$2,"") ->  | H40: =IF(AND(iniTurma!I$2<>"",iniTurma!I40<>""),(iniTurma!I40-iniTurma!I$1)/iniTurma!I$2,"") ->  | I40: =IF(AND(iniTurma!J$2<>"",iniTurma!J40<>""),(iniTurma!J40-iniTurma!J$1)/iniTurma!J$2,"") ->  | J40: =IF(AND(iniTurma!K$2<>"",iniTurma!K40<>""),(iniTurma!K40-iniTurma!K$1)/iniTurma!K$2,"") ->  | K40: =IF(AND(iniTurma!L$2<>"",iniTurma!L40<>""),(iniTurma!L40-iniTurma!L$1)/iniTurma!L$2,"") ->  | L40: =IF(AND(iniTurma!M$2<>"",iniTurma!M40<>""),(iniTurma!M40-iniTurma!M$1)/iniTurma!M$2,"") -> 
A41: =IF(iniTurma!B41<>"",iniTurma!B41,"") ->  | B41: =iniTurma!A41 -> 38 | C41: =IF(iniTurma!C41<>"",iniTurma!C41,"") ->  | D41: =IF(iniTurma!D41<>"",iniTurma!D41,"") ->  | E41: =IF(AND(iniTurma!F$2<>"",iniTurma!F41<>""),(iniTurma!F41-iniTurma!F$1)/iniTurma!F$2,"") ->  | F41: =IF(AND(iniTurma!G$2<>"",iniTurma!G41<>""),(iniTurma!G41-iniTurma!G$1)/iniTurma!G$2,"") ->  | G41: =IF(AND(iniTurma!H$2<>"",iniTurma!H41<>""),(iniTurma!H41-iniTurma!H$1)/iniTurma!H$2,"") ->  | H41: =IF(AND(iniTurma!I$2<>"",iniTurma!I41<>""),(iniTurma!I41-iniTurma!I$1)/iniTurma!I$2,"") ->  | I41: =IF(AND(iniTurma!J$2<>"",iniTurma!J41<>""),(iniTurma!J41-iniTurma!J$1)/iniTurma!J$2,"") ->  | J41: =IF(AND(iniTurma!K$2<>"",iniTurma!K41<>""),(iniTurma!K41-iniTurma!K$1)/iniTurma!K$2,"") ->  | K41: =IF(AND(iniTurma!L$2<>"",iniTurma!L41<>""),(iniTurma!L41-iniTurma!L$1)/iniTurma!L$2,"") ->  | L41: =IF(AND(iniTurma!M$2<>"",iniTurma!M41<>""),(iniTurma!M41-iniTurma!M$1)/iniTurma!M$2,"") -> 
A42: =IF(iniTurma!B42<>"",iniTurma!B42,"") ->  | B42: =iniTurma!A42 -> 39 | C42: =IF(iniTurma!C42<>"",iniTurma!C42,"") ->  | D42: =IF(iniTurma!D42<>"",iniTurma!D42,"") ->  | E42: =IF(AND(iniTurma!F$2<>"",iniTurma!F42<>""),(iniTurma!F42-iniTurma!F$1)/iniTurma!F$2,"") ->  | F42: =IF(AND(iniTurma!G$2<>"",iniTurma!G42<>""),(iniTurma!G42-iniTurma!G$1)/iniTurma!G$2,"") ->  | G42: =IF(AND(iniTurma!H$2<>"",iniTurma!H42<>""),(iniTurma!H42-iniTurma!H$1)/iniTurma!H$2,"") ->  | H42: =IF(AND(iniTurma!I$2<>"",iniTurma!I42<>""),(iniTurma!I42-iniTurma!I$1)/iniTurma!I$2,"") ->  | I42: =IF(AND(iniTurma!J$2<>"",iniTurma!J42<>""),(iniTurma!J42-iniTurma!J$1)/iniTurma!J$2,"") ->  | J42: =IF(AND(iniTurma!K$2<>"",iniTurma!K42<>""),(iniTurma!K42-iniTurma!K$1)/iniTurma!K$2,"") ->  | K42: =IF(AND(iniTurma!L$2<>"",iniTurma!L42<>""),(iniTurma!L42-iniTurma!L$1)/iniTurma!L$2,"") ->  | L42: =IF(AND(iniTurma!M$2<>"",iniTurma!M42<>""),(iniTurma!M42-iniTurma!M$1)/iniTurma!M$2,"") -> 
A43: =IF(iniTurma!B43<>"",iniTurma!B43,"") ->  | B43: =iniTurma!A43 -> 40 | C43: =IF(iniTurma!C43<>"",iniTurma!C43,"") ->  | D43: =IF(iniTurma!D43<>"",iniTurma!D43,"") ->  | E43: =IF(AND(iniTurma!F$2<>"",iniTurma!F43<>""),(iniTurma!F43-iniTurma!F$1)/iniTurma!F$2,"") ->  | F43: =IF(AND(iniTurma!G$2<>"",iniTurma!G43<>""),(iniTurma!G43-iniTurma!G$1)/iniTurma!G$2,"") ->  | G43: =IF(AND(iniTurma!H$2<>"",iniTurma!H43<>""),(iniTurma!H43-iniTurma!H$1)/iniTurma!H$2,"") ->  | H43: =IF(AND(iniTurma!I$2<>"",iniTurma!I43<>""),(iniTurma!I43-iniTurma!I$1)/iniTurma!I$2,"") ->  | I43: =IF(AND(iniTurma!J$2<>"",iniTurma!J43<>""),(iniTurma!J43-iniTurma!J$1)/iniTurma!J$2,"") ->  | J43: =IF(AND(iniTurma!K$2<>"",iniTurma!K43<>""),(iniTurma!K43-iniTurma!K$1)/iniTurma!K$2,"") ->  | K43: =IF(AND(iniTurma!L$2<>"",iniTurma!L43<>""),(iniTurma!L43-iniTurma!L$1)/iniTurma!L$2,"") ->  | L43: =IF(AND(iniTurma!M$2<>"",iniTurma!M43<>""),(iniTurma!M43-iniTurma!M$1)/iniTurma!M$2,"") -> 
A44: =IF(iniTurma!B44<>"",iniTurma!B44,"") ->  | B44: =iniTurma!A44 -> 41 | C44: =IF(iniTurma!C44<>"",iniTurma!C44,"") ->  | D44: =IF(iniTurma!D44<>"",iniTurma!D44,"") ->  | E44: =IF(AND(iniTurma!F$2<>"",iniTurma!F44<>""),(iniTurma!F44-iniTurma!F$1)/iniTurma!F$2,"") ->  | F44: =IF(AND(iniTurma!G$2<>"",iniTurma!G44<>""),(iniTurma!G44-iniTurma!G$1)/iniTurma!G$2,"") ->  | G44: =IF(AND(iniTurma!H$2<>"",iniTurma!H44<>""),(iniTurma!H44-iniTurma!H$1)/iniTurma!H$2,"") ->  | H44: =IF(AND(iniTurma!I$2<>"",iniTurma!I44<>""),(iniTurma!I44-iniTurma!I$1)/iniTurma!I$2,"") ->  | I44: =IF(AND(iniTurma!J$2<>"",iniTurma!J44<>""),(iniTurma!J44-iniTurma!J$1)/iniTurma!J$2,"") ->  | J44: =IF(AND(iniTurma!K$2<>"",iniTurma!K44<>""),(iniTurma!K44-iniTurma!K$1)/iniTurma!K$2,"") ->  | K44: =IF(AND(iniTurma!L$2<>"",iniTurma!L44<>""),(iniTurma!L44-iniTurma!L$1)/iniTurma!L$2,"") ->  | L44: =IF(AND(iniTurma!M$2<>"",iniTurma!M44<>""),(iniTurma!M44-iniTurma!M$1)/iniTurma!M$2,"") -> 
A45: =IF(iniTurma!B45<>"",iniTurma!B45,"") ->  | B45: =iniTurma!A45 -> 42 | C45: =IF(iniTurma!C45<>"",iniTurma!C45,"") ->  | D45: =IF(iniTurma!D45<>"",iniTurma!D45,"") ->  | E45: =IF(AND(iniTurma!F$2<>"",iniTurma!F45<>""),(iniTurma!F45-iniTurma!F$1)/iniTurma!F$2,"") ->  | F45: =IF(AND(iniTurma!G$2<>"",iniTurma!G45<>""),(iniTurma!G45-iniTurma!G$1)/iniTurma!G$2,"") ->  | G45: =IF(AND(iniTurma!H$2<>"",iniTurma!H45<>""),(iniTurma!H45-iniTurma!H$1)/iniTurma!H$2,"") ->  | H45: =IF(AND(iniTurma!I$2<>"",iniTurma!I45<>""),(iniTurma!I45-iniTurma!I$1)/iniTurma!I$2,"") ->  | I45: =IF(AND(iniTurma!J$2<>"",iniTurma!J45<>""),(iniTurma!J45-iniTurma!J$1)/iniTurma!J$2,"") ->  | J45: =IF(AND(iniTurma!K$2<>"",iniTurma!K45<>""),(iniTurma!K45-iniTurma!K$1)/iniTurma!K$2,"") ->  | K45: =IF(AND(iniTurma!L$2<>"",iniTurma!L45<>""),(iniTurma!L45-iniTurma!L$1)/iniTurma!L$2,"") ->  | L45: =IF(AND(iniTurma!M$2<>"",iniTurma!M45<>""),(iniTurma!M45-iniTurma!M$1)/iniTurma!M$2,"") -> 
A46: =IF(iniTurma!B46<>"",iniTurma!B46,"") ->  | B46: =iniTurma!A46 -> 43 | C46: =IF(iniTurma!C46<>"",iniTurma!C46,"") ->  | D46: =IF(iniTurma!D46<>"",iniTurma!D46,"") ->  | E46: =IF(AND(iniTurma!F$2<>"",iniTurma!F46<>""),(iniTurma!F46-iniTurma!F$1)/iniTurma!F$2,"") ->  | F46: =IF(AND(iniTurma!G$2<>"",iniTurma!G46<>""),(iniTurma!G46-iniTurma!G$1)/iniTurma!G$2,"") ->  | G46: =IF(AND(iniTurma!H$2<>"",iniTurma!H46<>""),(iniTurma!H46-iniTurma!H$1)/iniTurma!H$2,"") ->  | H46: =IF(AND(iniTurma!I$2<>"",iniTurma!I46<>""),(iniTurma!I46-iniTurma!I$1)/iniTurma!I$2,"") ->  | I46: =IF(AND(iniTurma!J$2<>"",iniTurma!J46<>""),(iniTurma!J46-iniTurma!J$1)/iniTurma!J$2,"") ->  | J46: =IF(AND(iniTurma!K$2<>"",iniTurma!K46<>""),(iniTurma!K46-iniTurma!K$1)/iniTurma!K$2,"") ->  | K46: =IF(AND(iniTurma!L$2<>"",iniTurma!L46<>""),(iniTurma!L46-iniTurma!L$1)/iniTurma!L$2,"") ->  | L46: =IF(AND(iniTurma!M$2<>"",iniTurma!M46<>""),(iniTurma!M46-iniTurma!M$1)/iniTurma!M$2,"") -> 
A47: =IF(iniTurma!B47<>"",iniTurma!B47,"") ->  | B47: =iniTurma!A47 -> 44 | C47: =IF(iniTurma!C47<>"",iniTurma!C47,"") ->  | D47: =IF(iniTurma!D47<>"",iniTurma!D47,"") ->  | E47: =IF(AND(iniTurma!F$2<>"",iniTurma!F47<>""),(iniTurma!F47-iniTurma!F$1)/iniTurma!F$2,"") ->  | F47: =IF(AND(iniTurma!G$2<>"",iniTurma!G47<>""),(iniTurma!G47-iniTurma!G$1)/iniTurma!G$2,"") ->  | G47: =IF(AND(iniTurma!H$2<>"",iniTurma!H47<>""),(iniTurma!H47-iniTurma!H$1)/iniTurma!H$2,"") ->  | H47: =IF(AND(iniTurma!I$2<>"",iniTurma!I47<>""),(iniTurma!I47-iniTurma!I$1)/iniTurma!I$2,"") ->  | I47: =IF(AND(iniTurma!J$2<>"",iniTurma!J47<>""),(iniTurma!J47-iniTurma!J$1)/iniTurma!J$2,"") ->  | J47: =IF(AND(iniTurma!K$2<>"",iniTurma!K47<>""),(iniTurma!K47-iniTurma!K$1)/iniTurma!K$2,"") ->  | K47: =IF(AND(iniTurma!L$2<>"",iniTurma!L47<>""),(iniTurma!L47-iniTurma!L$1)/iniTurma!L$2,"") ->  | L47: =IF(AND(iniTurma!M$2<>"",iniTurma!M47<>""),(iniTurma!M47-iniTurma!M$1)/iniTurma!M$2,"") -> 
A48: =IF(iniTurma!B48<>"",iniTurma!B48,"") ->  | B48: =iniTurma!A48 -> 45 | C48: =IF(iniTurma!C48<>"",iniTurma!C48,"") ->  | D48: =IF(iniTurma!D48<>"",iniTurma!D48,"") ->  | E48: =IF(AND(iniTurma!F$2<>"",iniTurma!F48<>""),(iniTurma!F48-iniTurma!F$1)/iniTurma!F$2,"") ->  | F48: =IF(AND(iniTurma!G$2<>"",iniTurma!G48<>""),(iniTurma!G48-iniTurma!G$1)/iniTurma!G$2,"") ->  | G48: =IF(AND(iniTurma!H$2<>"",iniTurma!H48<>""),(iniTurma!H48-iniTurma!H$1)/iniTurma!H$2,"") ->  | H48: =IF(AND(iniTurma!I$2<>"",iniTurma!I48<>""),(iniTurma!I48-iniTurma!I$1)/iniTurma!I$2,"") ->  | I48: =IF(AND(iniTurma!J$2<>"",iniTurma!J48<>""),(iniTurma!J48-iniTurma!J$1)/iniTurma!J$2,"") ->  | J48: =IF(AND(iniTurma!K$2<>"",iniTurma!K48<>""),(iniTurma!K48-iniTurma!K$1)/iniTurma!K$2,"") ->  | K48: =IF(AND(iniTurma!L$2<>"",iniTurma!L48<>""),(iniTurma!L48-iniTurma!L$1)/iniTurma!L$2,"") ->  | L48: =IF(AND(iniTurma!M$2<>"",iniTurma!M48<>""),(iniTurma!M48-iniTurma!M$1)/iniTurma!M$2,"") -> 
A49: =IF(iniTurma!B49<>"",iniTurma!B49,"") ->  | B49: =iniTurma!A49 -> 46 | C49: =IF(iniTurma!C49<>"",iniTurma!C49,"") ->  | D49: =IF(iniTurma!D49<>"",iniTurma!D49,"") ->  | E49: =IF(AND(iniTurma!F$2<>"",iniTurma!F49<>""),(iniTurma!F49-iniTurma!F$1)/iniTurma!F$2,"") ->  | F49: =IF(AND(iniTurma!G$2<>"",iniTurma!G49<>""),(iniTurma!G49-iniTurma!G$1)/iniTurma!G$2,"") ->  | G49: =IF(AND(iniTurma!H$2<>"",iniTurma!H49<>""),(iniTurma!H49-iniTurma!H$1)/iniTurma!H$2,"") ->  | H49: =IF(AND(iniTurma!I$2<>"",iniTurma!I49<>""),(iniTurma!I49-iniTurma!I$1)/iniTurma!I$2,"") ->  | I49: =IF(AND(iniTurma!J$2<>"",iniTurma!J49<>""),(iniTurma!J49-iniTurma!J$1)/iniTurma!J$2,"") ->  | J49: =IF(AND(iniTurma!K$2<>"",iniTurma!K49<>""),(iniTurma!K49-iniTurma!K$1)/iniTurma!K$2,"") ->  | K49: =IF(AND(iniTurma!L$2<>"",iniTurma!L49<>""),(iniTurma!L49-iniTurma!L$1)/iniTurma!L$2,"") ->  | L49: =IF(AND(iniTurma!M$2<>"",iniTurma!M49<>""),(iniTurma!M49-iniTurma!M$1)/iniTurma!M$2,"") -> 
A50: =IF(iniTurma!B50<>"",iniTurma!B50,"") ->  | B50: =iniTurma!A50 -> 47 | C50: =IF(iniTurma!C50<>"",iniTurma!C50,"") ->  | D50: =IF(iniTurma!D50<>"",iniTurma!D50,"") ->  | E50: =IF(AND(iniTurma!F$2<>"",iniTurma!F50<>""),(iniTurma!F50-iniTurma!F$1)/iniTurma!F$2,"") ->  | F50: =IF(AND(iniTurma!G$2<>"",iniTurma!G50<>""),(iniTurma!G50-iniTurma!G$1)/iniTurma!G$2,"") ->  | G50: =IF(AND(iniTurma!H$2<>"",iniTurma!H50<>""),(iniTurma!H50-iniTurma!H$1)/iniTurma!H$2,"") ->  | H50: =IF(AND(iniTurma!I$2<>"",iniTurma!I50<>""),(iniTurma!I50-iniTurma!I$1)/iniTurma!I$2,"") ->  | I50: =IF(AND(iniTurma!J$2<>"",iniTurma!J50<>""),(iniTurma!J50-iniTurma!J$1)/iniTurma!J$2,"") ->  | J50: =IF(AND(iniTurma!K$2<>"",iniTurma!K50<>""),(iniTurma!K50-iniTurma!K$1)/iniTurma!K$2,"") ->  | K50: =IF(AND(iniTurma!L$2<>"",iniTurma!L50<>""),(iniTurma!L50-iniTurma!L$1)/iniTurma!L$2,"") ->  | L50: =IF(AND(iniTurma!M$2<>"",iniTurma!M50<>""),(iniTurma!M50-iniTurma!M$1)/iniTurma!M$2,"") -> 
A51: =IF(iniTurma!B51<>"",iniTurma!B51,"") ->  | B51: =iniTurma!A51 -> 48 | C51: =IF(iniTurma!C51<>"",iniTurma!C51,"") ->  | D51: =IF(iniTurma!D51<>"",iniTurma!D51,"") ->  | E51: =IF(AND(iniTurma!F$2<>"",iniTurma!F51<>""),(iniTurma!F51-iniTurma!F$1)/iniTurma!F$2,"") ->  | F51: =IF(AND(iniTurma!G$2<>"",iniTurma!G51<>""),(iniTurma!G51-iniTurma!G$1)/iniTurma!G$2,"") ->  | G51: =IF(AND(iniTurma!H$2<>"",iniTurma!H51<>""),(iniTurma!H51-iniTurma!H$1)/iniTurma!H$2,"") ->  | H51: =IF(AND(iniTurma!I$2<>"",iniTurma!I51<>""),(iniTurma!I51-iniTurma!I$1)/iniTurma!I$2,"") ->  | I51: =IF(AND(iniTurma!J$2<>"",iniTurma!J51<>""),(iniTurma!J51-iniTurma!J$1)/iniTurma!J$2,"") ->  | J51: =IF(AND(iniTurma!K$2<>"",iniTurma!K51<>""),(iniTurma!K51-iniTurma!K$1)/iniTurma!K$2,"") ->  | K51: =IF(AND(iniTurma!L$2<>"",iniTurma!L51<>""),(iniTurma!L51-iniTurma!L$1)/iniTurma!L$2,"") ->  | L51: =IF(AND(iniTurma!M$2<>"",iniTurma!M51<>""),(iniTurma!M51-iniTurma!M$1)/iniTurma!M$2,"") -> 
A52: =IF(iniTurma!B52<>"",iniTurma!B52,"") ->  | B52: =iniTurma!A52 -> 49 | C52: =IF(iniTurma!C52<>"",iniTurma!C52,"") ->  | D52: =IF(iniTurma!D52<>"",iniTurma!D52,"") ->  | E52: =IF(AND(iniTurma!F$2<>"",iniTurma!F52<>""),(iniTurma!F52-iniTurma!F$1)/iniTurma!F$2,"") ->  | F52: =IF(AND(iniTurma!G$2<>"",iniTurma!G52<>""),(iniTurma!G52-iniTurma!G$1)/iniTurma!G$2,"") ->  | G52: =IF(AND(iniTurma!H$2<>"",iniTurma!H52<>""),(iniTurma!H52-iniTurma!H$1)/iniTurma!H$2,"") ->  | H52: =IF(AND(iniTurma!I$2<>"",iniTurma!I52<>""),(iniTurma!I52-iniTurma!I$1)/iniTurma!I$2,"") ->  | I52: =IF(AND(iniTurma!J$2<>"",iniTurma!J52<>""),(iniTurma!J52-iniTurma!J$1)/iniTurma!J$2,"") ->  | J52: =IF(AND(iniTurma!K$2<>"",iniTurma!K52<>""),(iniTurma!K52-iniTurma!K$1)/iniTurma!K$2,"") ->  | K52: =IF(AND(iniTurma!L$2<>"",iniTurma!L52<>""),(iniTurma!L52-iniTurma!L$1)/iniTurma!L$2,"") ->  | L52: =IF(AND(iniTurma!M$2<>"",iniTurma!M52<>""),(iniTurma!M52-iniTurma!M$1)/iniTurma!M$2,"") -> 
A53: =IF(iniTurma!B53<>"",iniTurma!B53,"") ->  | B53: =iniTurma!A53 -> 50 | C53: =IF(iniTurma!C53<>"",iniTurma!C53,"") ->  | D53: =IF(iniTurma!D53<>"",iniTurma!D53,"") ->  | E53: =IF(AND(iniTurma!F$2<>"",iniTurma!F53<>""),(iniTurma!F53-iniTurma!F$1)/iniTurma!F$2,"") ->  | F53: =IF(AND(iniTurma!G$2<>"",iniTurma!G53<>""),(iniTurma!G53-iniTurma!G$1)/iniTurma!G$2,"") ->  | G53: =IF(AND(iniTurma!H$2<>"",iniTurma!H53<>""),(iniTurma!H53-iniTurma!H$1)/iniTurma!H$2,"") ->  | H53: =IF(AND(iniTurma!I$2<>"",iniTurma!I53<>""),(iniTurma!I53-iniTurma!I$1)/iniTurma!I$2,"") ->  | I53: =IF(AND(iniTurma!J$2<>"",iniTurma!J53<>""),(iniTurma!J53-iniTurma!J$1)/iniTurma!J$2,"") ->  | J53: =IF(AND(iniTurma!K$2<>"",iniTurma!K53<>""),(iniTurma!K53-iniTurma!K$1)/iniTurma!K$2,"") ->  | K53: =IF(AND(iniTurma!L$2<>"",iniTurma!L53<>""),(iniTurma!L53-iniTurma!L$1)/iniTurma!L$2,"") ->  | L53: =IF(AND(iniTurma!M$2<>"",iniTurma!M53<>""),(iniTurma!M53-iniTurma!M$1)/iniTurma!M$2,"") -> 

Sheet fimTurma
B1: Ano: | C1: =IF(iniTurma!C1<>"",iniTurma!C1,"") -> 2 | E1: Média: | F1: =IF(COUNTA(F4:F53)>0,AVERAGE(F4:F53),"") -> 15.375 | G1: =IF(COUNTA(G4:G53)>0,AVERAGE(G4:G53),"") -> 11.75 | H1: 7.763636364 | I1: 34.52727273 | J1: 15.5 | K1: 9.741666667
A2: =COUNTIF(B4:B53,"x") -> 1 | B2: Turma: | C2: =IF(iniTurma!C2<>"",iniTurma!C2,"") -> A | E2: Desvio-padrão: | F2: =IF(COUNTA(F4:F53)>0,_xlfn.STDEV.P(F4:F53),"") -> 0.5068283733 | G2: =IF(COUNTA(G4:G53)>0,_xlfn.STDEV.P(G4:G53),"") -> 1.299038106 | H2: 0.9660347512 | I2: 3.076624747 | J2: 3.45205253 | K2: 1.116137935
A3: ID Aluno | B3: =_xlfn.CONCAT("Ver: ",COUNTIF(B4:B53,"x")) -> Ver: 1 | C3: Nome | D3: Idade | E3: Data | F3: Corrida vaivém | G3: Corrida velocidade | H3: Salto horizontal | I3: Receber | J3: Lançar | K3: Equilíbrio
A4: 1 | C4: =IF(iniTurma!C4<>"",iniTurma!C4,"") -> Micas | D4: 13 | E4: 2025-06-08 | F4: 15 | G4: 12 | H4: 6.5 | I4: 35 | J4: 10 | K4: 10.2
A5: =A4+1 -> 2 | B5: x | C5: =IF(iniTurma!C5<>"",iniTurma!C5,"") -> Tecas | D5: 12 | E5: 2025-06-08 | F5: 15.5 | G5: 12 | H5: 7 | J5: 11 | K5: 10.2
A6: =A5+1 -> 3 | C6: =IF(iniTurma!C6<>"",iniTurma!C6,"") -> Lecas | D6: 15 | E6: 2025-06-08 | F6: 16 | G6: 13 | H6: 8 | I6: 34 | J6: 12 | K6: 9.9
A7: 4 | C7: =IF(iniTurma!C7<>"",iniTurma!C7,"") -> Becas | D7: 8 | E7: 2025-06-08 | F7: 14.9 | G7: 11 | I7: 39 | J7: 13 | K7: 8.7
A8: 5 | C8: =IF(iniTurma!C8<>"",iniTurma!C8,"") -> Nocas | D8: 11 | E8: 2025-06-08 | F8: 15.4 | G8: 14 | H8: 7.2 | I8: 41 | J8: 14 | K8: 7.6
A9: 6 | C9: =IF(iniTurma!C9<>"",iniTurma!C9,"") -> Françoise Hardy | D9: 13 | E9: 2025-06-08 | F9: 15 | G9: 12 | H9: 8.4 | I9: 36 | J9: 15 | K9: 11
A10: 7 | C10: =IF(iniTurma!C10<>"",iniTurma!C10,"") -> Asterix | D10: 16 | E10: 2025-06-09 | F10: 14.6 | G10: 10 | H10: 8.1 | I10: 32 | J10: 16 | K10: 7.9
A11: 8 | C11: =IF(iniTurma!C11<>"",iniTurma!C11,"") -> Obelix | D11: 14 | E11: 2025-06-09 | F11: 16.3 | G11: 9 | H11: 7 | I11: 30 | J11: 17 | K11: 10.1
A12: 9 | C12: =IF(iniTurma!C12<>"",iniTurma!C12,"") -> Ideiafix | D12: 14 | E12: 2025-06-09 | F12: 15 | G12: 11 | H12: 7.2 | I12: 32.2 | J12: 18 | K12: 9.5
A13: 10 | C13: =IF(iniTurma!C13<>"",iniTurma!C13,"") -> Sylvie Vartan | D13: 14 | E13: 2025-06-09 | F13: 15.5 | G13: 12 | H13: 8.3 | I13: 35.1 | J13: 19 | K13: 10.5
A14: 11 | C14: =IF(iniTurma!C14<>"",iniTurma!C14,"") -> Carlos Lopes | D14: 14 | E14: 2025-06-09 | F14: 16.1 | G14: 12 | H14: 10.2 | I14: 33.3 | J14: 20 | K14: 11.5
A15: 12 | C15: =IF(iniTurma!C15<>"",iniTurma!C15,"") -> Rosa Mota | D15: 14 | E15: 2025-06-09 | F15: 15.2 | G15: 13 | H15: 7.5 | I15: 32.2 | J15: 21 | K15: 9.8
A16: 13 | C16: =IF(iniTurma!C16<>"",iniTurma!C16,"") -> 
A17: 14 | C17: =IF(iniTurma!C17<>"",iniTurma!C17,"") -> 
A18: 15 | C18: =IF(iniTurma!C18<>"",iniTurma!C18,"") -> 
A19: 16 | C19: =IF(iniTurma!C19<>"",iniTurma!C19,"") -> 
A20: 17 | C20: =IF(iniTurma!C20<>"",iniTurma!C20,"") -> 
A21: 18 | C21: =IF(iniTurma!C21<>"",iniTurma!C21,"") -> 
A22: 19 | C22: =IF(iniTurma!C22<>"",iniTurma!C22,"") -> 
A23: 20 | C23: =IF(iniTurma!C23<>"",iniTurma!C23,"") -> 
A24: 21 | C24: =IF(iniTurma!C24<>"",iniTurma!C24,"") -> 
A25: 22 | C25: =IF(iniTurma!C25<>"",iniTurma!C25,"") -> 
A26: 23 | C26: =IF(iniTurma!C26<>"",iniTurma!C26,"") -> 
A27: 24 | C27: =IF(iniTurma!C27<>"",iniTurma!C27,"") -> 
A28: 25 | C28: =IF(iniTurma!C28<>"",iniTurma!C28,"") -> 
A29: 26 | C29: =IF(iniTurma!C29<>"",iniTurma!C29,"") -> 
A30: 27 | C30: =IF(iniTurma!C30<>"",iniTurma!C30,"") -> 
A31: 28 | C31: =IF(iniTurma!C31<>"",iniTurma!C31,"") -> 
A32: 29 | C32: =IF(iniTurma!C32<>"",iniTurma!C32,"") -> 
A33: 30 | C33: =IF(iniTurma!C33<>"",iniTurma!C33,"") -> 
A34: 31 | C34: =IF(iniTurma!C34<>"",iniTurma!C34,"") -> 
A35: 32 | C35: =IF(iniTurma!C35<>"",iniTurma!C35,"") -> 
A36: 33 | C36: =IF(iniTurma!C36<>"",iniTurma!C36,"") -> 
A37: 34 | C37: =IF(iniTurma!C37<>"",iniTurma!C37,"") -> 
A38: 35 | C38: =IF(iniTurma!C38<>"",iniTurma!C38,"") -> 
A39: 36 | C39: =IF(iniTurma!C39<>"",iniTurma!C39,"") -> 
A40: 37 | C40: =IF(iniTurma!C40<>"",iniTurma!C40,"") -> 
A41: 38 | C41: =IF(iniTurma!C41<>"",iniTurma!C41,"") -> 
A42: 39 | C42: =IF(iniTurma!C42<>"",iniTurma!C42,"") -> 
A43: 40 | C43: =IF(iniTurma!C43<>"",iniTurma!C43,"") -> 
A44: 41 | C44: =IF(iniTurma!C44<>"",iniTurma!C44,"") -> 
A45: 42 | C45: =IF(iniTurma!C45<>"",iniTurma!C45,"") -> 
A46: 43 | C46: =IF(iniTurma!C46<>"",iniTurma!C46,"") -> 
A47: 44 | C47: =IF(iniTurma!C47<>"",iniTurma!C47,"") -> 
A48: 45 | C48: =IF(iniTurma!C48<>"",iniTurma!C48,"") -> 
A49: 46 | C49: =IF(iniTurma!C49<>"",iniTurma!C49,"") -> 
A50: 47 | C50: =IF(iniTurma!C50<>"",iniTurma!C50,"") -> 
A51: 48 | C51: =IF(iniTurma!C51<>"",iniTurma!C51,"") -> 
A52: 49 | C52: =IF(iniTurma!C52<>"",iniTurma!C52,"") -> 
A53: 50 | C53: =IF(iniTurma!C53<>"",iniTurma!C53,"") -> 

Sheet fimRelatório
A1: RELATÓRIO INDIVIDUAL PRESCHOOL TEST BATTERY
A2: =IF(fimTurma!A2=1,VLOOKUP("x",fimTurma!B$4:M$53,2,0),"") -> Tecas
A3: =IF(fimTurma!A2=1,_xlfn.CONCAT(TEXT(VLOOKUP("x",fimTurma!B$4:M$53,4,0),"dd-mm-aaaa")," | ",fimTurma!C1,"º ano"," | ",fimTurma!C2),"") -> 08-06-2025 | 2º ano | A
B5: Resultado | D5: Média | F5: Mínimo | H5: Máximo
B6: da criança | D6: da turma | F6: da turma | H6: da turma
A7: HABILIDADES DE LOCOMOÇÃO
A8: =IF(fimTurma!A2=1,IFERROR(VLOOKUP(1,fimAuxiliar!L3:Q5,2,0),""),"") -> Corrida vaivém | B8: =IF(fimTurma!A2=1,IFERROR(VLOOKUP(1,fimAuxiliar!L3:Q5,3,0),0),0) -> 15.5 | D8: =IF(fimTurma!A2=1,IFERROR(VLOOKUP(1,fimAuxiliar!L3:Q5,4,0),0),0) -> 15.375 | F8: =IF(fimTurma!A2=1,IFERROR(VLOOKUP(1,fimAuxiliar!L3:Q5,5,0),0),0) -> 14.6 | H8: =IF(fimTurma!A2=1,IFERROR(VLOOKUP(1,fimAuxiliar!L3:Q5,6,0),0),0) -> 16.3
A10: =IF(fimTurma!A2=1,IFERROR(VLOOKUP(2,fimAuxiliar!L3:Q5,2,0),""),"") -> Corrida velocidade | B10: =IF(fimTurma!A2=1,IFERROR(VLOOKUP(2,fimAuxiliar!L3:Q5,3,0),0),0) -> 12 | D10: =IF(fimTurma!A2=1,IFERROR(VLOOKUP(2,fimAuxiliar!L3:Q5,4,0),0),0) -> 11.75 | F10: =IF(fimTurma!A2=1,IFERROR(VLOOKUP(2,fimAuxiliar!L3:Q5,5,0),0),0) -> 9 | H10: =IF(fimTurma!A2=1,IFERROR(VLOOKUP(2,fimAuxiliar!L3:Q5,6,0),""),"") -> 14
A12: =IF(fimTurma!A2=1,IFERROR(VLOOKUP(3,fimAuxiliar!L3:Q5,2,0),""),"") -> Salto horizontal | B12: =IF(fimTurma!A2=1,IFERROR(VLOOKUP(3,fimAuxiliar!L3:Q5,3,0),0),0) -> 7 | D12: =IF(fimTurma!A2=1,IFERROR(VLOOKUP(3,fimAuxiliar!L3:Q5,4,0),0),0) -> 7.763636364 | F12: =IF(fimTurma!A2=1,IFERROR(VLOOKUP(3,fimAuxiliar!L3:Q5,5,0),0),0) -> 6.5 | H12: =IF(fimTurma!A2=1,IFERROR(VLOOKUP(3,fimAuxiliar!L3:Q5,6,0),0),0) -> 10.2
A14: HABILIDADES DE CONTROLO DE OBJETOS
A15: =IF(fimTurma!A2=1,IFERROR(VLOOKUP(1,fimAuxiliar!L6:Q7,2,0),""),"") -> Receber | B15: =IF(fimTurma!A2=1,IFERROR(VLOOKUP(1,fimAuxiliar!L6:Q7,3,0),0),0) -> 0 | D15: =IF(fimTurma!A2=1,IFERROR(VLOOKUP(1,fimAuxiliar!L6:Q7,4,0),0),0) -> 34.52727273 | F15: =IF(fimTurma!A2=1,IFERROR(VLOOKUP(1,fimAuxiliar!L6:Q7,5,0),0),0) -> 30 | H15: =IF(fimTurma!A2=1,IFERROR(VLOOKUP(1,fimAuxiliar!L6:Q7,6,0),0),0) -> 41
A17: =IF(fimTurma!A2=1,IFERROR(VLOOKUP(2,fimAuxiliar!L6:Q7,2,0),""),"") -> Lançar | B17: =IF(fimTurma!A2=1,IFERROR(VLOOKUP(2,fimAuxiliar!L6:Q7,3,0),0),0) -> 11 | D17: =IF(fimTurma!A2=1,IFERROR(VLOOKUP(2,fimAuxiliar!L6:Q7,4,0),0),0) -> 15.5 | F17: =IF(fimTurma!A2=1,IFERROR(VLOOKUP(2,fimAuxiliar!L6:Q7,5,0),0),0) -> 10 | H17: =IF(fimTurma!A2=1,IFERROR(VLOOKUP(2,fimAuxiliar!L6:Q7,6,0),0),0) -> 21
A19: HABILIDADE DE ESTABILIZAÇÃO
A20: =IF(fimTurma!A2=1,IFERROR(VLOOKUP(1,fimAuxiliar!L8:Q8,2,0),""),"") -> Equilíbrio | B20: =IF(fimTurma!A2=1,IFERROR(VLOOKUP(1,fimAuxiliar!L8:Q8,3,0),0),0) -> 10.2 | D20: =IF(fimTurma!A2=1,IFERROR(VLOOKUP(1,fimAuxiliar!L8:Q8,4,0),0),0) -> 9.741666667 | F20: =IF(fimTurma!A2=1,IFERROR(VLOOKUP(1,fimAuxiliar!L8:Q8,5,0),0),0) -> 7.6 | H20: =IF(fimTurma!A2=1,IFERROR(VLOOKUP(1,fimAuxiliar!L8:Q8,6,0),0),0) -> 11.5
A23: Perfil multivariado

Sheet fimScore Z
A3: =fimTurma!B3 -> Ver: 1 | B3: =fimTurma!A3 -> ID Aluno | C3: =fimTurma!C3 -> Nome | D3: =fimTurma!D3 -> Idade | E3: =fimTurma!F3 -> Corrida vaivém | F3: =fimTurma!G3 -> Corrida velocidade | G3: =fimTurma!H3 -> Salto horizontal | H3: =fimTurma!I3 -> Receber | I3: =fimTurma!J3 -> Lançar | J3: =fimTurma!K3 -> Equilíbrio
A4: =IF(fimTurma!B4<>"",fimTurma!B4,"") ->  | B4: =fimTurma!A4 -> 1 | C4: =IF(fimTurma!C4<>"",fimTurma!C4,"") -> Micas | D4: =IF(fimTurma!D4<>"",fimTurma!D4,"") -> 13 | E4: =IF(AND(fimTurma!F$2<>"",fimTurma!F4<>""),(fimTurma!F4-fimTurma!F$1)/fimTurma!F$2,"") -> -0.7398954355 | F4: =IF(AND(fimTurma!G$2<>"",fimTurma!G4<>""),(fimTurma!G4-fimTurma!G$1)/fimTurma!G$2,"") -> 0.1924500897 | G4: =IF(AND(fimTurma!H$2<>"",fimTurma!H4<>""),(fimTurma!H4-fimTurma!H$1)/fimTurma!H$2,"") -> -1.308065121 | H4: =IF(AND(fimTurma!I$2<>"",fimTurma!I4<>""),(fimTurma!I4-fimTurma!I$1)/fimTurma!I$2,"") -> 0.1536512612 | I4: =IF(AND(fimTurma!J$2<>"",fimTurma!J4<>""),(fimTurma!J4-fimTurma!J$1)/fimTurma!J$2,"") -> -1.593255014 | J4: =IF(AND(fimTurma!K$2<>"",fimTurma!K4<>""),(fimTurma!K4-fimTurma!K$1)/fimTurma!K$2,"") -> 0.4106421968 | K4: =IF(AND(fimTurma!L$2<>"",fimTurma!L4<>""),(fimTurma!L4-fimTurma!L$1)/fimTurma!L$2,"") ->  | L4: =IF(AND(fimTurma!M$2<>"",fimTurma!M4<>""),(fimTurma!M4-fimTurma!M$1)/fimTurma!M$2,"") -> 
A5: =IF(fimTurma!B5<>"",fimTurma!B5,"") -> x | B5: =fimTurma!A5 -> 2 | C5: =IF(fimTurma!C5<>"",fimTurma!C5,"") -> Tecas | D5: =IF(fimTurma!D5<>"",fimTurma!D5,"") -> 12 | E5: =IF(AND(fimTurma!F$2<>"",fimTurma!F5<>""),(fimTurma!F5-fimTurma!F$1)/fimTurma!F$2,"") -> 0.2466318118 | F5: =IF(AND(fimTurma!G$2<>"",fimTurma!G5<>""),(fimTurma!G5-fimTurma!G$1)/fimTurma!G$2,"") -> 0.1924500897 | G5: =IF(AND(fimTurma!H$2<>"",fimTurma!H5<>""),(fimTurma!H5-fimTurma!H$1)/fimTurma!H$2,"") -> -0.7904853968 | H5: =IF(AND(fimTurma!I$2<>"",fimTurma!I5<>""),(fimTurma!I5-fimTurma!I$1)/fimTurma!I$2,"") ->  | I5: =IF(AND(fimTurma!J$2<>"",fimTurma!J5<>""),(fimTurma!J5-fimTurma!J$1)/fimTurma!J$2,"") -> -1.303572284 | J5: =IF(AND(fimTurma!K$2<>"",fimTurma!K5<>""),(fimTurma!K5-fimTurma!K$1)/fimTurma!K$2,"") -> 0.4106421968 | K5: =IF(AND(fimTurma!L$2<>"",fimTurma!L5<>""),(fimTurma!L5-fimTurma!L$1)/fimTurma!L$2,"") ->  | L5: =IF(AND(fimTurma!M$2<>"",fimTurma!M5<>""),(fimTurma!M5-fimTurma!M$1)/fimTurma!M$2,"") -> 
A6: =IF(fimTurma!B6<>"",fimTurma!B6,"") ->  | B6: =fimTurma!A6 -> 3 | C6: =IF(fimTurma!C6<>"",fimTurma!C6,"") -> Lecas | D6: =IF(fimTurma!D6<>"",fimTurma!D6,"") -> 15 | E6: =IF(AND(fimTurma!F$2<>"",fimTurma!F6<>""),(fimTurma!F6-fimTurma!F$1)/fimTurma!F$2,"") -> 1.233159059 | F6: =IF(AND(fimTurma!G$2<>"",fimTurma!G6<>""),(fimTurma!G6-fimTurma!G$1)/fimTurma!G$2,"") -> 0.9622504486 | G6: =IF(AND(fimTurma!H$2<>"",fimTurma!H6<>""),(fimTurma!H6-fimTurma!H$1)/fimTurma!H$2,"") -> 0.2446740514 | H6: =IF(AND(fimTurma!I$2<>"",fimTurma!I6<>""),(fimTurma!I6-fimTurma!I$1)/fimTurma!I$2,"") -> -0.1713802529 | I6: =IF(AND(fimTurma!J$2<>"",fimTurma!J6<>""),(fimTurma!J6-fimTurma!J$1)/fimTurma!J$2,"") -> -1.013889554 | J6: =IF(AND(fimTurma!K$2<>"",fimTurma!K6<>""),(fimTurma!K6-fimTurma!K$1)/fimTurma!K$2,"") -> 0.1418582134 | K6: =IF(AND(fimTurma!L$2<>"",fimTurma!L6<>""),(fimTurma!L6-fimTurma!L$1)/fimTurma!L$2,"") ->  | L6: =IF(AND(fimTurma!M$2<>"",fimTurma!M6<>""),(fimTurma!M6-fimTurma!M$1)/fimTurma!M$2,"") -> 
A7: =IF(fimTurma!B7<>"",fimTurma!B7,"") ->  | B7: =fimTurma!A7 -> 4 | C7: =IF(fimTurma!C7<>"",fimTurma!C7,"") -> Becas | D7: =IF(fimTurma!D7<>"",fimTurma!D7,"") -> 8 | E7: =IF(AND(fimTurma!F$2<>"",fimTurma!F7<>""),(fimTurma!F7-fimTurma!F$1)/fimTurma!F$2,"") -> -0.937200885 | F7: =IF(AND(fimTurma!G$2<>"",fimTurma!G7<>""),(fimTurma!G7-fimTurma!G$1)/fimTurma!G$2,"") -> -0.5773502692 | G7: =IF(AND(fimTurma!H$2<>"",fimTurma!H7<>""),(fimTurma!H7-fimTurma!H$1)/fimTurma!H$2,"") ->  | H7: =IF(AND(fimTurma!I$2<>"",fimTurma!I7<>""),(fimTurma!I7-fimTurma!I$1)/fimTurma!I$2,"") -> 1.453777318 | I7: =IF(AND(fimTurma!J$2<>"",fimTurma!J7<>""),(fimTurma!J7-fimTurma!J$1)/fimTurma!J$2,"") -> -0.7242068244 | J7: =IF(AND(fimTurma!K$2<>"",fimTurma!K7<>""),(fimTurma!K7-fimTurma!K$1)/fimTurma!K$2,"") -> -0.9332777199 | K7: =IF(AND(fimTurma!L$2<>"",fimTurma!L7<>""),(fimTurma!L7-fimTurma!L$1)/fimTurma!L$2,"") ->  | L7: =IF(AND(fimTurma!M$2<>"",fimTurma!M7<>""),(fimTurma!M7-fimTurma!M$1)/fimTurma!M$2,"") -> 
A8: =IF(fimTurma!B8<>"",fimTurma!B8,"") ->  | B8: =fimTurma!A8 -> 5 | C8: =IF(fimTurma!C8<>"",fimTurma!C8,"") -> Nocas | D8: =IF(fimTurma!D8<>"",fimTurma!D8,"") -> 11 | E8: =IF(AND(fimTurma!F$2<>"",fimTurma!F8<>""),(fimTurma!F8-fimTurma!F$1)/fimTurma!F$2,"") -> 0.04932636237 | F8: =IF(AND(fimTurma!G$2<>"",fimTurma!G8<>""),(fimTurma!G8-fimTurma!G$1)/fimTurma!G$2,"") -> 1.732050808 | G8: =IF(AND(fimTurma!H$2<>"",fimTurma!H8<>""),(fimTurma!H8-fimTurma!H$1)/fimTurma!H$2,"") -> -0.5834535072 | H8: =IF(AND(fimTurma!I$2<>"",fimTurma!I8<>""),(fimTurma!I8-fimTurma!I$1)/fimTurma!I$2,"") -> 2.103840346 | I8: =IF(AND(fimTurma!J$2<>"",fimTurma!J8<>""),(fimTurma!J8-fimTurma!J$1)/fimTurma!J$2,"") -> -0.4345240946 | J8: =IF(AND(fimTurma!K$2<>"",fimTurma!K8<>""),(fimTurma!K8-fimTurma!K$1)/fimTurma!K$2,"") -> -1.918818992 | K8: =IF(AND(fimTurma!L$2<>"",fimTurma!L8<>""),(fimTurma!L8-fimTurma!L$1)/fimTurma!L$2,"") ->  | L8: =IF(AND(fimTurma!M$2<>"",fimTurma!M8<>""),(fimTurma!M8-fimTurma!M$1)/fimTurma!M$2,"") -> 
A9: =IF(fimTurma!B9<>"",fimTurma!B9,"") ->  | B9: =fimTurma!A9 -> 6 | C9: =IF(fimTurma!C9<>"",fimTurma!C9,"") -> Françoise Hardy | D9: =IF(fimTurma!D9<>"",fimTurma!D9,"") -> 13 | E9: =IF(AND(fimTurma!F$2<>"",fimTurma!F9<>""),(fimTurma!F9-fimTurma!F$1)/fimTurma!F$2,"") -> -0.7398954355 | F9: =IF(AND(fimTurma!G$2<>"",fimTurma!G9<>""),(fimTurma!G9-fimTurma!G$1)/fimTurma!G$2,"") -> 0.1924500897 | G9: =IF(AND(fimTurma!H$2<>"",fimTurma!H9<>""),(fimTurma!H9-fimTurma!H$1)/fimTurma!H$2,"") -> 0.6587378307 | H9: =IF(AND(fimTurma!I$2<>"",fimTurma!I9<>""),(fimTurma!I9-fimTurma!I$1)/fimTurma!I$2,"") -> 0.4786827754 | I9: =IF(AND(fimTurma!J$2<>"",fimTurma!J9<>""),(fimTurma!J9-fimTurma!J$1)/fimTurma!J$2,"") -> -0.1448413649 | J9: =IF(AND(fimTurma!K$2<>"",fimTurma!K9<>""),(fimTurma!K9-fimTurma!K$1)/fimTurma!K$2,"") -> 1.127399486 | K9: =IF(AND(fimTurma!L$2<>"",fimTurma!L9<>""),(fimTurma!L9-fimTurma!L$1)/fimTurma!L$2,"") ->  | L9: =IF(AND(fimTurma!M$2<>"",fimTurma!M9<>""),(fimTurma!M9-fimTurma!M$1)/fimTurma!M$2,"") -> 
A10: =IF(fimTurma!B10<>"",fimTurma!B10,"") ->  | B10: =fimTurma!A10 -> 7 | C10: =IF(fimTurma!C10<>"",fimTurma!C10,"") -> Asterix | D10: =IF(fimTurma!D10<>"",fimTurma!D10,"") -> 16 | E10: =IF(AND(fimTurma!F$2<>"",fimTurma!F10<>""),(fimTurma!F10-fimTurma!F$1)/fimTurma!F$2,"") -> -1.529117233 | F10: =IF(AND(fimTurma!G$2<>"",fimTurma!G10<>""),(fimTurma!G10-fimTurma!G$1)/fimTurma!G$2,"") -> -1.347150628 | G10: =IF(AND(fimTurma!H$2<>"",fimTurma!H10<>""),(fimTurma!H10-fimTurma!H$1)/fimTurma!H$2,"") -> 0.3481899962 | H10: =IF(AND(fimTurma!I$2<>"",fimTurma!I10<>""),(fimTurma!I10-fimTurma!I$1)/fimTurma!I$2,"") -> -0.8214432812 | I10: =IF(AND(fimTurma!J$2<>"",fimTurma!J10<>""),(fimTurma!J10-fimTurma!J$1)/fimTurma!J$2,"") -> 0.1448413649 | J10: =IF(AND(fimTurma!K$2<>"",fimTurma!K10<>""),(fimTurma!K10-fimTurma!K$1)/fimTurma!K$2,"") -> -1.650035009 | K10: =IF(AND(fimTurma!L$2<>"",fimTurma!L10<>""),(fimTurma!L10-fimTurma!L$1)/fimTurma!L$2,"") ->  | L10: =IF(AND(fimTurma!M$2<>"",fimTurma!M10<>""),(fimTurma!M10-fimTurma!M$1)/fimTurma!M$2,"") -> 
A11: =IF(fimTurma!B11<>"",fimTurma!B11,"") ->  | B11: =fimTurma!A11 -> 8 | C11: =IF(fimTurma!C11<>"",fimTurma!C11,"") -> Obelix | D11: =IF(fimTurma!D11<>"",fimTurma!D11,"") -> 14 | E11: =IF(AND(fimTurma!F$2<>"",fimTurma!F11<>""),(fimTurma!F11-fimTurma!F$1)/fimTurma!F$2,"") -> 1.825075408 | F11: =IF(AND(fimTurma!G$2<>"",fimTurma!G11<>""),(fimTurma!G11-fimTurma!G$1)/fimTurma!G$2,"") -> -2.116950987 | G11: =IF(AND(fimTurma!H$2<>"",fimTurma!H11<>""),(fimTurma!H11-fimTurma!H$1)/fimTurma!H$2,"") -> -0.7904853968 | H11: =IF(AND(fimTurma!I$2<>"",fimTurma!I11<>""),(fimTurma!I11-fimTurma!I$1)/fimTurma!I$2,"") -> -1.471506309 | I11: =IF(AND(fimTurma!J$2<>"",fimTurma!J11<>""),(fimTurma!J11-fimTurma!J$1)/fimTurma!J$2,"") -> 0.4345240946 | J11: =IF(AND(fimTurma!K$2<>"",fimTurma!K11<>""),(fimTurma!K11-fimTurma!K$1)/fimTurma!K$2,"") -> 0.3210475357 | K11: =IF(AND(fimTurma!L$2<>"",fimTurma!L11<>""),(fimTurma!L11-fimTurma!L$1)/fimTurma!L$2,"") ->  | L11: =IF(AND(fimTurma!M$2<>"",fimTurma!M11<>""),(fimTurma!M11-fimTurma!M$1)/fimTurma!M$2,"") -> 
A12: =IF(fimTurma!B12<>"",fimTurma!B12,"") ->  | B12: =fimTurma!A12 -> 9 | C12: =IF(fimTurma!C12<>"",fimTurma!C12,"") -> Ideiafix | D12: =IF(fimTurma!D12<>"",fimTurma!D12,"") -> 14 | E12: =IF(AND(fimTurma!F$2<>"",fimTurma!F12<>""),(fimTurma!F12-fimTurma!F$1)/fimTurma!F$2,"") -> -0.7398954355 | F12: =IF(AND(fimTurma!G$2<>"",fimTurma!G12<>""),(fimTurma!G12-fimTurma!G$1)/fimTurma!G$2,"") -> -0.5773502692 | G12: =IF(AND(fimTurma!H$2<>"",fimTurma!H12<>""),(fimTurma!H12-fimTurma!H$1)/fimTurma!H$2,"") -> -0.5834535072 | H12: =IF(AND(fimTurma!I$2<>"",fimTurma!I12<>""),(fimTurma!I12-fimTurma!I$1)/fimTurma!I$2,"") -> -0.7564369784 | I12: =IF(AND(fimTurma!J$2<>"",fimTurma!J12<>""),(fimTurma!J12-fimTurma!J$1)/fimTurma!J$2,"") -> 0.7242068244 | J12: =IF(AND(fimTurma!K$2<>"",fimTurma!K12<>""),(fimTurma!K12-fimTurma!K$1)/fimTurma!K$2,"") -> -0.216520431 | K12: =IF(AND(fimTurma!L$2<>"",fimTurma!L12<>""),(fimTurma!L12-fimTurma!L$1)/fimTurma!L$2,"") ->  | L12: =IF(AND(fimTurma!M$2<>"",fimTurma!M12<>""),(fimTurma!M12-fimTurma!M$1)/fimTurma!M$2,"") -> 
A13: =IF(fimTurma!B13<>"",fimTurma!B13,"") ->  | B13: =fimTurma!A13 -> 10 | C13: =IF(fimTurma!C13<>"",fimTurma!C13,"") -> Sylvie Vartan | D13: =IF(fimTurma!D13<>"",fimTurma!D13,"") -> 14 | E13: =IF(AND(fimTurma!F$2<>"",fimTurma!F13<>""),(fimTurma!F13-fimTurma!F$1)/fimTurma!F$2,"") -> 0.2466318118 | F13: =IF(AND(fimTurma!G$2<>"",fimTurma!G13<>""),(fimTurma!G13-fimTurma!G$1)/fimTurma!G$2,"") -> 0.1924500897 | G13: =IF(AND(fimTurma!H$2<>"",fimTurma!H13<>""),(fimTurma!H13-fimTurma!H$1)/fimTurma!H$2,"") -> 0.5552218859 | H13: =IF(AND(fimTurma!I$2<>"",fimTurma!I13<>""),(fimTurma!I13-fimTurma!I$1)/fimTurma!I$2,"") -> 0.1861544126 | I13: =IF(AND(fimTurma!J$2<>"",fimTurma!J13<>""),(fimTurma!J13-fimTurma!J$1)/fimTurma!J$2,"") -> 1.013889554 | J13: =IF(AND(fimTurma!K$2<>"",fimTurma!K13<>""),(fimTurma!K13-fimTurma!K$1)/fimTurma!K$2,"") -> 0.6794261801 | K13: =IF(AND(fimTurma!L$2<>"",fimTurma!L13<>""),(fimTurma!L13-fimTurma!L$1)/fimTurma!L$2,"") ->  | L13: =IF(AND(fimTurma!M$2<>"",fimTurma!M13<>""),(fimTurma!M13-fimTurma!M$1)/fimTurma!M$2,"") -> 
A14: =IF(fimTurma!B14<>"",fimTurma!B14,"") ->  | B14: =fimTurma!A14 -> 11 | C14: =IF(fimTurma!C14<>"",fimTurma!C14,"") -> Carlos Lopes | D14: =IF(fimTurma!D14<>"",fimTurma!D14,"") -> 14 | E14: =IF(AND(fimTurma!F$2<>"",fimTurma!F14<>""),(fimTurma!F14-fimTurma!F$1)/fimTurma!F$2,"") -> 1.430464509 | F14: =IF(AND(fimTurma!G$2<>"",fimTurma!G14<>""),(fimTurma!G14-fimTurma!G$1)/fimTurma!G$2,"") -> 0.1924500897 | G14: =IF(AND(fimTurma!H$2<>"",fimTurma!H14<>""),(fimTurma!H14-fimTurma!H$1)/fimTurma!H$2,"") -> 2.522024837 | H14: =IF(AND(fimTurma!I$2<>"",fimTurma!I14<>""),(fimTurma!I14-fimTurma!I$1)/fimTurma!I$2,"") -> -0.3989023128 | I14: =IF(AND(fimTurma!J$2<>"",fimTurma!J14<>""),(fimTurma!J14-fimTurma!J$1)/fimTurma!J$2,"") -> 1.303572284 | J14: =IF(AND(fimTurma!K$2<>"",fimTurma!K14<>""),(fimTurma!K14-fimTurma!K$1)/fimTurma!K$2,"") -> 1.575372791 | K14: =IF(AND(fimTurma!L$2<>"",fimTurma!L14<>""),(fimTurma!L14-fimTurma!L$1)/fimTurma!L$2,"") ->  | L14: =IF(AND(fimTurma!M$2<>"",fimTurma!M14<>""),(fimTurma!M14-fimTurma!M$1)/fimTurma!M$2,"") -> 
A15: =IF(fimTurma!B15<>"",fimTurma!B15,"") ->  | B15: =fimTurma!A15 -> 12 | C15: =IF(fimTurma!C15<>"",fimTurma!C15,"") -> Rosa Mota | D15: =IF(fimTurma!D15<>"",fimTurma!D15,"") -> 14 | E15: =IF(AND(fimTurma!F$2<>"",fimTurma!F15<>""),(fimTurma!F15-fimTurma!F$1)/fimTurma!F$2,"") -> -0.3452845366 | F15: =IF(AND(fimTurma!G$2<>"",fimTurma!G15<>""),(fimTurma!G15-fimTurma!G$1)/fimTurma!G$2,"") -> 0.9622504486 | G15: =IF(AND(fimTurma!H$2<>"",fimTurma!H15<>""),(fimTurma!H15-fimTurma!H$1)/fimTurma!H$2,"") -> -0.2729056727 | H15: =IF(AND(fimTurma!I$2<>"",fimTurma!I15<>""),(fimTurma!I15-fimTurma!I$1)/fimTurma!I$2,"") -> -0.7564369784 | I15: =IF(AND(fimTurma!J$2<>"",fimTurma!J15<>""),(fimTurma!J15-fimTurma!J$1)/fimTurma!J$2,"") -> 1.593255014 | J15: =IF(AND(fimTurma!K$2<>"",fimTurma!K15<>""),(fimTurma!K15-fimTurma!K$1)/fimTurma!K$2,"") -> 0.05226355232 | K15: =IF(AND(fimTurma!L$2<>"",fimTurma!L15<>""),(fimTurma!L15-fimTurma!L$1)/fimTurma!L$2,"") ->  | L15: =IF(AND(fimTurma!M$2<>"",fimTurma!M15<>""),(fimTurma!M15-fimTurma!M$1)/fimTurma!M$2,"") -> 
A16: =IF(fimTurma!B16<>"",fimTurma!B16,"") ->  | B16: =fimTurma!A16 -> 13 | C16: =IF(fimTurma!C16<>"",fimTurma!C16,"") ->  | D16: =IF(fimTurma!D16<>"",fimTurma!D16,"") ->  | E16: =IF(AND(fimTurma!F$2<>"",fimTurma!F16<>""),(fimTurma!F16-fimTurma!F$1)/fimTurma!F$2,"") ->  | F16: =IF(AND(fimTurma!G$2<>"",fimTurma!G16<>""),(fimTurma!G16-fimTurma!G$1)/fimTurma!G$2,"") ->  | G16: =IF(AND(fimTurma!H$2<>"",fimTurma!H16<>""),(fimTurma!H16-fimTurma!H$1)/fimTurma!H$2,"") ->  | H16: =IF(AND(fimTurma!I$2<>"",fimTurma!I16<>""),(fimTurma!I16-fimTurma!I$1)/fimTurma!I$2,"") ->  | I16: =IF(AND(fimTurma!J$2<>"",fimTurma!J16<>""),(fimTurma!J16-fimTurma!J$1)/fimTurma!J$2,"") ->  | J16: =IF(AND(fimTurma!K$2<>"",fimTurma!K16<>""),(fimTurma!K16-fimTurma!K$1)/fimTurma!K$2,"") ->  | K16: =IF(AND(fimTurma!L$2<>"",fimTurma!L16<>""),(fimTurma!L16-fimTurma!L$1)/fimTurma!L$2,"") ->  | L16: =IF(AND(fimTurma!M$2<>"",fimTurma!M16<>""),(fimTurma!M16-fimTurma!M$1)/fimTurma!M$2,"") -> 
A17: =IF(fimTurma!B17<>"",fimTurma!B17,"") ->  | B17: =fimTurma!A17 -> 14 | C17: =IF(fimTurma!C17<>"",fimTurma!C17,"") ->  | D17: =IF(fimTurma!D17<>"",fimTurma!D17,"") ->  | E17: =IF(AND(fimTurma!F$2<>"",fimTurma!F17<>""),(fimTurma!F17-fimTurma!F$1)/fimTurma!F$2,"") ->  | F17: =IF(AND(fimTurma!G$2<>"",fimTurma!G17<>""),(fimTurma!G17-fimTurma!G$1)/fimTurma!G$2,"") ->  | G17: =IF(AND(fimTurma!H$2<>"",fimTurma!H17<>""),(fimTurma!H17-fimTurma!H$1)/fimTurma!H$2,"") ->  | H17: =IF(AND(fimTurma!I$2<>"",fimTurma!I17<>""),(fimTurma!I17-fimTurma!I$1)/fimTurma!I$2,"") ->  | I17: =IF(AND(fimTurma!J$2<>"",fimTurma!J17<>""),(fimTurma!J17-fimTurma!J$1)/fimTurma!J$2,"") ->  | J17: =IF(AND(fimTurma!K$2<>"",fimTurma!K17<>""),(fimTurma!K17-fimTurma!K$1)/fimTurma!K$2,"") ->  | K17: =IF(AND(fimTurma!L$2<>"",fimTurma!L17<>""),(fimTurma!L17-fimTurma!L$1)/fimTurma!L$2,"") ->  | L17: =IF(AND(fimTurma!M$2<>"",fimTurma!M17<>""),(fimTurma!M17-fimTurma!M$1)/fimTurma!M$2,"") -> 
A18: =IF(fimTurma!B18<>"",fimTurma!B18,"") ->  | B18: =fimTurma!A18 -> 15 | C18: =IF(fimTurma!C18<>"",fimTurma!C18,"") ->  | D18: =IF(fimTurma!D18<>"",fimTurma!D18,"") ->  | E18: =IF(AND(fimTurma!F$2<>"",fimTurma!F18<>""),(fimTurma!F18-fimTurma!F$1)/fimTurma!F$2,"") ->  | F18: =IF(AND(fimTurma!G$2<>"",fimTurma!G18<>""),(fimTurma!G18-fimTurma!G$1)/fimTurma!G$2,"") ->  | G18: =IF(AND(fimTurma!H$2<>"",fimTurma!H18<>""),(fimTurma!H18-fimTurma!H$1)/fimTurma!H$2,"") ->  | H18: =IF(AND(fimTurma!I$2<>"",fimTurma!I18<>""),(fimTurma!I18-fimTurma!I$1)/fimTurma!I$2,"") ->  | I18: =IF(AND(fimTurma!J$2<>"",fimTurma!J18<>""),(fimTurma!J18-fimTurma!J$1)/fimTurma!J$2,"") ->  | J18: =IF(AND(fimTurma!K$2<>"",fimTurma!K18<>""),(fimTurma!K18-fimTurma!K$1)/fimTurma!K$2,"") ->  | K18: =IF(AND(fimTurma!L$2<>"",fimTurma!L18<>""),(fimTurma!L18-fimTurma!L$1)/fimTurma!L$2,"") ->  | L18: =IF(AND(fimTurma!M$2<>"",fimTurma!M18<>""),(fimTurma!M18-fimTurma!M$1)/fimTurma!M$2,"") -> 
A19: =IF(fimTurma!B19<>"",fimTurma!B19,"") ->  | B19: =fimTurma!A19 -> 16 | C19: =IF(fimTurma!C19<>"",fimTurma!C19,"") ->  | D19: =IF(fimTurma!D19<>"",fimTurma!D19,"") ->  | E19: =IF(AND(fimTurma!F$2<>"",fimTurma!F19<>""),(fimTurma!F19-fimTurma!F$1)/fimTurma!F$2,"") ->  | F19: =IF(AND(fimTurma!G$2<>"",fimTurma!G19<>""),(fimTurma!G19-fimTurma!G$1)/fimTurma!G$2,"") ->  | G19: =IF(AND(fimTurma!H$2<>"",fimTurma!H19<>""),(fimTurma!H19-fimTurma!H$1)/fimTurma!H$2,"") ->  | H19: =IF(AND(fimTurma!I$2<>"",fimTurma!I19<>""),(fimTurma!I19-fimTurma!I$1)/fimTurma!I$2,"") ->  | I19: =IF(AND(fimTurma!J$2<>"",fimTurma!J19<>""),(fimTurma!J19-fimTurma!J$1)/fimTurma!J$2,"") ->  | J19: =IF(AND(fimTurma!K$2<>"",fimTurma!K19<>""),(fimTurma!K19-fimTurma!K$1)/fimTurma!K$2,"") ->  | K19: =IF(AND(fimTurma!L$2<>"",fimTurma!L19<>""),(fimTurma!L19-fimTurma!L$1)/fimTurma!L$2,"") ->  | L19: =IF(AND(fimTurma!M$2<>"",fimTurma!M19<>""),(fimTurma!M19-fimTurma!M$1)/fimTurma!M$2,"") -> 
A20: =IF(fimTurma!B20<>"",fimTurma!B20,"") ->  | B20: =fimTurma!A20 -> 17 | C20: =IF(fimTurma!C20<>"",fimTurma!C20,"") ->  | D20: =IF(fimTurma!D20<>"",fimTurma!D20,"") ->  | E20: =IF(AND(fimTurma!F$2<>"",fimTurma!F20<>""),(fimTurma!F20-fimTurma!F$1)/fimTurma!F$2,"") ->  | F20: =IF(AND(fimTurma!G$2<>"",fimTurma!G20<>""),(fimTurma!G20-fimTurma!G$1)/fimTurma!G$2,"") ->  | G20: =IF(AND(fimTurma!H$2<>"",fimTurma!H20<>""),(fimTurma!H20-fimTurma!H$1)/fimTurma!H$2,"") ->  | H20: =IF(AND(fimTurma!I$2<>"",fimTurma!I20<>""),(fimTurma!I20-fimTurma!I$1)/fimTurma!I$2,"") ->  | I20: =IF(AND(fimTurma!J$2<>"",fimTurma!J20<>""),(fimTurma!J20-fimTurma!J$1)/fimTurma!J$2,"") ->  | J20: =IF(AND(fimTurma!K$2<>"",fimTurma!K20<>""),(fimTurma!K20-fimTurma!K$1)/fimTurma!K$2,"") ->  | K20: =IF(AND(fimTurma!L$2<>"",fimTurma!L20<>""),(fimTurma!L20-fimTurma!L$1)/fimTurma!L$2,"") ->  | L20: =IF(AND(fimTurma!M$2<>"",fimTurma!M20<>""),(fimTurma!M20-fimTurma!M$1)/fimTurma!M$2,"") -> 
A21: =IF(fimTurma!B21<>"",fimTurma!B21,"") ->  | B21: =fimTurma!A21 -> 18 | C21: =IF(fimTurma!C21<>"",fimTurma!C21,"") ->  | D21: =IF(fimTurma!D21<>"",fimTurma!D21,"") ->  | E21: =IF(AND(fimTurma!F$2<>"",fimTurma!F21<>""),(fimTurma!F21-fimTurma!F$1)/fimTurma!F$2,"") ->  | F21: =IF(AND(fimTurma!G$2<>"",fimTurma!G21<>""),(fimTurma!G21-fimTurma!G$1)/fimTurma!G$2,"") ->  | G21: =IF(AND(fimTurma!H$2<>"",fimTurma!H21<>""),(fimTurma!H21-fimTurma!H$1)/fimTurma!H$2,"") ->  | H21: =IF(AND(fimTurma!I$2<>"",fimTurma!I21<>""),(fimTurma!I21-fimTurma!I$1)/fimTurma!I$2,"") ->  | I21: =IF(AND(fimTurma!J$2<>"",fimTurma!J21<>""),(fimTurma!J21-fimTurma!J$1)/fimTurma!J$2,"") ->  | J21: =IF(AND(fimTurma!K$2<>"",fimTurma!K21<>""),(fimTurma!K21-fimTurma!K$1)/fimTurma!K$2,"") ->  | K21: =IF(AND(fimTurma!L$2<>"",fimTurma!L21<>""),(fimTurma!L21-fimTurma!L$1)/fimTurma!L$2,"") ->  | L21: =IF(AND(fimTurma!M$2<>"",fimTurma!M21<>""),(fimTurma!M21-fimTurma!M$1)/fimTurma!M$2,"") -> 
A22: =IF(fimTurma!B22<>"",fimTurma!B22,"") ->  | B22: =fimTurma!A22 -> 19 | C22: =IF(fimTurma!C22<>"",fimTurma!C22,"") ->  | D22: =IF(fimTurma!D22<>"",fimTurma!D22,"") ->  | E22: =IF(AND(fimTurma!F$2<>"",fimTurma!F22<>""),(fimTurma!F22-fimTurma!F$1)/fimTurma!F$2,"") ->  | F22: =IF(AND(fimTurma!G$2<>"",fimTurma!G22<>""),(fimTurma!G22-fimTurma!G$1)/fimTurma!G$2,"") ->  | G22: =IF(AND(fimTurma!H$2<>"",fimTurma!H22<>""),(fimTurma!H22-fimTurma!H$1)/fimTurma!H$2,"") ->  | H22: =IF(AND(fimTurma!I$2<>"",fimTurma!I22<>""),(fimTurma!I22-fimTurma!I$1)/fimTurma!I$2,"") ->  | I22: =IF(AND(fimTurma!J$2<>"",fimTurma!J22<>""),(fimTurma!J22-fimTurma!J$1)/fimTurma!J$2,"") ->  | J22: =IF(AND(fimTurma!K$2<>"",fimTurma!K22<>""),(fimTurma!K22-fimTurma!K$1)/fimTurma!K$2,"") ->  | K22: =IF(AND(fimTurma!L$2<>"",fimTurma!L22<>""),(fimTurma!L22-fimTurma!L$1)/fimTurma!L$2,"") ->  | L22: =IF(AND(fimTurma!M$2<>"",fimTurma!M22<>""),(fimTurma!M22-fimTurma!M$1)/fimTurma!M$2,"") -> 
A23: =IF(fimTurma!B23<>"",fimTurma!B23,"") ->  | B23: =fimTurma!A23 -> 20 | C23: =IF(fimTurma!C23<>"",fimTurma!C23,"") ->  | D23: =IF(fimTurma!D23<>"",fimTurma!D23,"") ->  | E23: =IF(AND(fimTurma!F$2<>"",fimTurma!F23<>""),(fimTurma!F23-fimTurma!F$1)/fimTurma!F$2,"") ->  | F23: =IF(AND(fimTurma!G$2<>"",fimTurma!G23<>""),(fimTurma!G23-fimTurma!G$1)/fimTurma!G$2,"") ->  | G23: =IF(AND(fimTurma!H$2<>"",fimTurma!H23<>""),(fimTurma!H23-fimTurma!H$1)/fimTurma!H$2,"") ->  | H23: =IF(AND(fimTurma!I$2<>"",fimTurma!I23<>""),(fimTurma!I23-fimTurma!I$1)/fimTurma!I$2,"") ->  | I23: =IF(AND(fimTurma!J$2<>"",fimTurma!J23<>""),(fimTurma!J23-fimTurma!J$1)/fimTurma!J$2,"") ->  | J23: =IF(AND(fimTurma!K$2<>"",fimTurma!K23<>""),(fimTurma!K23-fimTurma!K$1)/fimTurma!K$2,"") ->  | K23: =IF(AND(fimTurma!L$2<>"",fimTurma!L23<>""),(fimTurma!L23-fimTurma!L$1)/fimTurma!L$2,"") ->  | L23: =IF(AND(fimTurma!M$2<>"",fimTurma!M23<>""),(fimTurma!M23-fimTurma!M$1)/fimTurma!M$2,"") -> 
A24: =IF(fimTurma!B24<>"",fimTurma!B24,"") ->  | B24: =fimTurma!A24 -> 21 | C24: =IF(fimTurma!C24<>"",fimTurma!C24,"") ->  | D24: =IF(fimTurma!D24<>"",fimTurma!D24,"") ->  | E24: =IF(AND(fimTurma!F$2<>"",fimTurma!F24<>""),(fimTurma!F24-fimTurma!F$1)/fimTurma!F$2,"") ->  | F24: =IF(AND(fimTurma!G$2<>"",fimTurma!G24<>""),(fimTurma!G24-fimTurma!G$1)/fimTurma!G$2,"") ->  | G24: =IF(AND(fimTurma!H$2<>"",fimTurma!H24<>""),(fimTurma!H24-fimTurma!H$1)/fimTurma!H$2,"") ->  | H24: =IF(AND(fimTurma!I$2<>"",fimTurma!I24<>""),(fimTurma!I24-fimTurma!I$1)/fimTurma!I$2,"") ->  | I24: =IF(AND(fimTurma!J$2<>"",fimTurma!J24<>""),(fimTurma!J24-fimTurma!J$1)/fimTurma!J$2,"") ->  | J24: =IF(AND(fimTurma!K$2<>"",fimTurma!K24<>""),(fimTurma!K24-fimTurma!K$1)/fimTurma!K$2,"") ->  | K24: =IF(AND(fimTurma!L$2<>"",fimTurma!L24<>""),(fimTurma!L24-fimTurma!L$1)/fimTurma!L$2,"") ->  | L24: =IF(AND(fimTurma!M$2<>"",fimTurma!M24<>""),(fimTurma!M24-fimTurma!M$1)/fimTurma!M$2,"") -> 
A25: =IF(fimTurma!B25<>"",fimTurma!B25,"") ->  | B25: =fimTurma!A25 -> 22 | C25: =IF(fimTurma!C25<>"",fimTurma!C25,"") ->  | D25: =IF(fimTurma!D25<>"",fimTurma!D25,"") ->  | E25: =IF(AND(fimTurma!F$2<>"",fimTurma!F25<>""),(fimTurma!F25-fimTurma!F$1)/fimTurma!F$2,"") ->  | F25: =IF(AND(fimTurma!G$2<>"",fimTurma!G25<>""),(fimTurma!G25-fimTurma!G$1)/fimTurma!G$2,"") ->  | G25: =IF(AND(fimTurma!H$2<>"",fimTurma!H25<>""),(fimTurma!H25-fimTurma!H$1)/fimTurma!H$2,"") ->  | H25: =IF(AND(fimTurma!I$2<>"",fimTurma!I25<>""),(fimTurma!I25-fimTurma!I$1)/fimTurma!I$2,"") ->  | I25: =IF(AND(fimTurma!J$2<>"",fimTurma!J25<>""),(fimTurma!J25-fimTurma!J$1)/fimTurma!J$2,"") ->  | J25: =IF(AND(fimTurma!K$2<>"",fimTurma!K25<>""),(fimTurma!K25-fimTurma!K$1)/fimTurma!K$2,"") ->  | K25: =IF(AND(fimTurma!L$2<>"",fimTurma!L25<>""),(fimTurma!L25-fimTurma!L$1)/fimTurma!L$2,"") ->  | L25: =IF(AND(fimTurma!M$2<>"",fimTurma!M25<>""),(fimTurma!M25-fimTurma!M$1)/fimTurma!M$2,"") -> 
A26: =IF(fimTurma!B26<>"",fimTurma!B26,"") ->  | B26: =fimTurma!A26 -> 23 | C26: =IF(fimTurma!C26<>"",fimTurma!C26,"") ->  | D26: =IF(fimTurma!D26<>"",fimTurma!D26,"") ->  | E26: =IF(AND(fimTurma!F$2<>"",fimTurma!F26<>""),(fimTurma!F26-fimTurma!F$1)/fimTurma!F$2,"") ->  | F26: =IF(AND(fimTurma!G$2<>"",fimTurma!G26<>""),(fimTurma!G26-fimTurma!G$1)/fimTurma!G$2,"") ->  | G26: =IF(AND(fimTurma!H$2<>"",fimTurma!H26<>""),(fimTurma!H26-fimTurma!H$1)/fimTurma!H$2,"") ->  | H26: =IF(AND(fimTurma!I$2<>"",fimTurma!I26<>""),(fimTurma!I26-fimTurma!I$1)/fimTurma!I$2,"") ->  | I26: =IF(AND(fimTurma!J$2<>"",fimTurma!J26<>""),(fimTurma!J26-fimTurma!J$1)/fimTurma!J$2,"") ->  | J26: =IF(AND(fimTurma!K$2<>"",fimTurma!K26<>""),(fimTurma!K26-fimTurma!K$1)/fimTurma!K$2,"") ->  | K26: =IF(AND(fimTurma!L$2<>"",fimTurma!L26<>""),(fimTurma!L26-fimTurma!L$1)/fimTurma!L$2,"") ->  | L26: =IF(AND(fimTurma!M$2<>"",fimTurma!M26<>""),(fimTurma!M26-fimTurma!M$1)/fimTurma!M$2,"") -> 
A27: =IF(fimTurma!B27<>"",fimTurma!B27,"") ->  | B27: =fimTurma!A27 -> 24 | C27: =IF(fimTurma!C27<>"",fimTurma!C27,"") ->  | D27: =IF(fimTurma!D27<>"",fimTurma!D27,"") ->  | E27: =IF(AND(fimTurma!F$2<>"",fimTurma!F27<>""),(fimTurma!F27-fimTurma!F$1)/fimTurma!F$2,"") ->  | F27: =IF(AND(fimTurma!G$2<>"",fimTurma!G27<>""),(fimTurma!G27-fimTurma!G$1)/fimTurma!G$2,"") ->  | G27: =IF(AND(fimTurma!H$2<>"",fimTurma!H27<>""),(fimTurma!H27-fimTurma!H$1)/fimTurma!H$2,"") ->  | H27: =IF(AND(fimTurma!I$2<>"",fimTurma!I27<>""),(fimTurma!I27-fimTurma!I$1)/fimTurma!I$2,"") ->  | I27: =IF(AND(fimTurma!J$2<>"",fimTurma!J27<>""),(fimTurma!J27-fimTurma!J$1)/fimTurma!J$2,"") ->  | J27: =IF(AND(fimTurma!K$2<>"",fimTurma!K27<>""),(fimTurma!K27-fimTurma!K$1)/fimTurma!K$2,"") ->  | K27: =IF(AND(fimTurma!L$2<>"",fimTurma!L27<>""),(fimTurma!L27-fimTurma!L$1)/fimTurma!L$2,"") ->  | L27: =IF(AND(fimTurma!M$2<>"",fimTurma!M27<>""),(fimTurma!M27-fimTurma!M$1)/fimTurma!M$2,"") -> 
A28: =IF(fimTurma!B28<>"",fimTurma!B28,"") ->  | B28: =fimTurma!A28 -> 25 | C28: =IF(fimTurma!C28<>"",fimTurma!C28,"") ->  | D28: =IF(fimTurma!D28<>"",fimTurma!D28,"") ->  | E28: =IF(AND(fimTurma!F$2<>"",fimTurma!F28<>""),(fimTurma!F28-fimTurma!F$1)/fimTurma!F$2,"") ->  | F28: =IF(AND(fimTurma!G$2<>"",fimTurma!G28<>""),(fimTurma!G28-fimTurma!G$1)/fimTurma!G$2,"") ->  | G28: =IF(AND(fimTurma!H$2<>"",fimTurma!H28<>""),(fimTurma!H28-fimTurma!H$1)/fimTurma!H$2,"") ->  | H28: =IF(AND(fimTurma!I$2<>"",fimTurma!I28<>""),(fimTurma!I28-fimTurma!I$1)/fimTurma!I$2,"") ->  | I28: =IF(AND(fimTurma!J$2<>"",fimTurma!J28<>""),(fimTurma!J28-fimTurma!J$1)/fimTurma!J$2,"") ->  | J28: =IF(AND(fimTurma!K$2<>"",fimTurma!K28<>""),(fimTurma!K28-fimTurma!K$1)/fimTurma!K$2,"") ->  | K28: =IF(AND(fimTurma!L$2<>"",fimTurma!L28<>""),(fimTurma!L28-fimTurma!L$1)/fimTurma!L$2,"") ->  | L28: =IF(AND(fimTurma!M$2<>"",fimTurma!M28<>""),(fimTurma!M28-fimTurma!M$1)/fimTurma!M$2,"") -> 
A29: =IF(fimTurma!B29<>"",fimTurma!B29,"") ->  | B29: =fimTurma!A29 -> 26 | C29: =IF(fimTurma!C29<>"",fimTurma!C29,"") ->  | D29: =IF(fimTurma!D29<>"",fimTurma!D29,"") ->  | E29: =IF(AND(fimTurma!F$2<>"",fimTurma!F29<>""),(fimTurma!F29-fimTurma!F$1)/fimTurma!F$2,"") ->  | F29: =IF(AND(fimTurma!G$2<>"",fimTurma!G29<>""),(fimTurma!G29-fimTurma!G$1)/fimTurma!G$2,"") ->  | G29: =IF(AND(fimTurma!H$2<>"",fimTurma!H29<>""),(fimTurma!H29-fimTurma!H$1)/fimTurma!H$2,"") ->  | H29: =IF(AND(fimTurma!I$2<>"",fimTurma!I29<>""),(fimTurma!I29-fimTurma!I$1)/fimTurma!I$2,"") ->  | I29: =IF(AND(fimTurma!J$2<>"",fimTurma!J29<>""),(fimTurma!J29-fimTurma!J$1)/fimTurma!J$2,"") ->  | J29: =IF(AND(fimTurma!K$2<>"",fimTurma!K29<>""),(fimTurma!K29-fimTurma!K$1)/fimTurma!K$2,"") ->  | K29: =IF(AND(fimTurma!L$2<>"",fimTurma!L29<>""),(fimTurma!L29-fimTurma!L$1)/fimTurma!L$2,"") ->  | L29: =IF(AND(fimTurma!M$2<>"",fimTurma!M29<>""),(fimTurma!M29-fimTurma!M$1)/fimTurma!M$2,"") -> 
A30: =IF(fimTurma!B30<>"",fimTurma!B30,"") ->  | B30: =fimTurma!A30 -> 27 | C30: =IF(fimTurma!C30<>"",fimTurma!C30,"") ->  | D30: =IF(fimTurma!D30<>"",fimTurma!D30,"") ->  | E30: =IF(AND(fimTurma!F$2<>"",fimTurma!F30<>""),(fimTurma!F30-fimTurma!F$1)/fimTurma!F$2,"") ->  | F30: =IF(AND(fimTurma!G$2<>"",fimTurma!G30<>""),(fimTurma!G30-fimTurma!G$1)/fimTurma!G$2,"") ->  | G30: =IF(AND(fimTurma!H$2<>"",fimTurma!H30<>""),(fimTurma!H30-fimTurma!H$1)/fimTurma!H$2,"") ->  | H30: =IF(AND(fimTurma!I$2<>"",fimTurma!I30<>""),(fimTurma!I30-fimTurma!I$1)/fimTurma!I$2,"") ->  | I30: =IF(AND(fimTurma!J$2<>"",fimTurma!J30<>""),(fimTurma!J30-fimTurma!J$1)/fimTurma!J$2,"") ->  | J30: =IF(AND(fimTurma!K$2<>"",fimTurma!K30<>""),(fimTurma!K30-fimTurma!K$1)/fimTurma!K$2,"") ->  | K30: =IF(AND(fimTurma!L$2<>"",fimTurma!L30<>""),(fimTurma!L30-fimTurma!L$1)/fimTurma!L$2,"") ->  | L30: =IF(AND(fimTurma!M$2<>"",fimTurma!M30<>""),(fimTurma!M30-fimTurma!M$1)/fimTurma!M$2,"") -> 
A31: =IF(fimTurma!B31<>"",fimTurma!B31,"") ->  | B31: =fimTurma!A31 -> 28 | C31: =IF(fimTurma!C31<>"",fimTurma!C31,"") ->  | D31: =IF(fimTurma!D31<>"",fimTurma!D31,"") ->  | E31: =IF(AND(fimTurma!F$2<>"",fimTurma!F31<>""),(fimTurma!F31-fimTurma!F$1)/fimTurma!F$2,"") ->  | F31: =IF(AND(fimTurma!G$2<>"",fimTurma!G31<>""),(fimTurma!G31-fimTurma!G$1)/fimTurma!G$2,"") ->  | G31: =IF(AND(fimTurma!H$2<>"",fimTurma!H31<>""),(fimTurma!H31-fimTurma!H$1)/fimTurma!H$2,"") ->  | H31: =IF(AND(fimTurma!I$2<>"",fimTurma!I31<>""),(fimTurma!I31-fimTurma!I$1)/fimTurma!I$2,"") ->  | I31: =IF(AND(fimTurma!J$2<>"",fimTurma!J31<>""),(fimTurma!J31-fimTurma!J$1)/fimTurma!J$2,"") ->  | J31: =IF(AND(fimTurma!K$2<>"",fimTurma!K31<>""),(fimTurma!K31-fimTurma!K$1)/fimTurma!K$2,"") ->  | K31: =IF(AND(fimTurma!L$2<>"",fimTurma!L31<>""),(fimTurma!L31-fimTurma!L$1)/fimTurma!L$2,"") ->  | L31: =IF(AND(fimTurma!M$2<>"",fimTurma!M31<>""),(fimTurma!M31-fimTurma!M$1)/fimTurma!M$2,"") -> 
A32: =IF(fimTurma!B32<>"",fimTurma!B32,"") ->  | B32: =fimTurma!A32 -> 29 | C32: =IF(fimTurma!C32<>"",fimTurma!C32,"") ->  | D32: =IF(fimTurma!D32<>"",fimTurma!D32,"") ->  | E32: =IF(AND(fimTurma!F$2<>"",fimTurma!F32<>""),(fimTurma!F32-fimTurma!F$1)/fimTurma!F$2,"") ->  | F32: =IF(AND(fimTurma!G$2<>"",fimTurma!G32<>""),(fimTurma!G32-fimTurma!G$1)/fimTurma!G$2,"") ->  | G32: =IF(AND(fimTurma!H$2<>"",fimTurma!H32<>""),(fimTurma!H32-fimTurma!H$1)/fimTurma!H$2,"") ->  | H32: =IF(AND(fimTurma!I$2<>"",fimTurma!I32<>""),(fimTurma!I32-fimTurma!I$1)/fimTurma!I$2,"") ->  | I32: =IF(AND(fimTurma!J$2<>"",fimTurma!J32<>""),(fimTurma!J32-fimTurma!J$1)/fimTurma!J$2,"") ->  | J32: =IF(AND(fimTurma!K$2<>"",fimTurma!K32<>""),(fimTurma!K32-fimTurma!K$1)/fimTurma!K$2,"") ->  | K32: =IF(AND(fimTurma!L$2<>"",fimTurma!L32<>""),(fimTurma!L32-fimTurma!L$1)/fimTurma!L$2,"") ->  | L32: =IF(AND(fimTurma!M$2<>"",fimTurma!M32<>""),(fimTurma!M32-fimTurma!M$1)/fimTurma!M$2,"") -> 
A33: =IF(fimTurma!B33<>"",fimTurma!B33,"") ->  | B33: =fimTurma!A33 -> 30 | C33: =IF(fimTurma!C33<>"",fimTurma!C33,"") ->  | D33: =IF(fimTurma!D33<>"",fimTurma!D33,"") ->  | E33: =IF(AND(fimTurma!F$2<>"",fimTurma!F33<>""),(fimTurma!F33-fimTurma!F$1)/fimTurma!F$2,"") ->  | F33: =IF(AND(fimTurma!G$2<>"",fimTurma!G33<>""),(fimTurma!G33-fimTurma!G$1)/fimTurma!G$2,"") ->  | G33: =IF(AND(fimTurma!H$2<>"",fimTurma!H33<>""),(fimTurma!H33-fimTurma!H$1)/fimTurma!H$2,"") ->  | H33: =IF(AND(fimTurma!I$2<>"",fimTurma!I33<>""),(fimTurma!I33-fimTurma!I$1)/fimTurma!I$2,"") ->  | I33: =IF(AND(fimTurma!J$2<>"",fimTurma!J33<>""),(fimTurma!J33-fimTurma!J$1)/fimTurma!J$2,"") ->  | J33: =IF(AND(fimTurma!K$2<>"",fimTurma!K33<>""),(fimTurma!K33-fimTurma!K$1)/fimTurma!K$2,"") ->  | K33: =IF(AND(fimTurma!L$2<>"",fimTurma!L33<>""),(fimTurma!L33-fimTurma!L$1)/fimTurma!L$2,"") ->  | L33: =IF(AND(fimTurma!M$2<>"",fimTurma!M33<>""),(fimTurma!M33-fimTurma!M$1)/fimTurma!M$2,"") -> 
A34: =IF(fimTurma!B34<>"",fimTurma!B34,"") ->  | B34: =fimTurma!A34 -> 31 | C34: =IF(fimTurma!C34<>"",fimTurma!C34,"") ->  | D34: =IF(fimTurma!D34<>"",fimTurma!D34,"") ->  | E34: =IF(AND(fimTurma!F$2<>"",fimTurma!F34<>""),(fimTurma!F34-fimTurma!F$1)/fimTurma!F$2,"") ->  | F34: =IF(AND(fimTurma!G$2<>"",fimTurma!G34<>""),(fimTurma!G34-fimTurma!G$1)/fimTurma!G$2,"") ->  | G34: =IF(AND(fimTurma!H$2<>"",fimTurma!H34<>""),(fimTurma!H34-fimTurma!H$1)/fimTurma!H$2,"") ->  | H34: =IF(AND(fimTurma!I$2<>"",fimTurma!I34<>""),(fimTurma!I34-fimTurma!I$1)/fimTurma!I$2,"") ->  | I34: =IF(AND(fimTurma!J$2<>"",fimTurma!J34<>""),(fimTurma!J34-fimTurma!J$1)/fimTurma!J$2,"") ->  | J34: =IF(AND(fimTurma!K$2<>"",fimTurma!K34<>""),(fimTurma!K34-fimTurma!K$1)/fimTurma!K$2,"") ->  | K34: =IF(AND(fimTurma!L$2<>"",fimTurma!L34<>""),(fimTurma!L34-fimTurma!L$1)/fimTurma!L$2,"") ->  | L34: =IF(AND(fimTurma!M$2<>"",fimTurma!M34<>""),(fimTurma!M34-fimTurma!M$1)/fimTurma!M$2,"") -> 
A35: =IF(fimTurma!B35<>"",fimTurma!B35,"") ->  | B35: =fimTurma!A35 -> 32 | C35: =IF(fimTurma!C35<>"",fimTurma!C35,"") ->  | D35: =IF(fimTurma!D35<>"",fimTurma!D35,"") ->  | E35: =IF(AND(fimTurma!F$2<>"",fimTurma!F35<>""),(fimTurma!F35-fimTurma!F$1)/fimTurma!F$2,"") ->  | F35: =IF(AND(fimTurma!G$2<>"",fimTurma!G35<>""),(fimTurma!G35-fimTurma!G$1)/fimTurma!G$2,"") ->  | G35: =IF(AND(fimTurma!H$2<>"",fimTurma!H35<>""),(fimTurma!H35-fimTurma!H$1)/fimTurma!H$2,"") ->  | H35: =IF(AND(fimTurma!I$2<>"",fimTurma!I35<>""),(fimTurma!I35-fimTurma!I$1)/fimTurma!I$2,"") ->  | I35: =IF(AND(fimTurma!J$2<>"",fimTurma!J35<>""),(fimTurma!J35-fimTurma!J$1)/fimTurma!J$2,"") ->  | J35: =IF(AND(fimTurma!K$2<>"",fimTurma!K35<>""),(fimTurma!K35-fimTurma!K$1)/fimTurma!K$2,"") ->  | K35: =IF(AND(fimTurma!L$2<>"",fimTurma!L35<>""),(fimTurma!L35-fimTurma!L$1)/fimTurma!L$2,"") ->  | L35: =IF(AND(fimTurma!M$2<>"",fimTurma!M35<>""),(fimTurma!M35-fimTurma!M$1)/fimTurma!M$2,"") -> 
A36: =IF(fimTurma!B36<>"",fimTurma!B36,"") ->  | B36: =fimTurma!A36 -> 33 | C36: =IF(fimTurma!C36<>"",fimTurma!C36,"") ->  | D36: =IF(fimTurma!D36<>"",fimTurma!D36,"") ->  | E36: =IF(AND(fimTurma!F$2<>"",fimTurma!F36<>""),(fimTurma!F36-fimTurma!F$1)/fimTurma!F$2,"") ->  | F36: =IF(AND(fimTurma!G$2<>"",fimTurma!G36<>""),(fimTurma!G36-fimTurma!G$1)/fimTurma!G$2,"") ->  | G36: =IF(AND(fimTurma!H$2<>"",fimTurma!H36<>""),(fimTurma!H36-fimTurma!H$1)/fimTurma!H$2,"") ->  | H36: =IF(AND(fimTurma!I$2<>"",fimTurma!I36<>""),(fimTurma!I36-fimTurma!I$1)/fimTurma!I$2,"") ->  | I36: =IF(AND(fimTurma!J$2<>"",fimTurma!J36<>""),(fimTurma!J36-fimTurma!J$1)/fimTurma!J$2,"") ->  | J36: =IF(AND(fimTurma!K$2<>"",fimTurma!K36<>""),(fimTurma!K36-fimTurma!K$1)/fimTurma!K$2,"") ->  | K36: =IF(AND(fimTurma!L$2<>"",fimTurma!L36<>""),(fimTurma!L36-fimTurma!L$1)/fimTurma!L$2,"") ->  | L36: =IF(AND(fimTurma!M$2<>"",fimTurma!M36<>""),(fimTurma!M36-fimTurma!M$1)/fimTurma!M$2,"") -> 
A37: =IF(fimTurma!B37<>"",fimTurma!B37,"") ->  | B37: =fimTurma!A37 -> 34 | C37: =IF(fimTurma!C37<>"",fimTurma!C37,"") ->  | D37: =IF(fimTurma!D37<>"",fimTurma!D37,"") ->  | E37: =IF(AND(fimTurma!F$2<>"",fimTurma!F37<>""),(fimTurma!F37-fimTurma!F$1)/fimTurma!F$2,"") ->  | F37: =IF(AND(fimTurma!G$2<>"",fimTurma!G37<>""),(fimTurma!G37-fimTurma!G$1)/fimTurma!G$2,"") ->  | G37: =IF(AND(fimTurma!H$2<>"",fimTurma!H37<>""),(fimTurma!H37-fimTurma!H$1)/fimTurma!H$2,"") ->  | H37: =IF(AND(fimTurma!I$2<>"",fimTurma!I37<>""),(fimTurma!I37-fimTurma!I$1)/fimTurma!I$2,"") ->  | I37: =IF(AND(fimTurma!J$2<>"",fimTurma!J37<>""),(fimTurma!J37-fimTurma!J$1)/fimTurma!J$2,"") ->  | J37: =IF(AND(fimTurma!K$2<>"",fimTurma!K37<>""),(fimTurma!K37-fimTurma!K$1)/fimTurma!K$2,"") ->  | K37: =IF(AND(fimTurma!L$2<>"",fimTurma!L37<>""),(fimTurma!L37-fimTurma!L$1)/fimTurma!L$2,"") ->  | L37: =IF(AND(fimTurma!M$2<>"",fimTurma!M37<>""),(fimTurma!M37-fimTurma!M$1)/fimTurma!M$2,"") -> 
A38: =IF(fimTurma!B38<>"",fimTurma!B38,"") ->  | B38: =fimTurma!A38 -> 35 | C38: =IF(fimTurma!C38<>"",fimTurma!C38,"") ->  | D38: =IF(fimTurma!D38<>"",fimTurma!D38,"") ->  | E38: =IF(AND(fimTurma!F$2<>"",fimTurma!F38<>""),(fimTurma!F38-fimTurma!F$1)/fimTurma!F$2,"") ->  | F38: =IF(AND(fimTurma!G$2<>"",fimTurma!G38<>""),(fimTurma!G38-fimTurma!G$1)/fimTurma!G$2,"") ->  | G38: =IF(AND(fimTurma!H$2<>"",fimTurma!H38<>""),(fimTurma!H38-fimTurma!H$1)/fimTurma!H$2,"") ->  | H38: =IF(AND(fimTurma!I$2<>"",fimTurma!I38<>""),(fimTurma!I38-fimTurma!I$1)/fimTurma!I$2,"") ->  | I38: =IF(AND(fimTurma!J$2<>"",fimTurma!J38<>""),(fimTurma!J38-fimTurma!J$1)/fimTurma!J$2,"") ->  | J38: =IF(AND(fimTurma!K$2<>"",fimTurma!K38<>""),(fimTurma!K38-fimTurma!K$1)/fimTurma!K$2,"") ->  | K38: =IF(AND(fimTurma!L$2<>"",fimTurma!L38<>""),(fimTurma!L38-fimTurma!L$1)/fimTurma!L$2,"") ->  | L38: =IF(AND(fimTurma!M$2<>"",fimTurma!M38<>""),(fimTurma!M38-fimTurma!M$1)/fimTurma!M$2,"") -> 
A39: =IF(fimTurma!B39<>"",fimTurma!B39,"") ->  | B39: =fimTurma!A39 -> 36 | C39: =IF(fimTurma!C39<>"",fimTurma!C39,"") ->  | D39: =IF(fimTurma!D39<>"",fimTurma!D39,"") ->  | E39: =IF(AND(fimTurma!F$2<>"",fimTurma!F39<>""),(fimTurma!F39-fimTurma!F$1)/fimTurma!F$2,"") ->  | F39: =IF(AND(fimTurma!G$2<>"",fimTurma!G39<>""),(fimTurma!G39-fimTurma!G$1)/fimTurma!G$2,"") ->  | G39: =IF(AND(fimTurma!H$2<>"",fimTurma!H39<>""),(fimTurma!H39-fimTurma!H$1)/fimTurma!H$2,"") ->  | H39: =IF(AND(fimTurma!I$2<>"",fimTurma!I39<>""),(fimTurma!I39-fimTurma!I$1)/fimTurma!I$2,"") ->  | I39: =IF(AND(fimTurma!J$2<>"",fimTurma!J39<>""),(fimTurma!J39-fimTurma!J$1)/fimTurma!J$2,"") ->  | J39: =IF(AND(fimTurma!K$2<>"",fimTurma!K39<>""),(fimTurma!K39-fimTurma!K$1)/fimTurma!K$2,"") ->  | K39: =IF(AND(fimTurma!L$2<>"",fimTurma!L39<>""),(fimTurma!L39-fimTurma!L$1)/fimTurma!L$2,"") ->  | L39: =IF(AND(fimTurma!M$2<>"",fimTurma!M39<>""),(fimTurma!M39-fimTurma!M$1)/fimTurma!M$2,"") -> 
A40: =IF(fimTurma!B40<>"",fimTurma!B40,"") ->  | B40: =fimTurma!A40 -> 37 | C40: =IF(fimTurma!C40<>"",fimTurma!C40,"") ->  | D40: =IF(fimTurma!D40<>"",fimTurma!D40,"") ->  | E40: =IF(AND(fimTurma!F$2<>"",fimTurma!F40<>""),(fimTurma!F40-fimTurma!F$1)/fimTurma!F$2,"") ->  | F40: =IF(AND(fimTurma!G$2<>"",fimTurma!G40<>""),(fimTurma!G40-fimTurma!G$1)/fimTurma!G$2,"") ->  | G40: =IF(AND(fimTurma!H$2<>"",fimTurma!H40<>""),(fimTurma!H40-fimTurma!H$1)/fimTurma!H$2,"") ->  | H40: =IF(AND(fimTurma!I$2<>"",fimTurma!I40<>""),(fimTurma!I40-fimTurma!I$1)/fimTurma!I$2,"") ->  | I40: =IF(AND(fimTurma!J$2<>"",fimTurma!J40<>""),(fimTurma!J40-fimTurma!J$1)/fimTurma!J$2,"") ->  | J40: =IF(AND(fimTurma!K$2<>"",fimTurma!K40<>""),(fimTurma!K40-fimTurma!K$1)/fimTurma!K$2,"") ->  | K40: =IF(AND(fimTurma!L$2<>"",fimTurma!L40<>""),(fimTurma!L40-fimTurma!L$1)/fimTurma!L$2,"") ->  | L40: =IF(AND(fimTurma!M$2<>"",fimTurma!M40<>""),(fimTurma!M40-fimTurma!M$1)/fimTurma!M$2,"") -> 
A41: =IF(fimTurma!B41<>"",fimTurma!B41,"") ->  | B41: =fimTurma!A41 -> 38 | C41: =IF(fimTurma!C41<>"",fimTurma!C41,"") ->  | D41: =IF(fimTurma!D41<>"",fimTurma!D41,"") ->  | E41: =IF(AND(fimTurma!F$2<>"",fimTurma!F41<>""),(fimTurma!F41-fimTurma!F$1)/fimTurma!F$2,"") ->  | F41: =IF(AND(fimTurma!G$2<>"",fimTurma!G41<>""),(fimTurma!G41-fimTurma!G$1)/fimTurma!G$2,"") ->  | G41: =IF(AND(fimTurma!H$2<>"",fimTurma!H41<>""),(fimTurma!H41-fimTurma!H$1)/fimTurma!H$2,"") ->  | H41: =IF(AND(fimTurma!I$2<>"",fimTurma!I41<>""),(fimTurma!I41-fimTurma!I$1)/fimTurma!I$2,"") ->  | I41: =IF(AND(fimTurma!J$2<>"",fimTurma!J41<>""),(fimTurma!J41-fimTurma!J$1)/fimTurma!J$2,"") ->  | J41: =IF(AND(fimTurma!K$2<>"",fimTurma!K41<>""),(fimTurma!K41-fimTurma!K$1)/fimTurma!K$2,"") ->  | K41: =IF(AND(fimTurma!L$2<>"",fimTurma!L41<>""),(fimTurma!L41-fimTurma!L$1)/fimTurma!L$2,"") ->  | L41: =IF(AND(fimTurma!M$2<>"",fimTurma!M41<>""),(fimTurma!M41-fimTurma!M$1)/fimTurma!M$2,"") -> 
A42: =IF(fimTurma!B42<>"",fimTurma!B42,"") ->  | B42: =fimTurma!A42 -> 39 | C42: =IF(fimTurma!C42<>"",fimTurma!C42,"") ->  | D42: =IF(fimTurma!D42<>"",fimTurma!D42,"") ->  | E42: =IF(AND(fimTurma!F$2<>"",fimTurma!F42<>""),(fimTurma!F42-fimTurma!F$1)/fimTurma!F$2,"") ->  | F42: =IF(AND(fimTurma!G$2<>"",fimTurma!G42<>""),(fimTurma!G42-fimTurma!G$1)/fimTurma!G$2,"") ->  | G42: =IF(AND(fimTurma!H$2<>"",fimTurma!H42<>""),(fimTurma!H42-fimTurma!H$1)/fimTurma!H$2,"") ->  | H42: =IF(AND(fimTurma!I$2<>"",fimTurma!I42<>""),(fimTurma!I42-fimTurma!I$1)/fimTurma!I$2,"") ->  | I42: =IF(AND(fimTurma!J$2<>"",fimTurma!J42<>""),(fimTurma!J42-fimTurma!J$1)/fimTurma!J$2,"") ->  | J42: =IF(AND(fimTurma!K$2<>"",fimTurma!K42<>""),(fimTurma!K42-fimTurma!K$1)/fimTurma!K$2,"") ->  | K42: =IF(AND(fimTurma!L$2<>"",fimTurma!L42<>""),(fimTurma!L42-fimTurma!L$1)/fimTurma!L$2,"") ->  | L42: =IF(AND(fimTurma!M$2<>"",fimTurma!M42<>""),(fimTurma!M42-fimTurma!M$1)/fimTurma!M$2,"") -> 
A43: =IF(fimTurma!B43<>"",fimTurma!B43,"") ->  | B43: =fimTurma!A43 -> 40 | C43: =IF(fimTurma!C43<>"",fimTurma!C43,"") ->  | D43: =IF(fimTurma!D43<>"",fimTurma!D43,"") ->  | E43: =IF(AND(fimTurma!F$2<>"",fimTurma!F43<>""),(fimTurma!F43-fimTurma!F$1)/fimTurma!F$2,"") ->  | F43: =IF(AND(fimTurma!G$2<>"",fimTurma!G43<>""),(fimTurma!G43-fimTurma!G$1)/fimTurma!G$2,"") ->  | G43: =IF(AND(fimTurma!H$2<>"",fimTurma!H43<>""),(fimTurma!H43-fimTurma!H$1)/fimTurma!H$2,"") ->  | H43: =IF(AND(fimTurma!I$2<>"",fimTurma!I43<>""),(fimTurma!I43-fimTurma!I$1)/fimTurma!I$2,"") ->  | I43: =IF(AND(fimTurma!J$2<>"",fimTurma!J43<>""),(fimTurma!J43-fimTurma!J$1)/fimTurma!J$2,"") ->  | J43: =IF(AND(fimTurma!K$2<>"",fimTurma!K43<>""),(fimTurma!K43-fimTurma!K$1)/fimTurma!K$2,"") ->  | K43: =IF(AND(fimTurma!L$2<>"",fimTurma!L43<>""),(fimTurma!L43-fimTurma!L$1)/fimTurma!L$2,"") ->  | L43: =IF(AND(fimTurma!M$2<>"",fimTurma!M43<>""),(fimTurma!M43-fimTurma!M$1)/fimTurma!M$2,"") -> 
A44: =IF(fimTurma!B44<>"",fimTurma!B44,"") ->  | B44: =fimTurma!A44 -> 41 | C44: =IF(fimTurma!C44<>"",fimTurma!C44,"") ->  | D44: =IF(fimTurma!D44<>"",fimTurma!D44,"") ->  | E44: =IF(AND(fimTurma!F$2<>"",fimTurma!F44<>""),(fimTurma!F44-fimTurma!F$1)/fimTurma!F$2,"") ->  | F44: =IF(AND(fimTurma!G$2<>"",fimTurma!G44<>""),(fimTurma!G44-fimTurma!G$1)/fimTurma!G$2,"") ->  | G44: =IF(AND(fimTurma!H$2<>"",fimTurma!H44<>""),(fimTurma!H44-fimTurma!H$1)/fimTurma!H$2,"") ->  | H44: =IF(AND(fimTurma!I$2<>"",fimTurma!I44<>""),(fimTurma!I44-fimTurma!I$1)/fimTurma!I$2,"") ->  | I44: =IF(AND(fimTurma!J$2<>"",fimTurma!J44<>""),(fimTurma!J44-fimTurma!J$1)/fimTurma!J$2,"") ->  | J44: =IF(AND(fimTurma!K$2<>"",fimTurma!K44<>""),(fimTurma!K44-fimTurma!K$1)/fimTurma!K$2,"") ->  | K44: =IF(AND(fimTurma!L$2<>"",fimTurma!L44<>""),(fimTurma!L44-fimTurma!L$1)/fimTurma!L$2,"") ->  | L44: =IF(AND(fimTurma!M$2<>"",fimTurma!M44<>""),(fimTurma!M44-fimTurma!M$1)/fimTurma!M$2,"") -> 
A45: =IF(fimTurma!B45<>"",fimTurma!B45,"") ->  | B45: =fimTurma!A45 -> 42 | C45: =IF(fimTurma!C45<>"",fimTurma!C45,"") ->  | D45: =IF(fimTurma!D45<>"",fimTurma!D45,"") ->  | E45: =IF(AND(fimTurma!F$2<>"",fimTurma!F45<>""),(fimTurma!F45-fimTurma!F$1)/fimTurma!F$2,"") ->  | F45: =IF(AND(fimTurma!G$2<>"",fimTurma!G45<>""),(fimTurma!G45-fimTurma!G$1)/fimTurma!G$2,"") ->  | G45: =IF(AND(fimTurma!H$2<>"",fimTurma!H45<>""),(fimTurma!H45-fimTurma!H$1)/fimTurma!H$2,"") ->  | H45: =IF(AND(fimTurma!I$2<>"",fimTurma!I45<>""),(fimTurma!I45-fimTurma!I$1)/fimTurma!I$2,"") ->  | I45: =IF(AND(fimTurma!J$2<>"",fimTurma!J45<>""),(fimTurma!J45-fimTurma!J$1)/fimTurma!J$2,"") ->  | J45: =IF(AND(fimTurma!K$2<>"",fimTurma!K45<>""),(fimTurma!K45-fimTurma!K$1)/fimTurma!K$2,"") ->  | K45: =IF(AND(fimTurma!L$2<>"",fimTurma!L45<>""),(fimTurma!L45-fimTurma!L$1)/fimTurma!L$2,"") ->  | L45: =IF(AND(fimTurma!M$2<>"",fimTurma!M45<>""),(fimTurma!M45-fimTurma!M$1)/fimTurma!M$2,"") -> 
A46: =IF(fimTurma!B46<>"",fimTurma!B46,"") ->  | B46: =fimTurma!A46 -> 43 | C46: =IF(fimTurma!C46<>"",fimTurma!C46,"") ->  | D46: =IF(fimTurma!D46<>"",fimTurma!D46,"") ->  | E46: =IF(AND(fimTurma!F$2<>"",fimTurma!F46<>""),(fimTurma!F46-fimTurma!F$1)/fimTurma!F$2,"") ->  | F46: =IF(AND(fimTurma!G$2<>"",fimTurma!G46<>""),(fimTurma!G46-fimTurma!G$1)/fimTurma!G$2,"") ->  | G46: =IF(AND(fimTurma!H$2<>"",fimTurma!H46<>""),(fimTurma!H46-fimTurma!H$1)/fimTurma!H$2,"") ->  | H46: =IF(AND(fimTurma!I$2<>"",fimTurma!I46<>""),(fimTurma!I46-fimTurma!I$1)/fimTurma!I$2,"") ->  | I46: =IF(AND(fimTurma!J$2<>"",fimTurma!J46<>""),(fimTurma!J46-fimTurma!J$1)/fimTurma!J$2,"") ->  | J46: =IF(AND(fimTurma!K$2<>"",fimTurma!K46<>""),(fimTurma!K46-fimTurma!K$1)/fimTurma!K$2,"") ->  | K46: =IF(AND(fimTurma!L$2<>"",fimTurma!L46<>""),(fimTurma!L46-fimTurma!L$1)/fimTurma!L$2,"") ->  | L46: =IF(AND(fimTurma!M$2<>"",fimTurma!M46<>""),(fimTurma!M46-fimTurma!M$1)/fimTurma!M$2,"") -> 
A47: =IF(fimTurma!B47<>"",fimTurma!B47,"") ->  | B47: =fimTurma!A47 -> 44 | C47: =IF(fimTurma!C47<>"",fimTurma!C47,"") ->  | D47: =IF(fimTurma!D47<>"",fimTurma!D47,"") ->  | E47: =IF(AND(fimTurma!F$2<>"",fimTurma!F47<>""),(fimTurma!F47-fimTurma!F$1)/fimTurma!F$2,"") ->  | F47: =IF(AND(fimTurma!G$2<>"",fimTurma!G47<>""),(fimTurma!G47-fimTurma!G$1)/fimTurma!G$2,"") ->  | G47: =IF(AND(fimTurma!H$2<>"",fimTurma!H47<>""),(fimTurma!H47-fimTurma!H$1)/fimTurma!H$2,"") ->  | H47: =IF(AND(fimTurma!I$2<>"",fimTurma!I47<>""),(fimTurma!I47-fimTurma!I$1)/fimTurma!I$2,"") ->  | I47: =IF(AND(fimTurma!J$2<>"",fimTurma!J47<>""),(fimTurma!J47-fimTurma!J$1)/fimTurma!J$2,"") ->  | J47: =IF(AND(fimTurma!K$2<>"",fimTurma!K47<>""),(fimTurma!K47-fimTurma!K$1)/fimTurma!K$2,"") ->  | K47: =IF(AND(fimTurma!L$2<>"",fimTurma!L47<>""),(fimTurma!L47-fimTurma!L$1)/fimTurma!L$2,"") ->  | L47: =IF(AND(fimTurma!M$2<>"",fimTurma!M47<>""),(fimTurma!M47-fimTurma!M$1)/fimTurma!M$2,"") -> 
A48: =IF(fimTurma!B48<>"",fimTurma!B48,"") ->  | B48: =fimTurma!A48 -> 45 | C48: =IF(fimTurma!C48<>"",fimTurma!C48,"") ->  | D48: =IF(fimTurma!D48<>"",fimTurma!D48,"") ->  | E48: =IF(AND(fimTurma!F$2<>"",fimTurma!F48<>""),(fimTurma!F48-fimTurma!F$1)/fimTurma!F$2,"") ->  | F48: =IF(AND(fimTurma!G$2<>"",fimTurma!G48<>""),(fimTurma!G48-fimTurma!G$1)/fimTurma!G$2,"") ->  | G48: =IF(AND(fimTurma!H$2<>"",fimTurma!H48<>""),(fimTurma!H48-fimTurma!H$1)/fimTurma!H$2,"") ->  | H48: =IF(AND(fimTurma!I$2<>"",fimTurma!I48<>""),(fimTurma!I48-fimTurma!I$1)/fimTurma!I$2,"") ->  | I48: =IF(AND(fimTurma!J$2<>"",fimTurma!J48<>""),(fimTurma!J48-fimTurma!J$1)/fimTurma!J$2,"") ->  | J48: =IF(AND(fimTurma!K$2<>"",fimTurma!K48<>""),(fimTurma!K48-fimTurma!K$1)/fimTurma!K$2,"") ->  | K48: =IF(AND(fimTurma!L$2<>"",fimTurma!L48<>""),(fimTurma!L48-fimTurma!L$1)/fimTurma!L$2,"") ->  | L48: =IF(AND(fimTurma!M$2<>"",fimTurma!M48<>""),(fimTurma!M48-fimTurma!M$1)/fimTurma!M$2,"") -> 
A49: =IF(fimTurma!B49<>"",fimTurma!B49,"") ->  | B49: =fimTurma!A49 -> 46 | C49: =IF(fimTurma!C49<>"",fimTurma!C49,"") ->  | D49: =IF(fimTurma!D49<>"",fimTurma!D49,"") ->  | E49: =IF(AND(fimTurma!F$2<>"",fimTurma!F49<>""),(fimTurma!F49-fimTurma!F$1)/fimTurma!F$2,"") ->  | F49: =IF(AND(fimTurma!G$2<>"",fimTurma!G49<>""),(fimTurma!G49-fimTurma!G$1)/fimTurma!G$2,"") ->  | G49: =IF(AND(fimTurma!H$2<>"",fimTurma!H49<>""),(fimTurma!H49-fimTurma!H$1)/fimTurma!H$2,"") ->  | H49: =IF(AND(fimTurma!I$2<>"",fimTurma!I49<>""),(fimTurma!I49-fimTurma!I$1)/fimTurma!I$2,"") ->  | I49: =IF(AND(fimTurma!J$2<>"",fimTurma!J49<>""),(fimTurma!J49-fimTurma!J$1)/fimTurma!J$2,"") ->  | J49: =IF(AND(fimTurma!K$2<>"",fimTurma!K49<>""),(fimTurma!K49-fimTurma!K$1)/fimTurma!K$2,"") ->  | K49: =IF(AND(fimTurma!L$2<>"",fimTurma!L49<>""),(fimTurma!L49-fimTurma!L$1)/fimTurma!L$2,"") ->  | L49: =IF(AND(fimTurma!M$2<>"",fimTurma!M49<>""),(fimTurma!M49-fimTurma!M$1)/fimTurma!M$2,"") -> 
A50: =IF(fimTurma!B50<>"",fimTurma!B50,"") ->  | B50: =fimTurma!A50 -> 47 | C50: =IF(fimTurma!C50<>"",fimTurma!C50,"") ->  | D50: =IF(fimTurma!D50<>"",fimTurma!D50,"") ->  | E50: =IF(AND(fimTurma!F$2<>"",fimTurma!F50<>""),(fimTurma!F50-fimTurma!F$1)/fimTurma!F$2,"") ->  | F50: =IF(AND(fimTurma!G$2<>"",fimTurma!G50<>""),(fimTurma!G50-fimTurma!G$1)/fimTurma!G$2,"") ->  | G50: =IF(AND(fimTurma!H$2<>"",fimTurma!H50<>""),(fimTurma!H50-fimTurma!H$1)/fimTurma!H$2,"") ->  | H50: =IF(AND(fimTurma!I$2<>"",fimTurma!I50<>""),(fimTurma!I50-fimTurma!I$1)/fimTurma!I$2,"") ->  | I50: =IF(AND(fimTurma!J$2<>"",fimTurma!J50<>""),(fimTurma!J50-fimTurma!J$1)/fimTurma!J$2,"") ->  | J50: =IF(AND(fimTurma!K$2<>"",fimTurma!K50<>""),(fimTurma!K50-fimTurma!K$1)/fimTurma!K$2,"") ->  | K50: =IF(AND(fimTurma!L$2<>"",fimTurma!L50<>""),(fimTurma!L50-fimTurma!L$1)/fimTurma!L$2,"") ->  | L50: =IF(AND(fimTurma!M$2<>"",fimTurma!M50<>""),(fimTurma!M50-fimTurma!M$1)/fimTurma!M$2,"") -> 
A51: =IF(fimTurma!B51<>"",fimTurma!B51,"") ->  | B51: =fimTurma!A51 -> 48 | C51: =IF(fimTurma!C51<>"",fimTurma!C51,"") ->  | D51: =IF(fimTurma!D51<>"",fimTurma!D51,"") ->  | E51: =IF(AND(fimTurma!F$2<>"",fimTurma!F51<>""),(fimTurma!F51-fimTurma!F$1)/fimTurma!F$2,"") ->  | F51: =IF(AND(fimTurma!G$2<>"",fimTurma!G51<>""),(fimTurma!G51-fimTurma!G$1)/fimTurma!G$2,"") ->  | G51: =IF(AND(fimTurma!H$2<>"",fimTurma!H51<>""),(fimTurma!H51-fimTurma!H$1)/fimTurma!H$2,"") ->  | H51: =IF(AND(fimTurma!I$2<>"",fimTurma!I51<>""),(fimTurma!I51-fimTurma!I$1)/fimTurma!I$2,"") ->  | I51: =IF(AND(fimTurma!J$2<>"",fimTurma!J51<>""),(fimTurma!J51-fimTurma!J$1)/fimTurma!J$2,"") ->  | J51: =IF(AND(fimTurma!K$2<>"",fimTurma!K51<>""),(fimTurma!K51-fimTurma!K$1)/fimTurma!K$2,"") ->  | K51: =IF(AND(fimTurma!L$2<>"",fimTurma!L51<>""),(fimTurma!L51-fimTurma!L$1)/fimTurma!L$2,"") ->  | L51: =IF(AND(fimTurma!M$2<>"",fimTurma!M51<>""),(fimTurma!M51-fimTurma!M$1)/fimTurma!M$2,"") -> 
A52: =IF(fimTurma!B52<>"",fimTurma!B52,"") ->  | B52: =fimTurma!A52 -> 49 | C52: =IF(fimTurma!C52<>"",fimTurma!C52,"") ->  | D52: =IF(fimTurma!D52<>"",fimTurma!D52,"") ->  | E52: =IF(AND(fimTurma!F$2<>"",fimTurma!F52<>""),(fimTurma!F52-fimTurma!F$1)/fimTurma!F$2,"") ->  | F52: =IF(AND(fimTurma!G$2<>"",fimTurma!G52<>""),(fimTurma!G52-fimTurma!G$1)/fimTurma!G$2,"") ->  | G52: =IF(AND(fimTurma!H$2<>"",fimTurma!H52<>""),(fimTurma!H52-fimTurma!H$1)/fimTurma!H$2,"") ->  | H52: =IF(AND(fimTurma!I$2<>"",fimTurma!I52<>""),(fimTurma!I52-fimTurma!I$1)/fimTurma!I$2,"") ->  | I52: =IF(AND(fimTurma!J$2<>"",fimTurma!J52<>""),(fimTurma!J52-fimTurma!J$1)/fimTurma!J$2,"") ->  | J52: =IF(AND(fimTurma!K$2<>"",fimTurma!K52<>""),(fimTurma!K52-fimTurma!K$1)/fimTurma!K$2,"") ->  | K52: =IF(AND(fimTurma!L$2<>"",fimTurma!L52<>""),(fimTurma!L52-fimTurma!L$1)/fimTurma!L$2,"") ->  | L52: =IF(AND(fimTurma!M$2<>"",fimTurma!M52<>""),(fimTurma!M52-fimTurma!M$1)/fimTurma!M$2,"") -> 
A53: =IF(fimTurma!B53<>"",fimTurma!B53,"") ->  | B53: =fimTurma!A53 -> 50 | C53: =IF(fimTurma!C53<>"",fimTurma!C53,"") ->  | D53: =IF(fimTurma!D53<>"",fimTurma!D53,"") ->  | E53: =IF(AND(fimTurma!F$2<>"",fimTurma!F53<>""),(fimTurma!F53-fimTurma!F$1)/fimTurma!F$2,"") ->  | F53: =IF(AND(fimTurma!G$2<>"",fimTurma!G53<>""),(fimTurma!G53-fimTurma!G$1)/fimTurma!G$2,"") ->  | G53: =IF(AND(fimTurma!H$2<>"",fimTurma!H53<>""),(fimTurma!H53-fimTurma!H$1)/fimTurma!H$2,"") ->  | H53: =IF(AND(fimTurma!I$2<>"",fimTurma!I53<>""),(fimTurma!I53-fimTurma!I$1)/fimTurma!I$2,"") ->  | I53: =IF(AND(fimTurma!J$2<>"",fimTurma!J53<>""),(fimTurma!J53-fimTurma!J$1)/fimTurma!J$2,"") ->  | J53: =IF(AND(fimTurma!K$2<>"",fimTurma!K53<>""),(fimTurma!K53-fimTurma!K$1)/fimTurma!K$2,"") ->  | K53: =IF(AND(fimTurma!L$2<>"",fimTurma!L53<>""),(fimTurma!L53-fimTurma!L$1)/fimTurma!L$2,"") ->  | L53: =IF(AND(fimTurma!M$2<>"",fimTurma!M53<>""),(fimTurma!M53-fimTurma!M$1)/fimTurma!M$2,"") -> 

Sheet profRelatório
A1: RELATÓRIO RESUMO PARA O PROFESSOR/TREINADOR
A2: =_xlfn.CONCAT(fimTurma!C1,"º ano"," | ",fimTurma!C2) -> 2º ano | A
C4: Início do Ano | G4: Fim do Ano | K4: Melhoria
C5: Média | E5: Desvio | G5: Média | I5: Desvio | K5: Com
E6: Padrão | I6: Padrão | K6: Significado?
A7: HABILIDADES DE LOCOMOÇÃO
A8: =IF(fimTurma!A2=1,IFERROR(VLOOKUP(1,fimAuxiliar!L3:Q5,2,0),""),"") -> Corrida vaivém | C8: =IF(fimTurma!A2=1,IFERROR(VLOOKUP(1,fimAuxiliar!L3:X5,11,0),0),0) -> 12.3575 | E8: =IF(fimTurma!A2=1,IFERROR(VLOOKUP(1,fimAuxiliar!L3:X5,12,0),0),0) -> 1.157771746 | G8: =IF(fimTurma!A2=1,IFERROR(VLOOKUP(1,fimAuxiliar!L3:X5,4,0),0),0) -> 15.375 | I8: =IF(fimTurma!A2=1,IFERROR(VLOOKUP(1,fimAuxiliar!L3:X5,13,0),0),0) -> 0.5068283733 | K8: =IF(fimTurma!A2=1,IFERROR(VLOOKUP(1,fimAuxiliar!L3:X5,9,0),0),0) -> Não
A10: =IF(fimTurma!A2=1,IFERROR(VLOOKUP(2,fimAuxiliar!L3:Q5,2,0),""),"") -> Corrida velocidade | C10: =IF(fimTurma!A2=1,IFERROR(VLOOKUP(2,fimAuxiliar!L3:X5,11,0),0),0) -> 13.33333333 | E10: =IF(fimTurma!A2=1,IFERROR(VLOOKUP(2,fimAuxiliar!L3:X5,12,0),0),0) -> 1.598610508 | G10: =IF(fimTurma!A2=1,IFERROR(VLOOKUP(2,fimAuxiliar!L3:X5,4,0),0),0) -> 11.75 | I10: =IF(fimTurma!A2=1,IFERROR(VLOOKUP(2,fimAuxiliar!L3:X5,13,0),0),0) -> 1.299038106 | K10: =IF(fimTurma!A2=1,IFERROR(VLOOKUP(2,fimAuxiliar!L3:X5,9,0),0),0) -> Não
A12: =IF(fimTurma!A2=1,IFERROR(VLOOKUP(3,fimAuxiliar!L3:Q5,2,0),""),"") -> Salto horizontal | C12: =IF(fimTurma!A2=1,IFERROR(VLOOKUP(3,fimAuxiliar!L3:X5,11,0),0),0) -> 9.033333333 | E12: =IF(fimTurma!A2=1,IFERROR(VLOOKUP(3,fimAuxiliar!L3:X5,12,0),0),0) -> 2.339634349 | G12: =IF(fimTurma!A2=1,IFERROR(VLOOKUP(3,fimAuxiliar!L3:X5,4,0),0),0) -> 7.763636364 | I12: =IF(fimTurma!A2=1,IFERROR(VLOOKUP(3,fimAuxiliar!L3:X5,13,0),0),0) -> 0.9660347512 | K12: =IF(fimTurma!A2=1,IFERROR(VLOOKUP(3,fimAuxiliar!L3:X5,9,0),0),0) -> Não
A14: HABILIDADES DE CONTROLO DE OBJETOS
A15: =IF(fimTurma!A2=1,IFERROR(VLOOKUP(1,fimAuxiliar!L6:Q7,2,0),""),"") -> Receber | C15: =IF(fimTurma!A2=1,IFERROR(VLOOKUP(1,fimAuxiliar!L6:X7,11,0),0),0) -> 29.86666667 | E15: =IF(fimTurma!A2=1,IFERROR(VLOOKUP(1,fimAuxiliar!L6:X7,12,0),0),0) -> 4.077853466 | G15: =IF(fimTurma!A2=1,IFERROR(VLOOKUP(1,fimAuxiliar!L6:X7,4,0),0),0) -> 34.52727273 | I15: =IF(fimTurma!A2=1,IFERROR(VLOOKUP(1,fimAuxiliar!L6:X7,13,0),0),0) -> 3.076624747 | K15: =IF(fimTurma!A2=1,IFERROR(VLOOKUP(1,fimAuxiliar!L6:X7,9,0),0),0) -> Sim
A17: =IF(fimTurma!A2=1,IFERROR(VLOOKUP(2,fimAuxiliar!L6:Q7,2,0),""),"") -> Lançar | C17: =IF(fimTurma!A2=1,IFERROR(VLOOKUP(2,fimAuxiliar!L6:X7,11,0),0),0) -> 12.36363636 | E17: =IF(fimTurma!A2=1,IFERROR(VLOOKUP(2,fimAuxiliar!L6:X7,12,0),0),0) -> 4.333227377 | G17: =IF(fimTurma!A2=1,IFERROR(VLOOKUP(2,fimAuxiliar!L6:X7,4,0),0),0) -> 15.5 | I17: =IF(fimTurma!A2=1,IFERROR(VLOOKUP(2,fimAuxiliar!L6:X7,13,0),0),0) -> 3.45205253 | K17: =IF(fimTurma!A2=1,IFERROR(VLOOKUP(2,fimAuxiliar!L6:X7,9,0),0),0) -> Sim
A19: HABILIDADE DE ESTABILIZAÇÃO
A20: =IFERROR(VLOOKUP(6,fimAuxiliar!B3:G8,2,0),"") -> Equilíbrio | C20: =IF(fimTurma!A2=1,IFERROR(VLOOKUP(1,fimAuxiliar!L8:X8,11,0),0),0) -> 10.95166667 | E20: =IF(fimTurma!A2=1,IFERROR(VLOOKUP(1,fimAuxiliar!L8:X8,12,0),0),0) -> 1.371628189 | G20: =IF(fimTurma!A2=1,IFERROR(VLOOKUP(1,fimAuxiliar!L8:X8,4,0),0),0) -> 9.741666667 | I20: =IF(fimTurma!A2=1,IFERROR(VLOOKUP(1,fimAuxiliar!L8:X8,13,0),0),0) -> 1.116137935 | K20: =IF(fimTurma!A2=1,IFERROR(VLOOKUP(1,fimAuxiliar!L8:X8,9,0),0),0) -> Não
A24: =IFERROR(VLOOKUP(8,fimAuxiliar!B3:G10,2,0),"") ->  | C24: =IFERROR(VLOOKUP(8,iniAuxiliar!$B$3:$G$10,4,0),0) -> 0 | E24: =IFERROR(VLOOKUP(8,iniAuxiliar!$B$3:$J$10,9,0),0) -> 0 | G24: =IFERROR(VLOOKUP(8,fimAuxiliar!$B$3:$G$10,4,0),0) -> 0 | I24: =IFERROR(VLOOKUP(8,fimAuxiliar!$B$3:$J$10,9,0),0) -> 0 | K24: =IFERROR(VLOOKUP(8,fimAuxiliar!$B$3:$M$10,12,0),0) -> 0

Sheet profPorTeste
A1: RELATÓRIO POR TESTE PARA O PROFESSOR/TREINADOR
A2: =_xlfn.CONCAT(fimTurma!C1,"º ano"," | ",fimTurma!C2) -> 2º ano | A
A5: Teste: Receber

Sheet iniAuxiliar (hidden)
A1: Número | B1: Ordem Resumo | C1: Teste | D1: Criança | E1: Média | F1: Mínimo | G1: Máximo | H1: Score Z | I1: Nome Gráfico | J1: Dpadrão | K1: Grupo | L1: Ordem Relatório | M1: Nome | N1: Criança | O1: Média | P1: Mínimo | Q1: Máximo
B2: 0
A3: =COUNT(iniTurma!F4:F53) -> 12 | B3: =IF(A3>0,B2+1,B2) -> 1 | C3: =iniTurma!F3 -> Corrida vaivém | D3: =IF(AND(iniTurma!$A$2=1,B3=B2+1),VLOOKUP("x",iniTurma!$B$4:$M$53,5,0),"") -> 11.64 | E3: =IF(B3=B2+1,iniTurma!$F$1,"") -> 12.3575 | F3: =IF(AND(iniTurma!$A$2=1,B3=B2+1),SMALL(iniTurma!$F$4:$F$53,1),"") -> 10 | G3: =IF(AND(iniTurma!$A$2=1,B3=B2+1),LARGE(iniTurma!$F$4:$F$53,1),"") -> 14.2 | H3: =IF(AND(iniTurma!$A$2=1,B3=B2+1),VLOOKUP("x",'iniScore Z'!$A$4:$L$53,5,0),"") -> -0.6197249175 | I3: =C3 -> Corrida vaivém | J3: =IF(B3=B2+1,iniTurma!$F$2,"") -> 1.157771746 | K3: HABILIDADES DE LOCOMOÇÃO | L3: =IF(K3<>K2,IF(A3>0,1,0),IF(A3>0,L2+1,L2)) -> 1 | M3: =C3 -> Corrida vaivém | N3: =D3 -> 11.64 | O3: =E3 -> 12.3575 | P3: 10 | Q3: 14.2
A4: =COUNT(iniTurma!G4:G53) -> 12 | B4: =IF(A4>0,B3+1,B3) -> 2 | C4: =iniTurma!G3 -> Corrida velocidade | D4: =IF(AND(iniTurma!$A$2=1,B4=B3+1),VLOOKUP("x",iniTurma!$B$4:$M$53,6,0),"") -> 15 | E4: =IF(B4=B3+1,iniTurma!$G$1,"") -> 13.33333333 | F4: =IF(AND(iniTurma!$A$2=1,B4=B3+1),SMALL(iniTurma!$G$4:$G$53,1),"") -> 10 | G4: =IF(AND(iniTurma!$A$2=1,B4=B3+1),LARGE(iniTurma!$G$4:$G$53,1),"") -> 16 | H4: =IF(AND(iniTurma!$A$2=1,B4=B3+1),VLOOKUP("x",'iniScore Z'!$A$4:$L$53,6,0),"") -> 1.04257207 | I4: =C4 -> Corrida velocidade | J4: =IF(B4=B3+1,iniTurma!$G$2,"") -> 1.598610508 | K4: HABILIDADES DE LOCOMOÇÃO | L4: =IF(K4<>K3,IF(A4>0,1,0),IF(A4>0,L3+1,L3)) -> 2 | M4: =C4 -> Corrida velocidade | N4: =D4 -> 15 | O4: =E4 -> 13.33333333 | P4: =F4 -> 10 | Q4: =G4 -> 16
A5: =COUNT(iniTurma!H4:H53) -> 12 | B5: 3 | C5: =iniTurma!H3 -> Salto horizontal | D5: =IF(AND(iniTurma!$A$2=1,B5=B4+1),VLOOKUP("x",iniTurma!$B$4:$M$53,7,0),"") -> 10 | E5: =IF(B5=B4+1,iniTurma!$H$1,"") -> 9.033333333 | F5: =IF(AND(iniTurma!$A$2=1,B5=B4+1),SMALL(iniTurma!$H$4:$H$53,1),"") -> 6 | G5: =IF(AND(iniTurma!$A$2=1,B5=B4+1),LARGE(iniTurma!$H$4:$H$53,1),"") -> 14.7 | H5: =IF(AND(iniTurma!$A$2=1,B5=B4+1),VLOOKUP("x",'iniScore Z'!$A$4:$L$53,7,0),"") -> 0.4131699754 | I5: Salto horizontal | J5: =IF(B5=B4+1,iniTurma!$H$2,"") -> 2.339634349 | K5: HABILIDADES DE LOCOMOÇÃO | L5: 3 | M5: Salto horizontal | N5: 10 | O5: 9.033333333 | P5: 6 | Q5: 14.7
A6: =COUNT(iniTurma!I4:I53) -> 12 | B6: 4 | C6: =iniTurma!I3 -> Receber | D6: =IF(AND(iniTurma!$A$2=1,B6=B5+1),VLOOKUP("x",iniTurma!$B$4:$M$53,8,0),"") -> 31 | E6: =IF(B6=B5+1,iniTurma!$I$1,"") -> 29.86666667 | F6: =IF(AND(iniTurma!$A$2=1,B6=B5+1),SMALL(iniTurma!$I$4:$I$53,1),"") -> 24 | G6: =IF(AND(iniTurma!$A$2=1,B6=B5+1),LARGE(iniTurma!$I$4:$I$53,1),"") -> 38 | H6: =IF(AND(iniTurma!$A$2=1,B6=B5+1),VLOOKUP("x",'iniScore Z'!$A$4:$L$53,8,0),"") -> 0.2779239967 | I6: Receber | J6: =IF(B6=B5+1,iniTurma!$I$2,"") -> 4.077853466 | K6: HABILIDADES DE CONTROLO DE OBJETOS | L6: 1 | M6: Receber | N6: 31 | O6: 29.86666667 | P6: 24 | Q6: 38
A7: =COUNT(iniTurma!J4:J53) -> 11 | B7: 5 | C7: =iniTurma!J3 -> Lançar | D7: =IF(AND(iniTurma!$A$2=1,B7=B6+1),VLOOKUP("x",iniTurma!$B$4:$M$53,9,0),"") -> 0 | E7: =IF(B7=B6+1,iniTurma!$J$1,"") -> 12.36363636 | F7: =IF(AND(iniTurma!$A$2=1,B7=B6+1),SMALL(iniTurma!$J$4:$J$53,1),"") -> 6 | G7: =IF(AND(iniTurma!$A$2=1,B7=B6+1),LARGE(iniTurma!$J$4:$J$53,1),"") -> 20 | H7: =IF(AND(iniTurma!$A$2=1,B7=B6+1),VLOOKUP("x",'iniScore Z'!$A$4:$L$53,9,0),"") ->  | I7: Lançar | J7: =IF(B7=B6+1,iniTurma!$J$2,"") -> 4.333227377 | K7: HABILIDADES DE CONTROLO DE OBJETOS | L7: 2 | M7: Lançar | N7: 0 | O7: 12.36363636 | P7: 6 | Q7: 20
A8: =COUNT(iniTurma!K4:K53) -> 12 | B8: 6 | C8: =iniTurma!K3 -> Equilíbrio | D8: =IF(AND(iniTurma!$A$2=1,B8=B7+1),VLOOKUP("x",iniTurma!$B$4:$M$53,10,0),"") -> 10.12 | E8: =IF(B8=B7+1,iniTurma!$K$1,"") -> 10.95166667 | F8: =IF(AND(iniTurma!$A$2=1,B8=B7+1),SMALL(iniTurma!$K$4:$K$53,1),"") -> 9.5 | G8: =IF(AND(iniTurma!$A$2=1,B8=B7+1),LARGE(iniTurma!$K$4:$K$53,1),"") -> 14 | H8: =IF(AND(iniTurma!$A$2=1,B8=B7+1),VLOOKUP("x",'iniScore Z'!$A$4:$L$53,10,0),"") -> -0.6063353563 | I8: Equilíbrio | J8: =IF(B8=B7+1,iniTurma!$K$2,"") -> 1.371628189 | K8: HABILIDADE DE ESTABILIZAÇÃO | L8: 1 | M8: Equilíbrio | N8: 10.12 | O8: 10.95166667 | P8: 9.5 | Q8: 14
C13: Dados para o gráfico | D13: Score Z
C14: =IF(iniTurma!A2=1,IFERROR(VLOOKUP(1,iniAuxiliar!B3:G10,2,0),""),"") -> Corrida vaivém | D14: =IF(iniTurma!A2=1,IFERROR(VLOOKUP(1,iniAuxiliar!B3:H10,7,0),""),"") -> -0.6197249175
C15: =IF(iniTurma!A2=1,IFERROR(VLOOKUP(2,iniAuxiliar!B3:G10,2,0),""),"") -> Corrida velocidade | D15: =IF(iniTurma!A2=1,IFERROR(VLOOKUP(2,iniAuxiliar!B3:H10,7,0),""),"") -> 1.04257207
C16: =IF(iniTurma!A2=1,IFERROR(VLOOKUP(3,iniAuxiliar!B3:G10,2,0),""),"") -> Salto horizontal | D16: =IF(iniTurma!A2=1,IFERROR(VLOOKUP(3,iniAuxiliar!B3:H10,7,0),""),"") -> 0.4131699754
C17: =IF(iniTurma!A2=1,IFERROR(VLOOKUP(4,iniAuxiliar!B3:G10,2,0),""),"") -> Receber | D17: =IF(iniTurma!A2=1,IFERROR(VLOOKUP(4,iniAuxiliar!B3:H10,7,0),""),"") -> 0.2779239967
C18: =IF(iniTurma!A2=1,IFERROR(VLOOKUP(5,iniAuxiliar!B3:G10,2,0),""),"") -> Lançar | D18: =IF(iniTurma!A2=1,IFERROR(VLOOKUP(5,iniAuxiliar!B3:H10,7,0),""),"") -> 
C19: =IF(iniTurma!A2=1,IFERROR(VLOOKUP(6,iniAuxiliar!B3:G10,2,0),""),"") -> Equilíbrio | D19: =IF(iniTurma!A2=1,IFERROR(VLOOKUP(6,iniAuxiliar!B3:H10,7,0),""),"") -> -0.6063353563
C20: =IF(iniTurma!A2=1,IFERROR(VLOOKUP(7,iniAuxiliar!B3:G10,2,0),""),"") ->  | D20: =IF(iniTurma!A2=1,IFERROR(VLOOKUP(7,iniAuxiliar!B4:H11,7,0),""),"") -> 
C21: =IF(iniTurma!A2=1,IFERROR(VLOOKUP(8,iniAuxiliar!B3:G10,2,0),""),"") ->  | D21: =IF(iniTurma!A2=1,IFERROR(VLOOKUP(8,iniAuxiliar!B3:H10,7,0),""),"") -> 

Sheet fimAuxiliar (hidden)
A1: Número | B1: Ordem Resumo | C1: Teste | D1: Criança | E1: Média | F1: Mínimo | G1: Máximo | H1: Score Z | I1: Nome Gráfico | J1: Dpadrão | K1: Grupo | L1: Ordem Relatório | M1: Nome | N1: Criança | O1: Média | P1: Mínimo | Q1: Máximo | R1: Melhor | S1: difMédia | T1: Conclusão | U1: Teste T | V1: média | W1: dpadrão | X1: dpadrão
B2: 0 | D2: fim | E2: fim | F2: fim | G2: fim | H2: fim | J2: fim | N2: fim | O2: fim | P2: fim | Q2: fim | V2: ini | W2: ini | X2: fim
A3: =COUNT(fimTurma!F4:F53) -> 12 | B3: =IF(A3>0,B2+1,B2) -> 1 | C3: =fimTurma!F3 -> Corrida vaivém | D3: =IF(AND(fimTurma!$A$2=1,B3=B2+1),VLOOKUP("x",fimTurma!$B$4:$M$53,5,0),"") -> 15.5 | E3: =IF(B3=B2+1,fimTurma!$F$1,"") -> 15.375 | F3: =IF(AND(fimTurma!$A$2=1,B3=B2+1),SMALL(fimTurma!$F$4:$F$53,1),"") -> 14.6 | G3: =IF(AND(fimTurma!$A$2=1,B3=B2+1),LARGE(fimTurma!$F$4:$F$53,1),"") -> 16.3 | H3: =IF(AND(fimTurma!$A$2=1,B3=B2+1),VLOOKUP("x",'fimScore Z'!$A$4:$L$53,5,0),"") -> 0.2466318118 | I3: =C3 -> Corrida vaivém | J3: =IF(B3=B2+1,fimTurma!$F$2,"") -> 0.5068283733 | K3: HABILIDADES DE LOCOMOÇÃO | L3: =IF(K3<>K2,IF(A3>0,1,0),IF(A3>0,L2+1,L2)) -> 1 | M3: =C3 -> Corrida vaivém | N3: =D3 -> 15.5 | O3: =E3 -> 15.375 | P3: 14.6 | Q3: 16.3 | R3: -1 | S3: =IF(AND(E3<>"",iniAuxiliar!E3<>""),E3-iniAuxiliar!E3,"") -> 3.0175 | T3: =IF(AND(E3<>"",iniAuxiliar!E3<>""),IF(U3*R3<=0,"Não",IF(U3>=0.05,"Não","Sim")),"") -> Não | U3: =IF(AND(E3<>"",iniAuxiliar!E3<>""),IFERROR(_xlfn.T.TEST(iniTurma!F$4:F$53,fimTurma!F$4:F$53,1,1),_xlfn.T.TEST(iniTurma!F$4:F$53,fimTurma!F$4:F$53,1,2)),"") -> 2.183866457e-06 | V3: =iniAuxiliar!E3 -> 12.3575 | W3: =iniAuxiliar!J3 -> 1.157771746 | X3: =J3 -> 0.5068283733
A4: =COUNT(fimTurma!G4:G53) -> 12 | B4: =IF(A4>0,B3+1,B3) -> 2 | C4: =fimTurma!G3 -> Corrida velocidade | D4: =IF(AND(fimTurma!$A$2=1,B4=B3+1),VLOOKUP("x",fimTurma!$B$4:$M$53,6,0),"") -> 12 | E4: =IF(B4=B3+1,fimTurma!$G$1,"") -> 11.75 | F4: =IF(AND(fimTurma!$A$2=1,B4=B3+1),SMALL(fimTurma!$G$4:$G$53,1),"") -> 9 | G4: =IF(AND(fimTurma!$A$2=1,B4=B3+1),LARGE(fimTurma!$G$4:$G$53,1),"") -> 14 | H4: =IF(AND(fimTurma!$A$2=1,B4=B3+1),VLOOKUP("x",'fimScore Z'!$A$4:$L$53,6,0),"") -> 0.1924500897 | I4: =C4 -> Corrida velocidade | J4: =IF(B4=B3+1,fimTurma!$G$2,"") -> 1.299038106 | K4: HABILIDADES DE LOCOMOÇÃO | L4: =IF(K4<>K3,IF(A4>0,1,0),IF(A4>0,L3+1,L3)) -> 2 | M4: =C4 -> Corrida velocidade | N4: 12 | O4: 11.75 | P4: 9 | Q4: 14 | R4: -1 | S4: =IF(AND(E4<>"",iniAuxiliar!E4<>""),E4-iniAuxiliar!E4,"") -> -1.583333333 | T4: =IF(AND(E4<>"",iniAuxiliar!E4<>""),IF(U4*R4<=0,"Não",IF(U4>=0.05,"Não","Sim")),"") -> Não | U4: =IF(AND(E4<>"",iniAuxiliar!E4<>""),IFERROR(_xlfn.T.TEST(iniTurma!G$4:G$53,fimTurma!G$4:G$53,1,1),_xlfn.T.TEST(iniTurma!G$4:G$53,fimTurma!G$4:G$53,1,2)),"") -> 0.01473461822 | V4: =iniAuxiliar!E4 -> 13.33333333 | W4: =iniAuxiliar!J4 -> 1.598610508 | X4: =J4 -> 1.299038106
A5: =COUNT(fimTurma!H4:H53) -> 11 | B5: 3 | C5: =fimTurma!H3 -> Salto horizontal | D5: =IF(AND(fimTurma!$A$2=1,B5=B4+1),VLOOKUP("x",fimTurma!$B$4:$M$53,7,0),"") -> 7 | E5: =IF(B5=B4+1,fimTurma!$H$1,"") -> 7.763636364 | F5: =IF(AND(fimTurma!$A$2=1,B5=B4+1),SMALL(fimTurma!$H$4:$H$53,1),"") -> 6.5 | G5: =IF(AND(fimTurma!$A$2=1,B5=B4+1),LARGE(fimTurma!$H$4:$H$53,1),"") -> 10.2 | H5: =IF(AND(fimTurma!$A$2=1,B5=B4+1),VLOOKUP("x",'fimScore Z'!$A$4:$L$53,7,0),"") -> -0.7904853968 | I5: Salto horizontal | J5: =IF(B5=B4+1,fimTurma!$H$2,"") -> 0.9660347512 | K5: HABILIDADES DE LOCOMOÇÃO | L5: 3 | M5: Salto horizontal | N5: 7 | O5: 7.763636364 | P5: 6.5 | Q5: 10.2 | R5: 1 | S5: =IF(AND(E5<>"",iniAuxiliar!E5<>""),E5-iniAuxiliar!E5,"") -> -1.26969697 | T5: =IF(AND(E5<>"",iniAuxiliar!E5<>""),IF(U5*R5<=0,"Não",IF(U5>=0.05,"Não","Sim")),"") -> Não | U5: =IF(AND(E5<>"",iniAuxiliar!E5<>""),IFERROR(_xlfn.T.TEST(iniTurma!H$4:H$53,fimTurma!H$4:H$53,1,1),_xlfn.T.TEST(iniTurma!H$4:H$53,fimTurma!H$4:H$53,1,2)),"") -> 0.0957923662 | V5: =iniAuxiliar!E5 -> 9.033333333 | W5: =iniAuxiliar!J5 -> 2.339634349 | X5: 0.9660347512
A6: =COUNT(fimTurma!I4:I53) -> 11 | B6: 4 | C6: =fimTurma!I3 -> Receber | D6: =IF(AND(fimTurma!$A$2=1,B6=B5+1),VLOOKUP("x",fimTurma!$B$4:$M$53,8,0),"") -> 0 | E6: =IF(B6=B5+1,fimTurma!$I$1,"") -> 34.52727273 | F6: =IF(AND(fimTurma!$A$2=1,B6=B5+1),SMALL(fimTurma!$I$4:$I$53,1),"") -> 30 | G6: =IF(AND(fimTurma!$A$2=1,B6=B5+1),LARGE(fimTurma!$I$4:$I$53,1),"") -> 41 | H6: =IF(AND(fimTurma!$A$2=1,B6=B5+1),VLOOKUP("x",'fimScore Z'!$A$4:$L$53,8,0),"") ->  | I6: Receber | J6: =IF(B6=B5+1,fimTurma!$I$2,"") -> 3.076624747 | K6: HABILIDADES DE CONTROLO DE OBJETOS | L6: 1 | M6: Receber | N6: 0 | O6: 34.52727273 | P6: 30 | Q6: 41 | R6: 1 | S6: =IF(AND(E6<>"",iniAuxiliar!E6<>""),E6-iniAuxiliar!E6,"") -> 4.660606061 | T6: =IF(AND(E6<>"",iniAuxiliar!E6<>""),IF(U6*R6<=0,"Não",IF(U6>=0.05,"Não","Sim")),"") -> Sim | U6: =IF(AND(E6<>"",iniAuxiliar!E6<>""),IFERROR(_xlfn.T.TEST(iniTurma!I$4:I$53,fimTurma!I$4:I$53,1,1),_xlfn.T.TEST(iniTurma!I$4:I$53,fimTurma!I$4:I$53,1,2)),"") -> 0.003741120656 | V6: =iniAuxiliar!E6 -> 29.86666667 | W6: =iniAuxiliar!J6 -> 4.077853466 | X6: 3.076624747
A7: =COUNT(fimTurma!J4:J53) -> 12 | B7: 5 | C7: =fimTurma!J3 -> Lançar | D7: =IF(AND(fimTurma!$A$2=1,B7=B6+1),VLOOKUP("x",fimTurma!$B$4:$M$53,9,0),"") -> 11 | E7: =IF(B7=B6+1,fimTurma!$J$1,"") -> 15.5 | F7: =IF(AND(fimTurma!$A$2=1,B7=B6+1),SMALL(fimTurma!$J$4:$J$53,1),"") -> 10 | G7: =IF(AND(fimTurma!$A$2=1,B7=B6+1),LARGE(fimTurma!$J$4:$J$53,1),"") -> 21 | H7: =IF(AND(fimTurma!$A$2=1,B7=B6+1),VLOOKUP("x",'fimScore Z'!$A$4:$L$53,9,0),"") -> -1.303572284 | I7: Lançar | J7: =IF(B7=B6+1,fimTurma!$J$2,"") -> 3.45205253 | K7: HABILIDADES DE CONTROLO DE OBJETOS | L7: 2 | M7: Lançar | N7: 11 | O7: 15.5 | P7: 10 | Q7: 21 | R7: 1 | S7: =IF(AND(E7<>"",iniAuxiliar!E7<>""),E7-iniAuxiliar!E7,"") -> 3.136363636 | T7: =IF(AND(E7<>"",iniAuxiliar!E7<>""),IF(U7*R7<=0,"Não",IF(U7>=0.05,"Não","Sim")),"") -> Sim | U7: =IF(AND(E7<>"",iniAuxiliar!E7<>""),IFERROR(_xlfn.T.TEST(iniTurma!J$4:J$53,fimTurma!J$4:J$53,1,1),_xlfn.T.TEST(iniTurma!J$4:J$53,fimTurma!J$4:J$53,1,2)),"") -> 0.004853246854 | V7: =iniAuxiliar!E7 -> 12.36363636 | W7: =iniAuxiliar!J7 -> 4.333227377 | X7: 3.45205253
A8: =COUNT(fimTurma!K4:K53) -> 12 | B8: 6 | C8: =fimTurma!K3 -> Equilíbrio | D8: =IF(AND(fimTurma!$A$2=1,B8=B7+1),VLOOKUP("x",fimTurma!$B$4:$M$53,10,0),"") -> 10.2 | E8: =IF(B8=B7+1,fimTurma!$K$1,"") -> 9.741666667 | F8: =IF(AND(fimTurma!$A$2=1,B8=B7+1),SMALL(fimTurma!$K$4:$K$53,1),"") -> 7.6 | G8: =IF(AND(fimTurma!$A$2=1,B8=B7+1),LARGE(fimTurma!$K$4:$K$53,1),"") -> 11.5 | H8: =IF(AND(fimTurma!$A$2=1,B8=B7+1),VLOOKUP("x",'fimScore Z'!$A$4:$L$53,10,0),"") -> 0.4106421968 | I8: Equilíbrio | J8: =IF(B8=B7+1,fimTurma!$K$2,"") -> 1.116137935 | K8: HABILIDADE DE ESTABILIZAÇÃO | L8: 1 | M8: Equilíbrio | N8: 10.2 | O8: 9.741666667 | P8: 7.6 | Q8: 11.5 | R8: -1 | S8: =IF(AND(E8<>"",iniAuxiliar!E8<>""),E8-iniAuxiliar!E8,"") -> -1.21 | T8: =IF(AND(E8<>"",iniAuxiliar!E8<>""),IF(U8*R8<=0,"Não",IF(U8>=0.05,"Não","Sim")),"") -> Não | U8: =IF(AND(E8<>"",iniAuxiliar!E8<>""),IFERROR(_xlfn.T.TEST(iniTurma!K$4:K$53,fimTurma!K$4:K$53,1,1),_xlfn.T.TEST(iniTurma!K$4:K$53,fimTurma!K$4:K$53,1,2)),"") -> 0.007516288213 | V8: =iniAuxiliar!E8 -> 10.95166667 | W8: =iniAuxiliar!J8 -> 1.371628189 | X8: 1.116137935
C13: Dados para o gráfico | D13: Score Z
C14: =IF(fimTurma!A2=1,IFERROR(VLOOKUP(1,fimAuxiliar!B3:G10,2,0),""),"") -> Corrida vaivém | D14: =IF(fimTurma!A2=1,IFERROR(VLOOKUP(1,fimAuxiliar!B3:H10,7,0),""),"") -> 0.2466318118
C15: =IF(fimTurma!A2=1,IFERROR(VLOOKUP(2,fimAuxiliar!B3:G10,2,0),""),"") -> Corrida velocidade | D15: =IF(fimTurma!A2=1,IFERROR(VLOOKUP(2,fimAuxiliar!B3:H10,7,0),""),"") -> 0.1924500897
C16: =IF(fimTurma!A2=1,IFERROR(VLOOKUP(3,fimAuxiliar!B3:G10,2,0),""),"") -> Salto horizontal | D16: =IF(fimTurma!A2=1,IFERROR(VLOOKUP(3,fimAuxiliar!B3:H10,7,0),""),"") -> -0.7904853968
C17: =IF(fimTurma!A2=1,IFERROR(VLOOKUP(4,fimAuxiliar!B3:G10,2,0),""),"") -> Receber | D17: =IF(fimTurma!A2=1,IFERROR(VLOOKUP(4,fimAuxiliar!B3:H10,7,0),""),"") -> 
C18: =IF(fimTurma!A2=1,IFERROR(VLOOKUP(5,fimAuxiliar!B3:G10,2,0),""),"") -> Lançar | D18: =IF(fimTurma!A2=1,IFERROR(VLOOKUP(5,fimAuxiliar!B3:H10,7,0),""),"") -> -1.303572284
C19: =IF(fimTurma!A2=1,IFERROR(VLOOKUP(6,fimAuxiliar!B3:G10,2,0),""),"") -> Equilíbrio | D19: =IF(fimTurma!A2=1,IFERROR(VLOOKUP(6,fimAuxiliar!B3:H10,7,0),""),"") -> 0.4106421968
C20: =IF(fimTurma!A2=1,IFERROR(VLOOKUP(7,fimAuxiliar!B3:G10,2,0),""),"") ->  | D20: =IF(fimTurma!A2=1,IFERROR(VLOOKUP(7,fimAuxiliar!B4:H11,7,0),""),"") -> 
C21: =IF(fimTurma!A2=1,IFERROR(VLOOKUP(8,fimAuxiliar!B3:G10,2,0),""),"") ->  | D21: =IF(fimTurma!A2=1,IFERROR(VLOOKUP(8,fimAuxiliar!B3:H10,7,0),""),"") -> 

Sheet difAuxiliar (hidden)
E2: Melhor: | F2: -1 | G2: -1 | H2: 1 | I2: 1 | J2: -1 | K2: -1 | L2: 1 | M2: -1
A3: =fimTurma!A3 -> ID Aluno | C3: =fimTurma!C3 -> Nome | F3: =fimTurma!F3 -> Corrida vaivém | G3: =fimTurma!G3 -> Corrida velocidade | H3: =fimTurma!H3 -> Salto horizontal | I3: =fimTurma!I3 -> Receber | J3: =fimTurma!J3 -> Lançar | K3: =fimTurma!K3 -> Equilíbrio | L3: =fimTurma!L3 -> 0 | M3: =fimTurma!M3 -> 0
A4: =fimTurma!A4 -> 1 | C4: =fimTurma!C4 -> Micas | F4: =fimTurma!F4-iniTurma!F4 -> 1.88 | G4: =fimTurma!G4-iniTurma!G4 -> -1 | H4: =fimTurma!H4-iniTurma!H4 -> 0.5 | I4: =fimTurma!I4-iniTurma!I4 -> 3 | J4: =fimTurma!J4-iniTurma!J4 -> 2 | K4: =fimTurma!K4-iniTurma!K4 -> -1 | L4: =fimTurma!L4-iniTurma!L4 -> 0 | M4: =fimTurma!M4-iniTurma!M4 -> 0
A5: =fimTurma!A5 -> 2 | C5: =fimTurma!C5 -> Tecas | F5: =fimTurma!F5-iniTurma!F5 -> 3.07 | G5: =fimTurma!G5-iniTurma!G5 -> -2 | H5: =fimTurma!H5-iniTurma!H5 -> 0 | I5: =fimTurma!I5-iniTurma!I5 -> -38 | J5: =fimTurma!J5-iniTurma!J5 -> 2 | K5: =fimTurma!K5-iniTurma!K5 -> 0 | L5: =fimTurma!L5-iniTurma!L5 -> 0 | M5: =fimTurma!M5-iniTurma!M5 -> 0
A6: =fimTurma!A6 -> 3 | C6: =fimTurma!C6 -> Lecas | F6: =fimTurma!F6-iniTurma!F6 -> 6 | G6: =fimTurma!G6-iniTurma!G6 -> -1 | H6: =fimTurma!H6-iniTurma!H6 -> -0.3 | I6: =fimTurma!I6-iniTurma!I6 -> 9 | J6: =fimTurma!J6-iniTurma!J6 -> 0 | K6: =fimTurma!K6-iniTurma!K6 -> 0 | L6: =fimTurma!L6-iniTurma!L6 -> 0 | M6: =fimTurma!M6-iniTurma!M6 -> 0
A7: =fimTurma!A7 -> 4 | C7: =fimTurma!C7 -> Becas | F7: =fimTurma!F7-iniTurma!F7 -> 3.26 | G7: =fimTurma!G7-iniTurma!G7 -> -4 | H7: =fimTurma!H7-iniTurma!H7 -> -10 | I7: =fimTurma!I7-iniTurma!I7 -> 8 | J7: =fimTurma!J7-iniTurma!J7 -> 13 | K7: =fimTurma!K7-iniTurma!K7 -> -1.42 | L7: =fimTurma!L7-iniTurma!L7 -> 0 | M7: =fimTurma!M7-iniTurma!M7 -> 0
A8: =fimTurma!A8 -> 5 | C8: =fimTurma!C8 -> Nocas | F8: =fimTurma!F8-iniTurma!F8 -> 3.2 | G8: =fimTurma!G8-iniTurma!G8 -> 2 | H8: =fimTurma!H8-iniTurma!H8 -> 0.2 | I8: =fimTurma!I8-iniTurma!I8 -> 17 | J8: =fimTurma!J8-iniTurma!J8 -> 8 | K8: =fimTurma!K8-iniTurma!K8 -> -2.4 | L8: =fimTurma!L8-iniTurma!L8 -> 0 | M8: =fimTurma!M8-iniTurma!M8 -> 0
A9: =fimTurma!A9 -> 6 | C9: =fimTurma!C9 -> Françoise Hardy | F9: =fimTurma!F9-iniTurma!F9 -> 1.9 | G9: =fimTurma!G9-iniTurma!G9 -> -4 | H9: =fimTurma!H9-iniTurma!H9 -> 0.4 | I9: =fimTurma!I9-iniTurma!I9 -> 9 | J9: =fimTurma!J9-iniTurma!J9 -> -2 | K9: =fimTurma!K9-iniTurma!K9 -> 1.5 | L9: =fimTurma!L9-iniTurma!L9 -> 0 | M9: =fimTurma!M9-iniTurma!M9 -> 0
A10: =fimTurma!A10 -> 7 | C10: =fimTurma!C10 -> Asterix | F10: =fimTurma!F10-iniTurma!F10 -> 4.1 | G10: =fimTurma!G10-iniTurma!G10 -> -3 | H10: =fimTurma!H10-iniTurma!H10 -> -3.4 | I10: =fimTurma!I10-iniTurma!I10 -> -4 | J10: =fimTurma!J10-iniTurma!J10 -> 8 | K10: =fimTurma!K10-iniTurma!K10 -> -2.2 | L10: =fimTurma!L10-iniTurma!L10 -> 0 | M10: =fimTurma!M10-iniTurma!M10 -> 0
A11: =fimTurma!A11 -> 8 | C11: =fimTurma!C11 -> Obelix | F11: =fimTurma!F11-iniTurma!F11 -> 2.1 | G11: =fimTurma!G11-iniTurma!G11 -> -3 | H11: =fimTurma!H11-iniTurma!H11 -> -7.7 | I11: =fimTurma!I11-iniTurma!I11 -> 3 | J11: =fimTurma!J11-iniTurma!J11 -> 5 | K11: =fimTurma!K11-iniTurma!K11 -> -3.1 | L11: =fimTurma!L11-iniTurma!L11 -> 0 | M11: =fimTurma!M11-iniTurma!M11 -> 0
A12: =fimTurma!A12 -> 9 | C12: =fimTurma!C12 -> Ideiafix | F12: =fimTurma!F12-iniTurma!F12 -> 1.5 | G12: =fimTurma!G12-iniTurma!G12 -> -3 | H12: =fimTurma!H12-iniTurma!H12 -> -3.8 | I12: =fimTurma!I12-iniTurma!I12 -> 4.2 | J12: =fimTurma!J12-iniTurma!J12 -> 7 | K12: =fimTurma!K12-iniTurma!K12 -> -1.7 | L12: =fimTurma!L12-iniTurma!L12 -> 0 | M12: =fimTurma!M12-iniTurma!M12 -> 0
A13: =fimTurma!A13 -> 10 | C13: =fimTurma!C13 -> Sylvie Vartan | F13: =fimTurma!F13-iniTurma!F13 -> 3.5 | G13: =fimTurma!G13-iniTurma!G13 -> -3 | H13: =fimTurma!H13-iniTurma!H13 -> 1 | I13: =fimTurma!I13-iniTurma!I13 -> 4.1 | J13: =fimTurma!J13-iniTurma!J13 -> -1 | K13: =fimTurma!K13-iniTurma!K13 -> -3.5 | L13: =fimTurma!L13-iniTurma!L13 -> 0 | M13: =fimTurma!M13-iniTurma!M13 -> 0
A14: =fimTurma!A14 -> 11 | C14: =fimTurma!C14 -> Carlos Lopes | F14: =fimTurma!F14-iniTurma!F14 -> 3.6 | G14: =fimTurma!G14-iniTurma!G14 -> 2 | H14: =fimTurma!H14-iniTurma!H14 -> 1.9 | I14: =fimTurma!I14-iniTurma!I14 -> 1.3 | J14: =fimTurma!J14-iniTurma!J14 -> 4 | K14: =fimTurma!K14-iniTurma!K14 -> -0.5 | L14: =fimTurma!L14-iniTurma!L14 -> 0 | M14: =fimTurma!M14-iniTurma!M14 -> 0
A15: =fimTurma!A15 -> 12 | C15: =fimTurma!C15 -> Rosa Mota | F15: =fimTurma!F15-iniTurma!F15 -> 2.1 | G15: =fimTurma!G15-iniTurma!G15 -> 1 | H15: =fimTurma!H15-iniTurma!H15 -> -1.8 | I15: =fimTurma!I15-iniTurma!I15 -> 4.8 | J15: =fimTurma!J15-iniTurma!J15 -> 4 | K15: =fimTurma!K15-iniTurma!K15 -> -0.2 | L15: =fimTurma!L15-iniTurma!L15 -> 0 | M15: =fimTurma!M15-iniTurma!M15 -> 0
A16: =fimTurma!A16 -> 13 | C16: =fimTurma!C16 ->  | F16: =fimTurma!F16-iniTurma!F16 -> 0 | G16: =fimTurma!G16-iniTurma!G16 -> 0 | H16: =fimTurma!H16-iniTurma!H16 -> 0 | I16: =fimTurma!I16-iniTurma!I16 -> 0 | J16: =fimTurma!J16-iniTurma!J16 -> 0 | K16: =fimTurma!K16-iniTurma!K16 -> 0 | L16: =fimTurma!L16-iniTurma!L16 -> 0 | M16: =fimTurma!M16-iniTurma!M16 -> 0
A17: =fimTurma!A17 -> 14 | C17: =fimTurma!C17 ->  | F17: =fimTurma!F17-iniTurma!F17 -> 0 | G17: =fimTurma!G17-iniTurma!G17 -> 0 | H17: =fimTurma!H17-iniTurma!H17 -> 0 | I17: =fimTurma!I17-iniTurma!I17 -> 0 | J17: =fimTurma!J17-iniTurma!J17 -> 0 | K17: =fimTurma!K17-iniTurma!K17 -> 0 | L17: =fimTurma!L17-iniTurma!L17 -> 0 | M17: =fimTurma!M17-iniTurma!M17 -> 0
A18: =fimTurma!A18 -> 15 | C18: =fimTurma!C18 ->  | F18: =fimTurma!F18-iniTurma!F18 -> 0 | G18: =fimTurma!G18-iniTurma!G18 -> 0 | H18: =fimTurma!H18-iniTurma!H18 -> 0 | I18: =fimTurma!I18-iniTurma!I18 -> 0 | J18: =fimTurma!J18-iniTurma!J18 -> 0 | K18: =fimTurma!K18-iniTurma!K18 -> 0 | L18: =fimTurma!L18-iniTurma!L18 -> 0 | M18: =fimTurma!M18-iniTurma!M18 -> 0
A19: =fimTurma!A19 -> 16 | C19: =fimTurma!C19 ->  | F19: =fimTurma!F19-iniTurma!F19 -> 0 | G19: =fimTurma!G19-iniTurma!G19 -> 0 | H19: =fimTurma!H19-iniTurma!H19 -> 0 | I19: =fimTurma!I19-iniTurma!I19 -> 0 | J19: =fimTurma!J19-iniTurma!J19 -> 0 | K19: =fimTurma!K19-iniTurma!K19 -> 0 | L19: =fimTurma!L19-iniTurma!L19 -> 0 | M19: =fimTurma!M19-iniTurma!M19 -> 0
A20: =fimTurma!A20 -> 17 | C20: =fimTurma!C20 ->  | F20: =fimTurma!F20-iniTurma!F20 -> 0 | G20: =fimTurma!G20-iniTurma!G20 -> 0 | H20: =fimTurma!H20-iniTurma!H20 -> 0 | I20: =fimTurma!I20-iniTurma!I20 -> 0 | J20: =fimTurma!J20-iniTurma!J20 -> 0 | K20: =fimTurma!K20-iniTurma!K20 -> 0 | L20: =fimTurma!L20-iniTurma!L20 -> 0 | M20: =fimTurma!M20-iniTurma!M20 -> 0
A21: =fimTurma!A21 -> 18 | C21: =fimTurma!C21 ->  | F21: =fimTurma!F21-iniTurma!F21 -> 0 | G21: =fimTurma!G21-iniTurma!G21 -> 0 | H21: =fimTurma!H21-iniTurma!H21 -> 0 | I21: =fimTurma!I21-iniTurma!I21 -> 0 | J21: =fimTurma!J21-iniTurma!J21 -> 0 | K21: =fimTurma!K21-iniTurma!K21 -> 0 | L21: =fimTurma!L21-iniTurma!L21 -> 0 | M21: =fimTurma!M21-iniTurma!M21 -> 0
A22: =fimTurma!A22 -> 19 | C22: =fimTurma!C22 ->  | F22: =fimTurma!F22-iniTurma!F22 -> 0 | G22: =fimTurma!G22-iniTurma!G22 -> 0 | H22: =fimTurma!H22-iniTurma!H22 -> 0 | I22: =fimTurma!I22-iniTurma!I22 -> 0 | J22: =fimTurma!J22-iniTurma!J22 -> 0 | K22: =fimTurma!K22-iniTurma!K22 -> 0 | L22: =fimTurma!L22-iniTurma!L22 -> 0 | M22: =fimTurma!M22-iniTurma!M22 -> 0
A23: =fimTurma!A23 -> 20 | C23: =fimTurma!C23 ->  | F23: =fimTurma!F23-iniTurma!F23 -> 0 | G23: =fimTurma!G23-iniTurma!G23 -> 0 | H23: =fimTurma!H23-iniTurma!H23 -> 0 | I23: =fimTurma!I23-iniTurma!I23 -> 0 | J23: =fimTurma!J23-iniTurma!J23 -> 0 | K23: =fimTurma!K23-iniTurma!K23 -> 0 | L23: =fimTurma!L23-iniTurma!L23 -> 0 | M23: =fimTurma!M23-iniTurma!M23 -> 0
A24: =fimTurma!A24 -> 21 | C24: =fimTurma!C24 ->  | F24: =fimTurma!F24-iniTurma!F24 -> 0 | G24: =fimTurma!G24-iniTurma!G24 -> 0 | H24: =fimTurma!H24-iniTurma!H24 -> 0 | I24: =fimTurma!I24-iniTurma!I24 -> 0 | J24: =fimTurma!J24-iniTurma!J24 -> 0 | K24: =fimTurma!K24-iniTurma!K24 -> 0 | L24: =fimTurma!L24-iniTurma!L24 -> 0 | M24: =fimTurma!M24-iniTurma!M24 -> 0
A25: =fimTurma!A25 -> 22 | C25: =fimTurma!C25 ->  | F25: =fimTurma!F25-iniTurma!F25 -> 0 | G25: =fimTurma!G25-iniTurma!G25 -> 0 | H25: =fimTurma!H25-iniTurma!H25 -> 0 | I25: =fimTurma!I25-iniTurma!I25 -> 0 | J25: =fimTurma!J25-iniTurma!J25 -> 0 | K25: =fimTurma!K25-iniTurma!K25 -> 0 | L25: =fimTurma!L25-iniTurma!L25 -> 0 | M25: =fimTurma!M25-iniTurma!M25 -> 0
A26: =fimTurma!A26 -> 23 | C26: =fimTurma!C26 ->  | F26: =fimTurma!F26-iniTurma!F26 -> 0 | G26: =fimTurma!G26-iniTurma!G26 -> 0 | H26: =fimTurma!H26-iniTurma!H26 -> 0 | I26: =fimTurma!I26-iniTurma!I26 -> 0 | J26: =fimTurma!J26-iniTurma!J26 -> 0 | K26: =fimTurma!K26-iniTurma!K26 -> 0 | L26: =fimTurma!L26-iniTurma!L26 -> 0 | M26: =fimTurma!M26-iniTurma!M26 -> 0
A27: =fimTurma!A27 -> 24 | C27: =fimTurma!C27 ->  | F27: =fimTurma!F27-iniTurma!F27 -> 0 | G27: =fimTurma!G27-iniTurma!G27 -> 0 | H27: =fimTurma!H27-iniTurma!H27 -> 0 | I27: =fimTurma!I27-iniTurma!I27 -> 0 | J27: =fimTurma!J27-iniTurma!J27 -> 0 | K27: =fimTurma!K27-iniTurma!K27 -> 0 | L27: =fimTurma!L27-iniTurma!L27 -> 0 | M27: =fimTurma!M27-iniTurma!M27 -> 0
A28: =fimTurma!A28 -> 25 | C28: =fimTurma!C28 ->  | F28: =fimTurma!F28-iniTurma!F28 -> 0 | G28: =fimTurma!G28-iniTurma!G28 -> 0 | H28: =fimTurma!H28-iniTurma!H28 -> 0 | I28: =fimTurma!I28-iniTurma!I28 -> 0 | J28: =fimTurma!J28-iniTurma!J28 -> 0 | K28: =fimTurma!K28-iniTurma!K28 -> 0 | L28: =fimTurma!L28-iniTurma!L28 -> 0 | M28: =fimTurma!M28-iniTurma!M28 -> 0
A29: =fimTurma!A29 -> 26 | C29: =fimTurma!C29 ->  | F29: =fimTurma!F29-iniTurma!F29 -> 0 | G29: =fimTurma!G29-iniTurma!G29 -> 0 | H29: =fimTurma!H29-iniTurma!H29 -> 0 | I29: =fimTurma!I29-iniTurma!I29 -> 0 | J29: =fimTurma!J29-iniTurma!J29 -> 0 | K29: =fimTurma!K29-iniTurma!K29 -> 0 | L29: =fimTurma!L29-iniTurma!L29 -> 0 | M29: =fimTurma!M29-iniTurma!M29 -> 0
A30: =fimTurma!A30 -> 27 | C30: =fimTurma!C30 ->  | F30: =fimTurma!F30-iniTurma!F30 -> 0 | G30: =fimTurma!G30-iniTurma!G30 -> 0 | H30: =fimTurma!H30-iniTurma!H30 -> 0 | I30: =fimTurma!I30-iniTurma!I30 -> 0 | J30: =fimTurma!J30-iniTurma!J30 -> 0 | K30: =fimTurma!K30-iniTurma!K30 -> 0 | L30: =fimTurma!L30-iniTurma!L30 -> 0 | M30: =fimTurma!M30-iniTurma!M30 -> 0
A31: =fimTurma!A31 -> 28 | C31: =fimTurma!C31 ->  | F31: =fimTurma!F31-iniTurma!F31 -> 0 | G31: =fimTurma!G31-iniTurma!G31 -> 0 | H31: =fimTurma!H31-iniTurma!H31 -> 0 | I31: =fimTurma!I31-iniTurma!I31 -> 0 | J31: =fimTurma!J31-iniTurma!J31 -> 0 | K31: =fimTurma!K31-iniTurma!K31 -> 0 | L31: =fimTurma!L31-iniTurma!L31 -> 0 | M31: =fimTurma!M31-iniTurma!M31 -> 0
A32: =fimTurma!A32 -> 29 | C32: =fimTurma!C32 ->  | F32: =fimTurma!F32-iniTurma!F32 -> 0 | G32: =fimTurma!G32-iniTurma!G32 -> 0 | H32: =fimTurma!H32-iniTurma!H32 -> 0 | I32: =fimTurma!I32-iniTurma!I32 -> 0 | J32: =fimTurma!J32-iniTurma!J32 -> 0 | K32: =fimTurma!K32-iniTurma!K32 -> 0 | L32: =fimTurma!L32-iniTurma!L32 -> 0 | M32: =fimTurma!M32-iniTurma!M32 -> 0
A33: =fimTurma!A33 -> 30 | C33: =fimTurma!C33 ->  | F33: =fimTurma!F33-iniTurma!F33 -> 0 | G33: =fimTurma!G33-iniTurma!G33 -> 0 | H33: =fimTurma!H33-iniTurma!H33 -> 0 | I33: =fimTurma!I33-iniTurma!I33 -> 0 | J33: =fimTurma!J33-iniTurma!J33 -> 0 | K33: =fimTurma!K33-iniTurma!K33 -> 0 | L33: =fimTurma!L33-iniTurma!L33 -> 0 | M33: =fimTurma!M33-iniTurma!M33 -> 0
A34: =fimTurma!A34 -> 31 | C34: =fimTurma!C34 ->  | F34: =fimTurma!F34-iniTurma!F34 -> 0 | G34: =fimTurma!G34-iniTurma!G34 -> 0 | H34: =fimTurma!H34-iniTurma!H34 -> 0 | I34: =fimTurma!I34-iniTurma!I34 -> 0 | J34: =fimTurma!J34-iniTurma!J34 -> 0 | K34: =fimTurma!K34-iniTurma!K34 -> 0 | L34: =fimTurma!L34-iniTurma!L34 -> 0 | M34: =fimTurma!M34-iniTurma!M34 -> 0
A35: =fimTurma!A35 -> 32 | C35: =fimTurma!C35 ->  | F35: =fimTurma!F35-iniTurma!F35 -> 0 | G35: =fimTurma!G35-iniTurma!G35 -> 0 | H35: =fimTurma!H35-iniTurma!H35 -> 0 | I35: =fimTurma!I35-iniTurma!I35 -> 0 | J35: =fimTurma!J35-iniTurma!J35 -> 0 | K35: =fimTurma!K35-iniTurma!K35 -> 0 | L35: =fimTurma!L35-iniTurma!L35 -> 0 | M35: =fimTurma!M35-iniTurma!M35 -> 0
A36: =fimTurma!A36 -> 33 | C36: =fimTurma!C36 ->  | F36: =fimTurma!F36-iniTurma!F36 -> 0 | G36: =fimTurma!G36-iniTurma!G36 -> 0 | H36: =fimTurma!H36-iniTurma!H36 -> 0 | I36: =fimTurma!I36-iniTurma!I36 -> 0 | J36: =fimTurma!J36-iniTurma!J36 -> 0 | K36: =fimTurma!K36-iniTurma!K36 -> 0 | L36: =fimTurma!L36-iniTurma!L36 -> 0 | M36: =fimTurma!M36-iniTurma!M36 -> 0
A37: =fimTurma!A37 -> 34 | C37: =fimTurma!C37 ->  | F37: =fimTurma!F37-iniTurma!F37 -> 0 | G37: =fimTurma!G37-iniTurma!G37 -> 0 | H37: =fimTurma!H37-iniTurma!H37 -> 0 | I37: =fimTurma!I37-iniTurma!I37 -> 0 | J37: =fimTurma!J37-iniTurma!J37 -> 0 | K37: =fimTurma!K37-iniTurma!K37 -> 0 | L37: =fimTurma!L37-iniTurma!L37 -> 0 | M37: =fimTurma!M37-iniTurma!M37 -> 0
A38: =fimTurma!A38 -> 35 | C38: =fimTurma!C38 ->  | F38: =fimTurma!F38-iniTurma!F38 -> 0 | G38: =fimTurma!G38-iniTurma!G38 -> 0 | H38: =fimTurma!H38-iniTurma!H38 -> 0 | I38: =fimTurma!I38-iniTurma!I38 -> 0 | J38: =fimTurma!J38-iniTurma!J38 -> 0 | K38: =fimTurma!K38-iniTurma!K38 -> 0 | L38: =fimTurma!L38-iniTurma!L38 -> 0 | M38: =fimTurma!M38-iniTurma!M38 -> 0
A39: =fimTurma!A39 -> 36 | C39: =fimTurma!C39 ->  | F39: =fimTurma!F39-iniTurma!F39 -> 0 | G39: =fimTurma!G39-iniTurma!G39 -> 0 | H39: =fimTurma!H39-iniTurma!H39 -> 0 | I39: =fimTurma!I39-iniTurma!I39 -> 0 | J39: =fimTurma!J39-iniTurma!J39 -> 0 | K39: =fimTurma!K39-iniTurma!K39 -> 0 | L39: =fimTurma!L39-iniTurma!L39 -> 0 | M39: =fimTurma!M39-iniTurma!M39 -> 0
A40: =fimTurma!A40 -> 37 | C40: =fimTurma!C40 ->  | F40: =fimTurma!F40-iniTurma!F40 -> 0 | G40: =fimTurma!G40-iniTurma!G40 -> 0 | H40: =fimTurma!H40-iniTurma!H40 -> 0 | I40: =fimTurma!I40-iniTurma!I40 -> 0 | J40: =fimTurma!J40-iniTurma!J40 -> 0 | K40: =fimTurma!K40-iniTurma!K40 -> 0 | L40: =fimTurma!L40-iniTurma!L40 -> 0 | M40: =fimTurma!M40-iniTurma!M40 -> 0
A41: =fimTurma!A41 -> 38 | C41: =fimTurma!C41 ->  | F41: =fimTurma!F41-iniTurma!F41 -> 0 | G41: =fimTurma!G41-iniTurma!G41 -> 0 | H41: =fimTurma!H41-iniTurma!H41 -> 0 | I41: =fimTurma!I41-iniTurma!I41 -> 0 | J41: =fimTurma!J41-iniTurma!J41 -> 0 | K41: =fimTurma!K41-iniTurma!K41 -> 0 | L41: =fimTurma!L41-iniTurma!L41 -> 0 | M41: =fimTurma!M41-iniTurma!M41 -> 0
A42: =fimTurma!A42 -> 39 | C42: =fimTurma!C42 ->  | F42: =fimTurma!F42-iniTurma!F42 -> 0 | G42: =fimTurma!G42-iniTurma!G42 -> 0 | H42: =fimTurma!H42-iniTurma!H42 -> 0 | I42: =fimTurma!I42-iniTurma!I42 -> 0 | J42: =fimTurma!J42-iniTurma!J42 -> 0 | K42: =fimTurma!K42-iniTurma!K42 -> 0 | L42: =fimTurma!L42-iniTurma!L42 -> 0 | M42: =fimTurma!M42-iniTurma!M42 -> 0
A43: =fimTurma!A43 -> 40 | C43: =fimTurma!C43 ->  | F43: =fimTurma!F43-iniTurma!F43 -> 0 | G43: =fimTurma!G43-iniTurma!G43 -> 0 | H43: =fimTurma!H43-iniTurma!H43 -> 0 | I43: =fimTurma!I43-iniTurma!I43 -> 0 | J43: =fimTurma!J43-iniTurma!J43 -> 0 | K43: =fimTurma!K43-iniTurma!K43 -> 0 | L43: =fimTurma!L43-iniTurma!L43 -> 0 | M43: =fimTurma!M43-iniTurma!M43 -> 0
A44: =fimTurma!A44 -> 41 | C44: =fimTurma!C44 ->  | F44: =fimTurma!F44-iniTurma!F44 -> 0 | G44: =fimTurma!G44-iniTurma!G44 -> 0 | H44: =fimTurma!H44-iniTurma!H44 -> 0 | I44: =fimTurma!I44-iniTurma!I44 -> 0 | J44: =fimTurma!J44-iniTurma!J44 -> 0 | K44: =fimTurma!K44-iniTurma!K44 -> 0 | L44: =fimTurma!L44-iniTurma!L44 -> 0 | M44: =fimTurma!M44-iniTurma!M44 -> 0
A45: =fimTurma!A45 -> 42 | C45: =fimTurma!C45 ->  | F45: =fimTurma!F45-iniTurma!F45 -> 0 | G45: =fimTurma!G45-iniTurma!G45 -> 0 | H45: =fimTurma!H45-iniTurma!H45 -> 0 | I45: =fimTurma!I45-iniTurma!I45 -> 0 | J45: =fimTurma!J45-iniTurma!J45 -> 0 | K45: =fimTurma!K45-iniTurma!K45 -> 0 | L45: =fimTurma!L45-iniTurma!L45 -> 0 | M45: =fimTurma!M45-iniTurma!M45 -> 0
A46: =fimTurma!A46 -> 43 | C46: =fimTurma!C46 ->  | F46: =fimTurma!F46-iniTurma!F46 -> 0 | G46: =fimTurma!G46-iniTurma!G46 -> 0 | H46: =fimTurma!H46-iniTurma!H46 -> 0 | I46: =fimTurma!I46-iniTurma!I46 -> 0 | J46: =fimTurma!J46-iniTurma!J46 -> 0 | K46: =fimTurma!K46-iniTurma!K46 -> 0 | L46: =fimTurma!L46-iniTurma!L46 -> 0 | M46: =fimTurma!M46-iniTurma!M46 -> 0
A47: =fimTurma!A47 -> 44 | C47: =fimTurma!C47 ->  | F47: =fimTurma!F47-iniTurma!F47 -> 0 | G47: =fimTurma!G47-iniTurma!G47 -> 0 | H47: =fimTurma!H47-iniTurma!H47 -> 0 | I47: =fimTurma!I47-iniTurma!I47 -> 0 | J47: =fimTurma!J47-iniTurma!J47 -> 0 | K47: =fimTurma!K47-iniTurma!K47 -> 0 | L47: =fimTurma!L47-iniTurma!L47 -> 0 | M47: =fimTurma!M47-iniTurma!M47 -> 0
A48: =fimTurma!A48 -> 45 | C48: =fimTurma!C48 ->  | F48: =fimTurma!F48-iniTurma!F48 -> 0 | G48: =fimTurma!G48-iniTurma!G48 -> 0 | H48: =fimTurma!H48-iniTurma!H48 -> 0 | I48: =fimTurma!I48-iniTurma!I48 -> 0 | J48: =fimTurma!J48-iniTurma!J48 -> 0 | K48: =fimTurma!K48-iniTurma!K48 -> 0 | L48: =fimTurma!L48-iniTurma!L48 -> 0 | M48: =fimTurma!M48-iniTurma!M48 -> 0
A49: =fimTurma!A49 -> 46 | C49: =fimTurma!C49 ->  | F49: =fimTurma!F49-iniTurma!F49 -> 0 | G49: =fimTurma!G49-iniTurma!G49 -> 0 | H49: =fimTurma!H49-iniTurma!H49 -> 0 | I49: =fimTurma!I49-iniTurma!I49 -> 0 | J49: =fimTurma!J49-iniTurma!J49 -> 0 | K49: =fimTurma!K49-iniTurma!K49 -> 0 | L49: =fimTurma!L49-iniTurma!L49 -> 0 | M49: =fimTurma!M49-iniTurma!M49 -> 0
A50: =fimTurma!A50 -> 47 | C50: =fimTurma!C50 ->  | F50: =fimTurma!F50-iniTurma!F50 -> 0 | G50: =fimTurma!G50-iniTurma!G50 -> 0 | H50: =fimTurma!H50-iniTurma!H50 -> 0 | I50: =fimTurma!I50-iniTurma!I50 -> 0 | J50: =fimTurma!J50-iniTurma!J50 -> 0 | K50: =fimTurma!K50-iniTurma!K50 -> 0 | L50: =fimTurma!L50-iniTurma!L50 -> 0 | M50: =fimTurma!M50-iniTurma!M50 -> 0
A51: =fimTurma!A51 -> 48 | C51: =fimTurma!C51 ->  | F51: =fimTurma!F51-iniTurma!F51 -> 0 | G51: =fimTurma!G51-iniTurma!G51 -> 0 | H51: =fimTurma!H51-iniTurma!H51 -> 0 | I51: =fimTurma!I51-iniTurma!I51 -> 0 | J51: =fimTurma!J51-iniTurma!J51 -> 0 | K51: =fimTurma!K51-iniTurma!K51 -> 0 | L51: =fimTurma!L51-iniTurma!L51 -> 0 | M51: =fimTurma!M51-iniTurma!M51 -> 0
A52: =fimTurma!A52 -> 49 | C52: =fimTurma!C52 ->  | F52: =fimTurma!F52-iniTurma!F52 -> 0 | G52: =fimTurma!G52-iniTurma!G52 -> 0 | H52: =fimTurma!H52-iniTurma!H52 -> 0 | I52: =fimTurma!I52-iniTurma!I52 -> 0 | J52: =fimTurma!J52-iniTurma!J52 -> 0 | K52: =fimTurma!K52-iniTurma!K52 -> 0 | L52: =fimTurma!L52-iniTurma!L52 -> 0 | M52: =fimTurma!M52-iniTurma!M52 -> 0
A53: =fimTurma!A53 -> 50 | C53: =fimTurma!C53 ->  | F53: =fimTurma!F53-iniTurma!F53 -> 0 | G53: =fimTurma!G53-iniTurma!G53 -> 0 | H53: =fimTurma!H53-iniTurma!H53 -> 0 | I53: =fimTurma!I53-iniTurma!I53 -> 0 | J53: =fimTurma!J53-iniTurma!J53 -> 0 | K53: =fimTurma!K53-iniTurma!K53 -> 0 | L53: =fimTurma!L53-iniTurma!L53 -> 0 | M53: =fimTurma!M53-iniTurma!M53 -> 0
E55: Média | F55: =AVERAGE(F4:F53) -> 0.7242 | G55: =AVERAGE(G4:G53) -> -0.38 | H55: -0.46 | I55: 0.428 | J55: 1 | K55: -0.2904 | L55: 0 | M55: 0
E56: Desvio P | F56: =STDEVA(F4:F53) -> 1.430738485 | G56: =STDEVA(G4:G53) -> 1.24359584 | H56: 1.933063551 | I56: 6.457112516 | J56: 2.733018067 | K56: 0.8653157027 | L56: 0 | M56: 0
E57: n | F57: =COUNTIF(F4:F53,">0") -> 12 | G57: =COUNTIF(G4:G53,">0") -> 3 | H57: 5 | I57: 10 | J57: 9 | K57: 1 | L57: 0 | M57: 0
E58: t teste | F58: =IF(F57>0,F55/(F56/SQRT(F57)),"") -> 1.753431823 | G58: =IF(G57>0,G55/(G56/SQRT(G57)),"") -> -0.5292549926 | H58: -0.5321042181 | I58: 0.2096068227 | J58: 1.097687584 | K58: -0.335600058
E59: t crítico | F59: =IF(F57>5,IF(F2<0,_xlfn.T.INV(0.05,F57-1),_xlfn.T.INV(0.95,F57-1)),"") -> -1.795884819 | G59: =IF(G57>5,IF(G2<0,_xlfn.T.INV(0.05,G57-1),_xlfn.T.INV(0.95,G57-1)),"") ->  | I59: 1.833112933 | J59: -1.859548038
E60: valor p
E61: Conclusão
